Workbook

Sheet Sheet1
A1: Supplementary Table 5 Annotation table of D. marginatus female adult transcriptome analysis
A2: Gene ID | B2: Length | C2: Trans_ID | D2: Nr-NCBI | F2: swissprot | G2: GO | H2: NOG | I2: KEGG | M2: Pfam | N2: SignalP | O2: F tick1 count | P2: F tick2 count | Q2: F tick3 count | R2: H tick1 count | S2: H tick2 count | T2: H tick3 count | U2: M tick1 count | V2: M tick2 count | W2: M tick3 count | X2: F ick1 TPM | Y2: F tick2 TPM | Z2: F tick3 TPM | AA2: H tick1 TPM | AB2: H tick2 TPM | AC2: H tick3 TPM | AD2: M tick1 TPM | AE2: M tick2 TPM | AF2: M tick3 TPM | AG2: F tick mean TPM | AH2: H tick mean TPM | AI2: M tick mean TPM | AJ2: ef-1alpha (DN43634_c0_g1) normalized fold-change | AM2: ef-1alpha normalized fold-change to 1 | AP2: p-value | AQ2: FDR | AR2: significant
D3: Annotation | E3: Name | I3: KOEntry | J3: KODescription | K3: EC | L3: KEGG_Pathway | AJ3: F tick | AK3: H tick | AL3: M tick | AM3: F tick | AN3: H tick | AO3: M tick
A4: TRINITY_DN37201_c1_g1 | B4: 1,306 | C4: TRINITY_DN37201_c1_g1_i1;TRINITY_DN37201_c1_g1_i2 | D4: - | E4: - | F4: - | G4: - | H4: - | I4: - | J4: - | K4: - | L4: - | M4: - | N4: "CS_pos": "Cleavage site between pos. 24 and 25: GFA-GY. Probability: 0.3494", | O4: 0.00 | P4: 1.00 | Q4: 0.00 | R4: 12.00 | S4: 17.00 | T4: 20.00 | U4: 96,642.55 | V4: 69,723.14 | W4: 159,555.30 | X4: 0.00 | Y4: 0.09 | Z4: 0.00 | AA4: 0.92 | AB4: 1.28 | AC4: 1.35 | AD4: 7,139.13 | AE4: 5,512.32 | AF4: 12,542.43 | AG4: 0.03 | AH4: 1.18 | AI4: 8,397.96 | AJ4: =AG4/1616.37 -> 0.00 | AK4: =AH4/2185.3 -> 0.00 | AL4: =AI4/452.3 -> 18.57 | AM4: =AJ4/AJ4 -> 1.00 | AN4: =AK4/AJ4 -> 29.09 | AO4: =AL4/AJ4 -> 1,000,384.01 | AP4: 0.00 | AQ4: 0.00 | AR4: yes
A5: TRINITY_DN34900_c0_g1 | B5: 1,553 | C5: TRINITY_DN34900_c0_g1_i1;TRINITY_DN34900_c0_g1_i2;TRINITY_DN34900_c0_g1_i3;TRINITY_DN34900_c0_g1_i4 | D5: - | E5: - | F5: - | G5: - | H5: - | I5: - | J5: - | K5: - | L5: - | M5: - | N5: - | O5: 0.00 | P5: 0.00 | Q5: 0.00 | R5: 0.00 | S5: 0.00 | T5: 0.00 | U5: 17,239.96 | V5: 27,976.00 | W5: 26,889.00 | X5: 0.00 | Y5: 0.00 | Z5: 0.00 | AA5: 0.00 | AB5: 0.00 | AC5: 0.00 | AD5: 1,566.61 | AE5: 2,742.84 | AF5: 2,629.19 | AG5: 0.00 | AH5: 0.00 | AI5: 2,312.88 | AJ5: 0.00 | AK5: 0.00 | AL5: 5.11 | AM5: =AJ5/AL5 -> 0.00 | AN5: =AK5/AL5 -> 0.00 | AO5: =AL5/AL5 -> 1.00 | AP5: 0.00 | AQ5: 0.00 | AR5: yes
A6: TRINITY_DN52155_c0_g1 | B6: 1,580 | C6: TRINITY_DN52155_c0_g1_i1;TRINITY_DN52155_c0_g1_i2;TRINITY_DN52155_c0_g1_i3;TRINITY_DN52155_c0_g1_i4;TRINITY_DN52155_c0_g1_i5;TRINITY_DN52155_c0_g1_i6 | D6: yolk cathepsin, partial [Rhipicephalus microplus] | E6: CTSE | F6: Cathepsin E OS=Cavia porcellus GN=CTSE PE=1 SV=1 | G6: GO:0004190(aspartic-type endopeptidase activity);GO:0005615(extracellular space);GO:0005764(lysosome);GO:0006508(proteolysis);GO:0030163(protein catabolic process) | H6: ENOG410XNV7(aspartic) | I6: K01379 | J6: cathepsin D | K6: EC:3.4.23.5 | L6: bter04142(Lysosome);bter04140(Autophagy - animal) | M6: A0A087ZY53.1 PF00026.21;Asp; | N6: - | O6: 71,830.33 | P6: 31,822.18 | Q6: 54,750.08 | R6: 11.02 | S6: 12.01 | T6: 26.01 | U6: 15.03 | V6: 12.01 | W6: 14.03 | X6: 2,497.52 | Y6: 1,242.02 | Z6: 2,515.32 | AA6: 0.25 | AB6: 0.34 | AC6: 0.78 | AD6: 0.35 | AE6: 0.26 | AF6: 0.33 | AG6: 2,084.95 | AH6: 0.46 | AI6: 0.31 | AJ6: 1.29 | AK6: 0.00 | AL6: 0.00 | AM6: =AJ6/AK6 -> 6,127.85 | AN6: =AK6/AK6 -> 1.00 | AO6: =AL6/AK6 -> 3.26 | AP6: 0.00 | AQ6: 0.00 | AR6: yes
A7: TRINITY_DN43545_c1_g3 | B7: 908 | C7: TRINITY_DN43545_c1_g3_i1;TRINITY_DN43545_c1_g3_i2;TRINITY_DN43545_c1_g3_i3;TRINITY_DN43545_c1_g3_i4;TRINITY_DN43545_c1_g3_i5 | D7: structural constituent of cuticle, putative [Ixodes scapularis] | E7: - | F7: Cuticle protein 14 isoform b OS=Limulus polyphemus PE=1 SV=1 | G7: GO:0005615(extracellular space) | H7: ENOG410Y0B9(Cuticle protein) | I7: - | J7: - | K7: - | L7: - | M7: B7PWT8.1 PF00379.21;Chitin_bind_4; | N7: - | O7: 3.00 | P7: 0.00 | Q7: 0.00 | R7: 1.00 | S7: 2.00 | T7: 1.00 | U7: 18,271.05 | V7: 15,939.98 | W7: 32,124.95 | X7: 0.13 | Y7: 0.00 | Z7: 0.00 | AA7: 0.04 | AB7: 0.18 | AC7: 0.04 | AD7: 1,260.29 | AE7: 919.71 | AF7: 2,533.75 | AG7: 0.04 | AH7: 0.09 | AI7: 1,571.25 | AJ7: 0.00 | AK7: 0.00 | AL7: 3.47 | AM7: =AJ7/AJ7 -> 1.00 | AN7: =AK7/AJ7 -> 1.66 | AO7: =AL7/AJ7 -> 140,378.14 | AP7: 0.00 | AQ7: 0.00 | AR7: yes
A8: TRINITY_DN37201_c1_g3 | B8: 502 | C8: TRINITY_DN37201_c1_g3_i1;TRINITY_DN37201_c1_g3_i2 | D8: - | E8: - | F8: - | G8: - | H8: - | I8: - | J8: - | K8: - | L8: - | M8: - | N8: - | O8: 4.00 | P8: 1.00 | Q8: 0.00 | R8: 12.00 | S8: 19.00 | T8: 29.00 | U8: 111,455.76 | V8: 55,525.97 | W8: 145,649.96 | X8: 0.44 | Y8: 0.21 | Z8: 0.00 | AA8: 1.15 | AB8: 1.80 | AC8: 2.47 | AD8: 11,201.49 | AE8: 6,026.20 | AF8: 15,791.27 | AG8: 0.22 | AH8: 1.81 | AI8: 11,006.32 | AJ8: 0.00 | AK8: 0.00 | AL8: 24.33 | AM8: =AJ8/AJ8 -> 1.00 | AN8: =AK8/AJ8 -> 6.09 | AO8: =AL8/AJ8 -> 178,786.06 | AP8: 0.00 | AQ8: 0.00 | AR8: yes
A9: TRINITY_DN41315_c1_g3 | B9: 672 | C9: TRINITY_DN41315_c1_g3_i1 | D9: - | E9: - | F9: - | G9: - | H9: - | I9: - | J9: - | K9: - | L9: - | M9: - | N9: - | O9: 4,541.51 | P9: 4,282.00 | Q9: 3,480.54 | R9: 1.00 | S9: 1.00 | T9: 1.00 | U9: 0.00 | V9: 0.00 | W9: 2.00 | X9: 292.96 | Y9: 307.07 | Z9: 297.81 | AA9: 0.06 | AB9: 0.06 | AC9: 0.06 | AD9: 0.00 | AE9: 0.00 | AF9: 0.13 | AG9: 299.28 | AH9: 0.06 | AI9: 0.04 | AJ9: 0.19 | AK9: 0.00 | AL9: 0.00 | AM9: =AJ9/AK9 -> 6,743.68 | AN9: =AK9/AK9 -> 1.00 | AO9: =AL9/AK9 -> 3.22 | AP9: 0.00 | AQ9: 0.00 | AR9: yes
A10: TRINITY_DN43273_c0_g1 | B10: 2,447 | C10: TRINITY_DN43273_c0_g1_i1;TRINITY_DN43273_c0_g1_i2;TRINITY_DN43273_c0_g1_i3;TRINITY_DN43273_c0_g1_i4;TRINITY_DN43273_c0_g1_i5;TRINITY_DN43273_c0_g1_i6;TRINITY_DN43273_c0_g1_i7;TRINITY_DN43273_c0_g1_i8;TRINITY_DN43273_c0_g1_i9 | D10: cuticle protein, putative [Ixodes scapularis] | E10: - | F10: - | G10: GO:0005615(extracellular space);GO:0042302(structural constituent of cuticle) | H10: ENOG410YRDB(Cuticle protein) | I10: - | J10: - | K10: - | L10: - | M10: - | N10: - | O10: 2.00 | P10: 0.00 | Q10: 0.00 | R10: 13.00 | S10: 17.00 | T10: 61.00 | U10: 570,877.41 | V10: 380,840.87 | W10: 653,718.69 | X10: 0.03 | Y10: 0.00 | Z10: 0.00 | AA10: 0.24 | AB10: 0.70 | AC10: 1.00 | AD10: 11,573.74 | AE10: 7,052.69 | AF10: 12,479.42 | AG10: 0.01 | AH10: 0.65 | AI10: 10,368.62 | AJ10: 0.00 | AK10: 0.00 | AL10: 22.92 | AM10: =AJ10/AJ10 -> 1.00 | AN10: =AK10/AJ10 -> 48.08 | AO10: =AL10/AJ10 -> 3,705,400.47 | AP10: 0.00 | AQ10: 0.00 | AR10: yes
A11: TRINITY_DN40766_c0_g4 | B11: 697 | C11: TRINITY_DN40766_c0_g4_i1;TRINITY_DN40766_c0_g4_i2 | D11: - | E11: - | F11: - | G11: - | H11: - | I11: - | J11: - | K11: - | L11: - | M11: - | N11: - | O11: 3.00 | P11: 0.00 | Q11: 1.00 | R11: 6.00 | S11: 3.00 | T11: 16.13 | U11: 40,991.28 | V11: 31,232.53 | W11: 65,721.01 | X11: 0.23 | Y11: 0.00 | Z11: 0.34 | AA11: 0.36 | AB11: 0.18 | AC11: 0.87 | AD11: 2,318.05 | AE11: 1,899.18 | AF11: 3,909.31 | AG11: 0.19 | AH11: 0.47 | AI11: 2,708.85 | AJ11: 0.00 | AK11: 0.00 | AL11: 5.99 | AM11: =AJ11/AJ11 -> 1.00 | AN11: =AK11/AJ11 -> 1.83 | AO11: =AL11/AJ11 -> 50,950.16 | AP11: 0.00 | AQ11: 0.00 | AR11: yes
A12: TRINITY_DN35634_c0_g3 | B12: 1,189 | C12: TRINITY_DN35634_c0_g3_i1;TRINITY_DN35634_c0_g3_i2;TRINITY_DN35634_c0_g3_i3;TRINITY_DN35634_c0_g3_i4;TRINITY_DN35634_c0_g3_i5;TRINITY_DN35634_c0_g3_i6 | D12: - | E12: - | F12: - | G12: - | H12: - | I12: - | J12: - | K12: - | L12: - | M12: - | N12: - | O12: 0.00 | P12: 1.00 | Q12: 0.00 | R12: 10.00 | S12: 15.00 | T12: 29.00 | U12: 8,021.41 | V12: 6,491.90 | W12: 10,076.37 | X12: 0.00 | Y12: 0.23 | Z12: 0.00 | AA12: 1.81 | AB12: 1.69 | AC12: 3.73 | AD12: 1,598.63 | AE12: 1,308.39 | AF12: 2,160.74 | AG12: 0.08 | AH12: 2.41 | AI12: 1,689.25 | AJ12: 0.00 | AK12: 0.00 | AL12: 3.73 | AM12: =AJ12/AJ12 -> 1.00 | AN12: =AK12/AJ12 -> 22.28 | AO12: =AL12/AJ12 -> 75,460.23 | AP12: 0.00 | AQ12: 0.00 | AR12: yes
A13: TRINITY_DN41171_c0_g2 | B13: 438 | C13: TRINITY_DN41171_c0_g2_i1;TRINITY_DN41171_c0_g2_i2 | D13: - | E13: - | F13: - | G13: - | H13: - | I13: - | J13: - | K13: - | L13: - | M13: - | N13: - | O13: 3,330.95 | P13: 2,673.00 | Q13: 2,294.86 | R13: 0.00 | S13: 0.00 | T13: 0.00 | U13: 1.00 | V13: 0.00 | W13: 1.00 | X13: 574.47 | Y13: 860.42 | Z13: 916.31 | AA13: 0.00 | AB13: 0.00 | AC13: 0.00 | AD13: 0.13 | AE13: 0.00 | AF13: 0.14 | AG13: 783.73 | AH13: 0.00 | AI13: 0.09 | AJ13: 0.48 | AK13: 0.00 | AL13: 0.00 | AM13: =AJ13/AL13 -> 2,436.74 | AN13: =AK13/AL13 -> 0.00 | AO13: =AL13/AL13 -> 1.00 | AP13: 0.00 | AQ13: 0.00 | AR13: yes
A14: TRINITY_DN34825_c3_g1 | B14: 2,183 | C14: TRINITY_DN34825_c3_g1_i1 | D14: endonuclease-reverse transcriptase [Apostichopus japonicus] | E14: - | F14: - | G14: - | H14: - | I14: - | J14: - | K14: - | L14: - | M14: - | N14: - | O14: 2.00 | P14: 1.00 | Q14: 1.00 | R14: 4.02 | S14: 3.01 | T14: 4.01 | U14: 5,339.20 | V14: 2,639.96 | W14: 5,166.55 | X14: 0.03 | Y14: 0.02 | Z14: 0.02 | AA14: 0.06 | AB14: 0.05 | AC14: 0.06 | AD14: 69.10 | AE14: 36.80 | AF14: 68.33 | AG14: 0.02 | AH14: 0.06 | AI14: 58.08 | AJ14: 0.00 | AK14: 0.00 | AL14: 0.13 | AM14: =AJ14/AJ14 -> 1.00 | AN14: =AK14/AJ14 -> 2.22 | AO14: =AL14/AJ14 -> 10,377.93 | AP14: 0.00 | AQ14: 0.00 | AR14: yes
A15: TRINITY_DN55756_c0_g3 | B15: 2,179 | C15: TRINITY_DN55756_c0_g3_i1;TRINITY_DN55756_c0_g3_i2;TRINITY_DN55756_c0_g3_i3;TRINITY_DN55756_c0_g3_i4;TRINITY_DN55756_c0_g3_i5 | D15: - | E15: - | F15: - | G15: - | H15: - | I15: - | J15: - | K15: - | L15: - | M15: - | N15: - | O15: 4,647.49 | P15: 3,230.00 | Q15: 3,133.46 | R15: 0.00 | S15: 0.00 | T15: 0.00 | U15: 0.00 | V15: 0.00 | W15: 0.00 | X15: 283.84 | Y15: 216.33 | Z15: 251.34 | AA15: 0.00 | AB15: 0.00 | AC15: 0.00 | AD15: 0.00 | AE15: 0.00 | AF15: 0.00 | AG15: 250.50 | AH15: 0.00 | AI15: 0.00 | AJ15: 0.15 | AK15: 0.00 | AL15: 0.00 | AM15: =AJ15/AJ15 -> 1.00 | AN15: =AK15/AJ15 -> 0.00 | AO15: =AL15/AJ15 -> 0.00 | AP15: 0.00 | AQ15: 0.00 | AR15: yes
A16: TRINITY_DN40222_c0_g1 | B16: 2,044 | C16: TRINITY_DN40222_c0_g1_i1;TRINITY_DN40222_c0_g1_i2;TRINITY_DN40222_c0_g1_i3 | D16: - | E16: - | F16: - | G16: - | H16: - | I16: - | J16: - | K16: - | L16: - | N16: - | O16: 3,325.98 | P16: 2,553.01 | Q16: 4,006.25 | R16: 1.01 | S16: 0.00 | T16: 2.07 | U16: 5.08 | V16: 2.00 | W16: 3.00 | X16: 58.48 | Y16: 118.93 | Z16: 87.24 | AA16: 0.02 | AB16: 0.00 | AC16: 0.03 | AD16: 0.07 | AE16: 0.03 | AF16: 0.04 | AG16: 88.22 | AH16: 0.02 | AI16: 0.05 | AJ16: 0.05 | AK16: 0.00 | AL16: 0.00 | AM16: =AJ16/AK16 -> 5,963.58 | AN16: =AK16/AK16 -> 1.00 | AO16: =AL16/AK16 -> 12.08 | AP16: 0.00 | AQ16: 0.00 | AR16: yes
A17: TRINITY_DN48323_c1_g1 | B17: 1,238 | C17: TRINITY_DN48323_c1_g1_i1;TRINITY_DN48323_c1_g1_i10;TRINITY_DN48323_c1_g1_i11;TRINITY_DN48323_c1_g1_i12;TRINITY_DN48323_c1_g1_i13;TRINITY_DN48323_c1_g1_i14;TRINITY_DN48323_c1_g1_i2;TRINITY_DN48323_c1_g1_i3;TRINITY_DN48323_c1_g1_i4;TRINITY_DN48323_c1_g1_i5;TRINITY_DN48323_c1_g1_i6;TRINITY_DN48323_c1_g1_i7;TRINITY_DN48323_c1_g1_i8;TRINITY_DN48323_c1_g1_i9 | D17: - | E17: - | F17: - | G17: - | H17: - | I17: - | J17: - | K17: - | L17: - | M17: - | N17: - | O17: 0.00 | P17: 0.00 | Q17: 0.00 | R17: 1.00 | S17: 4.00 | T17: 3.00 | U17: 9,433.00 | V17: 4,398.00 | W17: 10,648.01 | X17: 0.00 | Y17: 0.00 | Z17: 0.00 | AA17: 0.04 | AB17: 0.33 | AC17: 0.15 | AD17: 606.38 | AE17: 314.81 | AF17: 783.94 | AG17: 0.00 | AH17: 0.17 | AI17: 568.38 | AJ17: 0.00 | AK17: 0.00 | AL17: 1.26 | AM17: =AJ17/AK17 -> 0.00 | AN17: =AK17/AK17 -> 1.00 | AO17: =AL17/AK17 -> 16,153.79 | AP17: 0.00 | AQ17: 0.00 | AR17: yes
A18: TRINITY_DN45033_c0_g2 | B18: 425 | C18: TRINITY_DN45033_c0_g2_i1 | D18: - | E18: - | F18: - | G18: - | H18: - | I18: - | J18: - | K18: - | L18: - | M18: - | N18: - | O18: 4.00 | P18: 0.00 | Q18: 0.00 | R18: 0.00 | S18: 0.00 | T18: 6.00 | U18: 47,555.80 | V18: 33,116.40 | W18: 45,623.00 | X18: 0.62 | Y18: 0.00 | Z18: 0.00 | AA18: 0.00 | AB18: 0.00 | AC18: 0.67 | AD18: 6,627.72 | AE18: 4,985.02 | AF18: 6,953.54 | AG18: 0.21 | AH18: 0.22 | AI18: 6,188.76 | AJ18: 0.00 | AK18: 0.00 | AL18: 13.68 | AM18: =AJ18/AK18 -> 1.29 | AN18: =AK18/AK18 -> 1.00 | AO18: =AL18/AK18 -> 135,914.39 | AP18: 0.00 | AQ18: 0.00 | AR18: yes
A19: TRINITY_DN43418_c0_g1 | B19: 1,367 | C19: TRINITY_DN43418_c0_g1_i1 | D19: yolk cathepsin, partial [Rhipicephalus microplus] | E19: PGA | F19: Pepsin A OS=Sorex unguiculatus GN=PGA PE=2 SV=1 | G19: GO:0004190(aspartic-type endopeptidase activity);GO:0006508(proteolysis) | H19: ENOG410XNV7(aspartic) | I19: K01379 | J19: cathepsin D | K19: EC:3.4.23.5 | L19: ame04142(Lysosome);ame04140(Autophagy - animal) | M19: S3CP58.1 PF00026.21;Asp; | N19: - | O19: 3,432.62 | P19: 2,595.00 | Q19: 3,112.67 | R19: 1.00 | S19: 3.00 | T19: 8.00 | U19: 0.00 | V19: 0.00 | W19: 1.00 | X19: 82.11 | Y19: 68.62 | Z19: 95.51 | AA19: 0.03 | AB19: 0.08 | AC19: 0.19 | AD19: 0.00 | AE19: 0.00 | AF19: 0.02 | AG19: 82.08 | AH19: 0.10 | AI19: 0.01 | AJ19: 0.05 | AK19: 0.00 | AL19: 0.00 | AM19: =AJ19/AL19 -> 2,296.80 | AN19: =AK19/AL19 -> 2.07 | AO19: =AL19/AL19 -> 1.00 | AP19: 0.00 | AQ19: 0.00 | AR19: yes
A20: TRINITY_DN41691_c0_g1 | B20: 786 | C20: TRINITY_DN41691_c0_g1_i1;TRINITY_DN41691_c0_g1_i2;TRINITY_DN41691_c0_g1_i3;TRINITY_DN41691_c0_g1_i4;TRINITY_DN41691_c0_g1_i5 | D20: secreted GGY protein, putative [Ixodes scapularis] | E20: - | F20: - | G20: - | H20: - | I20: - | J20: - | K20: - | L20: - | M20: - | N20: - | O20: 2.00 | P20: 1.00 | Q20: 3.00 | R20: 4.00 | S20: 3.00 | T20: 1.00 | U20: 7,294.00 | V20: 3,207.00 | W20: 6,809.00 | X20: 0.13 | Y20: 0.07 | Z20: 0.26 | AA20: 0.26 | AB20: 0.19 | AC20: 0.06 | AD20: 425.82 | AE20: 201.09 | AF20: 416.05 | AG20: 0.15 | AH20: 0.17 | AI20: 347.65 | AJ20: 0.00 | AK20: 0.00 | AL20: 0.77 | AM20: =AJ20/AK20 -> 1.19 | AN20: =AK20/AK20 -> 1.00 | AO20: =AL20/AK20 -> 9,880.47 | AP20: 0.00 | AQ20: 0.00 | AR20: yes
A21: TRINITY_DN45339_c0_g1 | B21: 1,235 | C21: TRINITY_DN45339_c0_g1_i1;TRINITY_DN45339_c0_g1_i2;TRINITY_DN45339_c0_g1_i3;TRINITY_DN45339_c0_g1_i4;TRINITY_DN45339_c0_g1_i5;TRINITY_DN45339_c0_g1_i6;TRINITY_DN45339_c0_g1_i7 | D21: - | E21: - | F21: - | G21: - | H21: - | I21: - | J21: - | K21: - | L21: - | M21: - | N21: - | O21: 0.00 | P21: 0.00 | Q21: 0.00 | R21: 0.00 | S21: 1.00 | T21: 1.00 | U21: 2,366.00 | V21: 4,380.42 | W21: 4,504.21 | X21: 0.00 | Y21: 0.00 | Z21: 0.00 | AA21: 0.00 | AB21: 0.05 | AC21: 0.12 | AD21: 316.19 | AE21: 665.07 | AF21: 631.67 | AG21: 0.00 | AH21: 0.06 | AI21: 537.64 | AJ21: 0.00 | AK21: 0.00 | AL21: 1.19 | AM21: =AJ21/AK21 -> 0.00 | AN21: =AK21/AK21 -> 1.00 | AO21: =AL21/AK21 -> 43,293.71 | AP21: 0.00 | AQ21: 0.00 | AR21: yes
A22: TRINITY_DN38918_c4_g1 | B22: 579 | C22: TRINITY_DN38918_c4_g1_i1;TRINITY_DN38918_c4_g1_i2;TRINITY_DN38918_c4_g1_i3;TRINITY_DN38918_c4_g1_i4;TRINITY_DN38918_c4_g1_i5;TRINITY_DN38918_c4_g1_i6;TRINITY_DN38918_c4_g1_i7 | D22: - | E22: - | F22: - | G22: - | H22: - | I22: - | J22: - | K22: - | L22: - | M22: - | N22: - | O22: 4,694.71 | P22: 2,946.00 | Q22: 2,551.00 | R22: 0.00 | S22: 0.00 | T22: 2.37 | U22: 0.00 | V22: 3.00 | W22: 3.16 | X22: 711.37 | Y22: 588.05 | Z22: 723.77 | AA22: 0.00 | AB22: 0.00 | AC22: 0.38 | AD22: 0.00 | AE22: 0.26 | AF22: 0.46 | AG22: 674.40 | AH22: 0.13 | AI22: 0.24 | AJ22: 0.42 | AK22: 0.00 | AL22: 0.00 | AM22: =AJ22/AK22 -> 7,013.66 | AN22: =AK22/AK22 -> 1.00 | AO22: =AL22/AK22 -> 8.92 | AP22: 0.00 | AQ22: 0.00 | AR22: yes
A23: TRINITY_DN57762_c1_g1 | B23: 4,908 | C23: TRINITY_DN57762_c1_g1_i1;TRINITY_DN57762_c1_g1_i2;TRINITY_DN57762_c1_g1_i3;TRINITY_DN57762_c1_g1_i4;TRINITY_DN57762_c1_g1_i5;TRINITY_DN57762_c1_g1_i6 | D23: vitellogenin [Dermacentor variabilis] | E23: - | F23: - | G23: - | H23: ENOG4110M1Q(Vitellogenin) | I23: - | J23: - | K23: - | L23: - | M23: B7QJ67.1 PF00094.23;VWD; | N23: - | O23: 564,843.27 | P23: 143,347.31 | Q23: 217,220.62 | R23: 3.00 | S23: 11.00 | T23: 15.00 | U23: 16.00 | V23: 15.00 | W23: 4.00 | X23: 5,470.74 | Y23: 1,337.67 | Z23: 2,732.43 | AA23: 0.02 | AB23: 0.07 | AC23: 0.09 | AD23: 0.09 | AE23: 0.09 | AF23: 0.02 | AG23: 3,180.28 | AH23: 0.06 | AI23: 0.07 | AJ23: 1.97 | AK23: 0.00 | AL23: 0.00 | AM23: =AJ23/AK23 -> 71,661.25 | AN23: =AK23/AK23 -> 1.00 | AO23: =AL23/AK23 -> 5.64 | AP23: 0.00 | AQ23: 0.00 | AR23: yes
A24: TRINITY_DN56458_c0_g1 | B24: 1,614 | C24: TRINITY_DN56458_c0_g1_i1;TRINITY_DN56458_c0_g1_i10;TRINITY_DN56458_c0_g1_i11;TRINITY_DN56458_c0_g1_i12;TRINITY_DN56458_c0_g1_i13;TRINITY_DN56458_c0_g1_i14;TRINITY_DN56458_c0_g1_i2;TRINITY_DN56458_c0_g1_i3;TRINITY_DN56458_c0_g1_i4;TRINITY_DN56458_c0_g1_i5;TRINITY_DN56458_c0_g1_i6;TRINITY_DN56458_c0_g1_i7;TRINITY_DN56458_c0_g1_i8;TRINITY_DN56458_c0_g1_i9 | D24: yolk cathepsin, partial [Rhipicephalus microplus] | E24: Ctsd | F24: Cathepsin D OS=Mus musculus GN=Ctsd PE=1 SV=1 | G24: GO:0000045(autophagosome assembly);GO:0004175(endopeptidase activity);GO:0004190(aspartic-type endopeptidase activity);GO:0005576(extracellular region);GO:0005615(extracellular space);GO:0005739(mitochondrion);GO:0005764(lysosome);GO:0006508(proteolysis);GO:0008233(peptidase activity);GO:0016787(hydrolase activity);GO:0030163(protein catabolic process);GO:0031012(extracellular matrix);GO:0042277(peptide binding);GO:0045121(membrane raft);GO:0060441(epithelial tube branching involved in lung morphogenesis) | H24: ENOG410XNV7(aspartic) | I24: K01379 | J24: cathepsin D | K24: EC:3.4.23.5 | L24: ngi04071(Sphingolipid signaling pathway);ngi04142(Lysosome);ngi04140(Autophagy - animal);ngi04210(Apoptosis);ngi04915(Estrogen signaling pathway);ngi05152(Tuberculosis) | M24: A0A0N0E0P6.1 PF00026.21;Asp; | N24: - | O24: 9,031.23 | P24: 5,687.22 | Q24: 4,475.00 | R24: 2.00 | S24: 0.00 | T24: 5.00 | U24: 3.00 | V24: 3.00 | W24: 0.00 | X24: 177.07 | Y24: 125.46 | Z24: 113.17 | AA24: 0.05 | AB24: 0.00 | AC24: 0.10 | AD24: 0.07 | AE24: 0.06 | AF24: 0.00 | AG24: 138.57 | AH24: 0.05 | AI24: 0.04 | AJ24: 0.09 | AK24: 0.00 | AL24: 0.00 | AM24: =AJ24/AK24 -> 3,746.88 | AN24: =AK24/AK24 -> 1.00 | AO24: =AL24/AK24 -> 3.87 | AP24: 0.00 | AQ24: 0.00 | AR24: yes
A25: TRINITY_DN45408_c1_g2 | B25: 827 | C25: TRINITY_DN45408_c1_g2_i1;TRINITY_DN45408_c1_g2_i2 | D25: - | E25: - | F25: - | G25: - | H25: - | I25: - | J25: - | K25: - | L25: - | M25: - | N25: - | O25: 0.00 | P25: 0.00 | Q25: 0.00 | R25: 0.00 | S25: 0.00 | T25: 0.00 | U25: 67,492.96 | V25: 31,890.66 | W25: 131,071.81 | X25: 0.00 | Y25: 0.00 | Z25: 0.00 | AA25: 0.00 | AB25: 0.00 | AC25: 0.00 | AD25: 3,206.74 | AE25: 1,608.94 | AF25: 6,282.98 | AG25: 0.00 | AH25: 0.00 | AI25: 3,699.55 | AJ25: 0.00 | AK25: 0.00 | AL25: 8.18 | AM25: =AJ25/AL25 -> 0.00 | AN25: =AK25/AL25 -> 0.00 | AO25: =AL25/AL25 -> 1.00 | AP25: 0.00 | AQ25: 0.00 | AR25: yes
A26: TRINITY_DN50182_c0_g1 | B26: 537 | C26: TRINITY_DN50182_c0_g1_i1;TRINITY_DN50182_c0_g1_i2;TRINITY_DN50182_c0_g1_i3;TRINITY_DN50182_c0_g1_i4;TRINITY_DN50182_c0_g1_i5 | D26: - | E26: - | F26: - | G26: - | H26: - | I26: - | J26: - | K26: - | L26: - | M26: - | N26: - | O26: 0.00 | P26: 0.00 | Q26: 0.00 | R26: 4.00 | S26: 10.00 | T26: 10.00 | U26: 3,480.00 | V26: 2,513.99 | W26: 3,086.99 | X26: 0.00 | Y26: 0.00 | Z26: 0.00 | AA26: 0.36 | AB26: 0.96 | AC26: 0.83 | AD26: 327.69 | AE26: 267.47 | AF26: 313.64 | AG26: 0.00 | AH26: 0.72 | AI26: 302.93 | AJ26: 0.00 | AK26: 0.00 | AL26: 0.67 | AM26: =AJ26/AK26 -> 0.00 | AN26: =AK26/AK26 -> 1.00 | AO26: =AL26/AK26 -> 2,032.80 | AP26: 0.00 | AQ26: 0.00 | AR26: yes
A27: TRINITY_DN57971_c1_g1 | B27: 4,392 | C27: TRINITY_DN57971_c1_g1_i1 | D27: vitellogenin-2 precursor [Dermacentor variabilis] | E27: - | F27: - | G27: - | H27: - | I27: - | J27: - | K27: - | L27: - | M27: B7Q7E5.1 PF01347.20;Vitellogenin_N; | N27: - | O27: 437,874.00 | P27: 100,756.00 | Q27: 181,901.00 | R27: 29.00 | S27: 21.00 | T27: 64.00 | U27: 29.00 | V27: 19.00 | W27: 30.00 | X27: 2,763.81 | Y27: 701.41 | Z27: 1,451.69 | AA27: 0.22 | AB27: 0.16 | AC27: 0.43 | AD27: 0.17 | AE27: 0.12 | AF27: 0.18 | AG27: 1,638.97 | AH27: 0.27 | AI27: 0.16 | AJ27: 1.01 | AK27: 0.00 | AL27: 0.00 | AM27: =AJ27/AK27 -> 8,206.87 | AN27: =AK27/AK27 -> 1.00 | AO27: =AL27/AK27 -> 2.86 | AP27: 0.00 | AQ27: 0.00 | AR27: yes
A28: TRINITY_DN53865_c1_g2 | B28: 1,235 | C28: TRINITY_DN53865_c1_g2_i1;TRINITY_DN53865_c1_g2_i2;TRINITY_DN53865_c1_g2_i3;TRINITY_DN53865_c1_g2_i4;TRINITY_DN53865_c1_g2_i5;TRINITY_DN53865_c1_g2_i6;TRINITY_DN53865_c1_g2_i7 | D28: - | E28: - | F28: - | G28: - | H28: - | I28: - | J28: - | K28: - | L28: - | M28: - | N28: - | O28: 0.00 | P28: 0.00 | Q28: 0.00 | R28: 0.00 | S28: 1.00 | T28: 0.00 | U28: 2,788.00 | V28: 1,965.00 | W28: 2,332.00 | X28: 0.00 | Y28: 0.00 | Z28: 0.00 | AA28: 0.00 | AB28: 0.03 | AC28: 0.00 | AD28: 592.74 | AE28: 469.32 | AF28: 449.99 | AG28: 0.00 | AH28: 0.01 | AI28: 504.02 | AJ28: 0.00 | AK28: 0.00 | AL28: 1.11 | AM28: =AJ28/AK28 -> 0.00 | AN28: =AK28/AK28 -> 1.00 | AO28: =AL28/AK28 -> 243,518.66 | AP28: 0.00 | AQ28: 0.00 | AR28: yes
A29: TRINITY_DN44231_c0_g1 | B29: 891 | C29: TRINITY_DN44231_c0_g1_i1;TRINITY_DN44231_c0_g1_i2;TRINITY_DN44231_c0_g1_i3;TRINITY_DN44231_c0_g1_i4;TRINITY_DN44231_c0_g1_i5;TRINITY_DN44231_c0_g1_i6;TRINITY_DN44231_c0_g1_i7;TRINITY_DN44231_c0_g1_i8 | D29: - | E29: - | F29: - | G29: - | H29: - | I29: - | J29: - | K29: - | L29: - | M29: - | N29: - | O29: 3.00 | P29: 0.00 | Q29: 0.00 | R29: 3.00 | S29: 9.00 | T29: 19.00 | U29: 28,716.02 | V29: 15,233.97 | W29: 32,587.00 | X29: 0.94 | Y29: 0.00 | Z29: 0.00 | AA29: 0.68 | AB29: 2.05 | AC29: 3.90 | AD29: 7,822.62 | AE29: 4,427.59 | AF29: 10,018.17 | AG29: 0.31 | AH29: 2.21 | AI29: 7,422.79 | AJ29: 0.00 | AK29: 0.00 | AL29: 16.41 | AM29: =AJ29/AJ29 -> 1.00 | AN29: =AK29/AJ29 -> 5.27 | AO29: =AL29/AJ29 -> 85,569.63 | AP29: 0.00 | AQ29: 0.00 | AR29: yes
A30: TRINITY_DN41784_c0_g4 | B30: 770 | C30: TRINITY_DN41784_c0_g4_i1;TRINITY_DN41784_c0_g4_i2;TRINITY_DN41784_c0_g4_i3;TRINITY_DN41784_c0_g4_i4 | D30: - | E30: - | F30: - | G30: - | H30: - | I30: - | J30: - | K30: - | L30: - | M30: - | N30: - | O30: 31,547.01 | P30: 16,274.49 | Q30: 8,258.83 | R30: 0.00 | S30: 0.00 | T30: 0.00 | U30: 0.00 | V30: 0.00 | W30: 0.00 | X30: 3,175.68 | Y30: 1,895.28 | Z30: 1,188.02 | AA30: 0.00 | AB30: 0.00 | AC30: 0.00 | AD30: 0.00 | AE30: 0.00 | AF30: 0.00 | AG30: 2,086.33 | AH30: 0.00 | AI30: 0.00 | AJ30: 1.29 | AK30: 0.00 | AL30: 0.00 | AM30: =AJ30/AJ30 -> 1.00 | AN30: =AK30/AJ30 -> 0.00 | AO30: =AL30/AJ30 -> 0.00 | AP30: 0.00 | AQ30: 0.00 | AR30: yes
A31: TRINITY_DN34900_c0_g4 | B31: 758 | C31: TRINITY_DN34900_c0_g4_i1;TRINITY_DN34900_c0_g4_i2;TRINITY_DN34900_c0_g4_i3 | D31: - | E31: - | F31: - | G31: - | H31: - | I31: - | J31: - | K31: - | L31: - | M31: - | N31: - | O31: 0.00 | P31: 0.00 | Q31: 0.00 | R31: 0.00 | S31: 1.00 | T31: 3.00 | U31: 3,973.46 | V31: 2,146.17 | W31: 4,082.31 | X31: 0.00 | Y31: 0.00 | Z31: 0.00 | AA31: 0.00 | AB31: 0.15 | AC31: 0.41 | AD31: 414.78 | AE31: 227.78 | AF31: 448.67 | AG31: 0.00 | AH31: 0.19 | AI31: 363.74 | AJ31: 0.00 | AK31: 0.00 | AL31: 0.80 | AM31: =AJ31/AK31 -> 0.00 | AN31: =AK31/AK31 -> 1.00 | AO31: =AL31/AK31 -> 9,249.58 | AP31: 0.00 | AQ31: 0.00 | AR31: yes
A32: TRINITY_DN34514_c1_g1 | B32: 1,729 | C32: TRINITY_DN34514_c1_g1_i1;TRINITY_DN34514_c1_g1_i2;TRINITY_DN34514_c1_g1_i3;TRINITY_DN34514_c1_g1_i4 | D32: - | E32: - | F32: - | G32: - | H32: - | I32: - | J32: - | K32: - | L32: - | M32: - | N32: - | O32: 0.00 | P32: 0.00 | Q32: 0.00 | R32: 1.00 | S32: 0.00 | T32: 2.00 | U32: 4,444.99 | V32: 12,842.98 | W32: 11,602.99 | X32: 0.00 | Y32: 0.00 | Z32: 0.00 | AA32: 0.02 | AB32: 0.00 | AC32: 0.16 | AD32: 367.49 | AE32: 1,209.48 | AF32: 1,030.11 | AG32: 0.00 | AH32: 0.06 | AI32: 869.03 | AJ32: 0.00 | AK32: 0.00 | AL32: 1.92 | AM32: 0.00 | AN32: 1.00 | AO32: 69,979.04 | AP32: 0.00 | AQ32: 0.00 | AR32: yes
A33: TRINITY_DN53951_c0_g1 | B33: 1,496 | C33: TRINITY_DN53951_c0_g1_i1;TRINITY_DN53951_c0_g1_i2;TRINITY_DN53951_c0_g1_i3;TRINITY_DN53951_c0_g1_i4;TRINITY_DN53951_c0_g1_i5;TRINITY_DN53951_c0_g1_i6;TRINITY_DN53951_c0_g1_i7 | D33: - | E33: - | F33: - | G33: - | H33: - | I33: - | J33: - | K33: - | L33: - | M33: - | N33: - | O33: 7,961.00 | P33: 7,961.99 | Q33: 15,057.02 | R33: 0.00 | S33: 0.00 | T33: 2.00 | U33: 6.00 | V33: 0.00 | W33: 1.00 | X33: 244.95 | Y33: 382.93 | Z33: 560.73 | AA33: 0.00 | AB33: 0.00 | AC33: 0.06 | AD33: 0.16 | AE33: 0.00 | AF33: 0.04 | AG33: 396.20 | AH33: 0.02 | AI33: 0.07 | AJ33: 0.25 | AK33: 0.00 | AL33: 0.00 | AM33: 26,782.72 | AN33: 1.00 | AO33: 16.91 | AP33: 0.00 | AQ33: 0.00 | AR33: yes
A34: TRINITY_DN51419_c0_g1 | B34: 2,208 | C34: TRINITY_DN51419_c0_g1_i1;TRINITY_DN51419_c0_g1_i10;TRINITY_DN51419_c0_g1_i11;TRINITY_DN51419_c0_g1_i12;TRINITY_DN51419_c0_g1_i13;TRINITY_DN51419_c0_g1_i14;TRINITY_DN51419_c0_g1_i15;TRINITY_DN51419_c0_g1_i2;TRINITY_DN51419_c0_g1_i3;TRINITY_DN51419_c0_g1_i4;TRINITY_DN51419_c0_g1_i5;TRINITY_DN51419_c0_g1_i6;TRINITY_DN51419_c0_g1_i7;TRINITY_DN51419_c0_g1_i8;TRINITY_DN51419_c0_g1_i9 | D34: yolk cathepsin, partial [Rhipicephalus microplus] | E34: REN | F34: Renin OS=Macaca mulatta GN=REN PE=2 SV=2 | G34: GO:0004190(aspartic-type endopeptidase activity);GO:0006508(proteolysis);GO:0030163(protein catabolic process) | H34: ENOG410XNV7(aspartic) | I34: K01382 | J34: cathepsin E | K34: EC:3.4.23.34 | L34: ccan04142(Lysosome) | M34: V7BT08.1 PF00026.21;Asp; | N34: - | O34: 3,728.00 | P34: 2,194.00 | Q34: 1,822.00 | R34: 2.00 | S34: 3.00 | T34: 2.00 | U34: 0.00 | V34: 0.00 | W34: 0.00 | X34: 112.42 | Y34: 61.87 | Z34: 94.68 | AA34: 0.08 | AB34: 0.13 | AC34: 0.36 | AD34: 0.00 | AE34: 0.00 | AF34: 0.00 | AG34: 89.66 | AH34: 0.19 | AI34: 0.00 | AJ34: 0.06 | AK34: 0.00 | AL34: 0.00 | AM34: 637.99 | AN34: 1.00 | AO34: 0.00 | AP34: 0.00 | AQ34: 0.00 | AR34: yes
A35: TRINITY_DN40766_c0_g8 | B35: 508 | C35: TRINITY_DN40766_c0_g8_i1 | D35: - | E35: - | F35: - | G35: - | H35: - | I35: - | J35: - | K35: - | L35: - | M35: - | N35: - | O35: 0.00 | P35: 0.00 | Q35: 0.00 | R35: 0.00 | S35: 3.00 | T35: 2.87 | U35: 3,191.23 | V35: 2,082.32 | W35: 2,629.67 | X35: 0.00 | Y35: 0.00 | Z35: 0.00 | AA35: 0.00 | AB35: 0.28 | AC35: 0.24 | AD35: 311.87 | AE35: 219.38 | AF35: 277.23 | AG35: 0.00 | AH35: 0.17 | AI35: 269.49 | AJ35: 0.00 | AK35: 0.00 | AL35: 0.60 | AM35: 0.00 | AN35: 1.00 | AO35: 7,659.11 | AP35: 0.00 | AQ35: 0.00 | AR35: yes
A36: TRINITY_DN53737_c0_g7 | B36: 1,584 | C36: TRINITY_DN53737_c0_g7_i1;TRINITY_DN53737_c0_g7_i2;TRINITY_DN53737_c0_g7_i3;TRINITY_DN53737_c0_g7_i4 | D36: beta-glucocerebrosidase, putative [Ixodes scapularis] | E36: GBA | F36: Glucosylceramidase OS=Homo sapiens GN=GBA PE=1 SV=3 | G36: GO:0004348(glucosylceramidase activity);GO:0005764(lysosome);GO:0006629(lipid metabolic process);GO:0006665(sphingolipid metabolic process);GO:0006680(glucosylceramide catabolic process);GO:0008152(metabolic process);GO:0016787(hydrolase activity);GO:0016798(hydrolase activity, acting on glycosyl bonds);GO:0030278(regulation of ossification);GO:0036268(swimming);GO:0070050(neuron cellular homeostasis) | H36: COG5520(glucosylceramidase activity) | I36: K01201 | J36: glucosylceramidase | K36: EC:3.2.1.45 | L36: isc00600(Sphingolipid metabolism);isc00511(Other glycan degradation);isc04142(Lysosome) | M36: B7PK21.1 PF02055.14;Glyco_hydro_30; | N36: - | O36: 10,391.00 | P36: 9,988.00 | Q36: 13,737.00 | R36: 0.00 | S36: 10.00 | T36: 4.00 | U36: 2.00 | V36: 5.00 | W36: 1.00 | X36: 344.37 | Y36: 612.03 | Z36: 527.50 | AA36: 0.00 | AB36: 0.55 | AC36: 0.08 | AD36: 0.04 | AE36: 0.10 | AF36: 0.02 | AG36: 494.63 | AH36: 0.21 | AI36: 0.05 | AJ36: 0.31 | AK36: 0.00 | AL36: 0.00 | AM36: 3,184.43 | AN36: 1.00 | AO36: 1.15 | AP36: 0.00 | AQ36: 0.00 | AR36: yes
A37: TRINITY_DN48032_c1_g1 | B37: 3,115 | C37: TRINITY_DN48032_c1_g1_i1;TRINITY_DN48032_c1_g1_i2;TRINITY_DN48032_c1_g1_i3;TRINITY_DN48032_c1_g1_i4;TRINITY_DN48032_c1_g1_i5 | D37: secreted salivary gland peptide, putative [Ixodes scapularis] | E37: - | F37: - | G37: - | H37: - | I37: - | J37: - | K37: - | L37: - | M37: - | N37: - | O37: 0.00 | P37: 0.00 | Q37: 0.00 | R37: 0.00 | S37: 2.00 | T37: 0.00 | U37: 18,470.61 | V37: 4,118.91 | W37: 16,120.41 | X37: 0.00 | Y37: 0.00 | Z37: 0.00 | AA37: 0.00 | AB37: 0.07 | AC37: 0.00 | AD37: 528.41 | AE37: 131.80 | AF37: 512.78 | AG37: 0.00 | AH37: 0.02 | AI37: 391.00 | AJ37: 0.00 | AK37: 0.00 | AL37: 0.86 | AM37: 0.00 | AN37: 1.00 | AO37: 94,456.37 | AP37: 0.00 | AQ37: 0.00 | AR37: yes
A38: TRINITY_DN54086_c1_g3 | B38: 2,266 | C38: TRINITY_DN54086_c1_g3_i1;TRINITY_DN54086_c1_g3_i2;TRINITY_DN54086_c1_g3_i3;TRINITY_DN54086_c1_g3_i4 | D38: conserved hypothetical protein [Ixodes scapularis] | E38: - | F38: Cuticle protein 16.8 OS=Ixodes ricinus PE=1 SV=1 | G38: GO:0005615(extracellular space) | H38: ENOG410Y0B9(Cuticle protein) | I38: - | J38: - | K38: - | L38: - | M38: B7P5Q2.1 PF00379.21;Chitin_bind_4; | N38: - | O38: 0.00 | P38: 0.00 | Q38: 1.00 | R38: 2.00 | S38: 1.00 | T38: 8.00 | U38: 9,842.01 | V38: 4,455.00 | W38: 13,811.00 | X38: 0.00 | Y38: 0.00 | Z38: 0.02 | AA38: 0.03 | AB38: 0.02 | AC38: 0.11 | AD38: 127.46 | AE38: 69.82 | AF38: 203.84 | AG38: 0.01 | AH38: 0.05 | AI38: 133.71 | AJ38: 0.00 | AK38: 0.00 | AL38: 0.30 | AM38: =AJ38/AJ38 -> 1.00 | AN38: =AK38/AJ38 -> 3.70 | AO38: =AL38/AJ38 -> 47,783.51 | AP38: 0.00 | AQ38: 0.00 | AR38: yes
A39: TRINITY_DN45408_c1_g3 | B39: 2,217 | C39: TRINITY_DN45408_c1_g3_i1;TRINITY_DN45408_c1_g3_i2 | D39: - | E39: - | F39: - | G39: - | H39: - | I39: - | J39: - | K39: - | L39: - | M39: - | N39: - | O39: 3.00 | P39: 2.03 | Q39: 4.00 | R39: 5.00 | S39: 6.00 | T39: 3.00 | U39: 5,847.01 | V39: 3,005.35 | W39: 9,961.04 | X39: 0.04 | Y39: 0.03 | Z39: 0.07 | AA39: 0.20 | AB39: 0.09 | AC39: 0.04 | AD39: 84.77 | AE39: 44.29 | AF39: 141.53 | AG39: 0.05 | AH39: 0.11 | AI39: 90.20 | AJ39: 0.00 | AK39: 0.00 | AL39: 0.20 | AM39: =AJ39/AJ39 -> 1.00 | AN39: =AK39/AJ39 -> 1.63 | AO39: =AL39/AJ39 -> 6,446.90 | AP39: 0.00 | AQ39: 0.00 | AR39: yes
A40: TRINITY_DN48323_c0_g1 | B40: 639 | C40: TRINITY_DN48323_c0_g1_i1;TRINITY_DN48323_c0_g1_i2;TRINITY_DN48323_c0_g1_i3;TRINITY_DN48323_c0_g1_i4;TRINITY_DN48323_c0_g1_i5;TRINITY_DN48323_c0_g1_i6 | D40: - | E40: - | F40: - | G40: - | H40: - | I40: - | J40: - | K40: - | L40: - | M40: - | N40: - | O40: 9.00 | P40: 0.00 | Q40: 0.00 | R40: 1.00 | S40: 2.00 | T40: 2.00 | U40: 11,442.09 | V40: 10,345.67 | W40: 14,688.33 | X40: 0.64 | Y40: 0.00 | Z40: 0.00 | AA40: 0.08 | AB40: 0.15 | AC40: 0.12 | AD40: 823.27 | AE40: 837.30 | AF40: 1,132.42 | AG40: 0.21 | AH40: 0.12 | AI40: 931.00 | AJ40: 0.00 | AK40: 0.00 | AL40: 2.06 | AM40: =AJ40/AK40 -> 2.37 | AN40: =AK40/AK40 -> 1.00 | AO40: =AL40/AK40 -> 37,484.60 | AP40: 0.00 | AQ40: 0.00 | AR40: yes
A41: TRINITY_DN51113_c3_g1 | B41: 484 | C41: TRINITY_DN51113_c3_g1_i1;TRINITY_DN51113_c3_g1_i2;TRINITY_DN51113_c3_g1_i3;TRINITY_DN51113_c3_g1_i4 | D41: - | E41: - | F41: - | G41: - | H41: - | I41: - | J41: - | K41: - | L41: - | M41: - | N41: - | O41: 9,061.25 | P41: 5,674.79 | Q41: 2,012.00 | R41: 0.00 | S41: 1.00 | T41: 1.00 | U41: 1.00 | V41: 0.00 | W41: 1.18 | X41: 1,428.51 | Y41: 989.51 | Z41: 455.78 | AA41: 0.00 | AB41: 0.22 | AC41: 0.10 | AD41: 0.27 | AE41: 0.00 | AF41: 0.41 | AG41: 957.93 | AH41: 0.11 | AI41: 0.23 | AJ41: 0.59 | AK41: 0.00 | AL41: 0.00 | AM41: =AJ41/AK41 -> 11,773.66 | AN41: =AK41/AK41 -> 1.00 | AO41: =AL41/AK41 -> 10.10 | AP41: 0.00 | AQ41: 0.00 | AR41: yes
A42: TRINITY_DN33735_c1_g3 | B42: 276 | C42: TRINITY_DN33735_c1_g3_i1 | D42: PREDICTED: uncharacterized protein LOC105078493 [Camelus bactrianus] | E42: - | F42: - | G42: GO:0005802(trans-Golgi network);GO:0032438(melanosome organization);GO:0042470(melanosome);GO:0072657(protein localization to membrane) | H42: COG1100(GTP-binding Protein) | I42: K00109 | J42: 2-hydroxyglutarate dehydrogenase | K42: EC:1.1.99.2 | L42: gja00650(Butanoate metabolism) | M42: - | N42: - | O42: 1.00 | P42: 7.71 | Q42: 8.96 | R42: 1.28 | S42: 2.42 | T42: 1.06 | U42: 2,883.00 | V42: 3,156.00 | W42: 3,539.00 | X42: 0.39 | Y42: 3.50 | Z42: 5.19 | AA42: 0.35 | AB42: 0.68 | AC42: 0.27 | AD42: 1,027.86 | AE42: 1,216.04 | AF42: 1,403.42 | AG42: 3.03 | AH42: 0.43 | AI42: 1,215.77 | AJ42: 0.00 | AK42: 0.00 | AL42: 2.69 | AM42: =AJ42/AK42 -> 9.53 | AN42: =AK42/AK42 -> 1.00 | AO42: =AL42/AK42 -> 13,660.53 | AP42: 0.00 | AQ42: 0.00 | AR42: yes
A43: TRINITY_DN44197_c0_g5 | B43: 596 | C43: TRINITY_DN44197_c0_g5_i1;TRINITY_DN44197_c0_g5_i2 | D43: - | E43: - | F43: - | G43: - | H43: - | I43: - | J43: - | K43: - | L43: - | M43: - | N43: - | O43: 9,000.32 | P43: 2,612.58 | Q43: 4,256.00 | R43: 0.00 | S43: 0.00 | T43: 0.00 | U43: 0.00 | V43: 0.00 | W43: 0.00 | X43: 715.70 | Y43: 231.55 | Z43: 455.15 | AA43: 0.00 | AB43: 0.00 | AC43: 0.00 | AD43: 0.00 | AE43: 0.00 | AF43: 0.00 | AG43: 467.47 | AH43: 0.00 | AI43: 0.00 | AJ43: 0.29 | AK43: 0.00 | AL43: 0.00 | AM43: =AJ43/AJ43 -> 1.00 | AN43: =AK43/AJ43 -> 0.00 | AO43: =AL43/AJ43 -> 0.00 | AP43: 0.00 | AQ43: 0.00 | AR43: yes
A44: TRINITY_DN36019_c4_g3 | B44: 1,288 | C44: TRINITY_DN36019_c4_g3_i1;TRINITY_DN36019_c4_g3_i2 | D44: heme-binding aspartic proteinase, partial [Rhipicephalus microplus] | E44: AAEL006169 | F44: Lysosomal aspartic protease OS=Aedes aegypti GN=AAEL006169 PE=1 SV=2 | G44: GO:0004190(aspartic-type endopeptidase activity);GO:0005615(extracellular space);GO:0005764(lysosome);GO:0006508(proteolysis);GO:0030163(protein catabolic process) | H44: ENOG410XNV7(aspartic) | I44: K01379 | J44: cathepsin D | K44: EC:3.4.23.5 | L44: nfu04142(Lysosome);nfu04140(Autophagy - animal);nfu04210(Apoptosis) | M44: U4USP0.1 PF00026.21;Asp; | N44: - | O44: 8,870.00 | P44: 1,931.00 | Q44: 4,676.00 | R44: 1.00 | S44: 2.00 | T44: 1.00 | U44: 1.00 | V44: 0.00 | W44: 1.00 | X44: 228.46 | Y44: 55.29 | Z44: 155.27 | AA44: 0.11 | AB44: 0.11 | AC44: 0.10 | AD44: 0.12 | AE44: 0.00 | AF44: 0.02 | AG44: 146.34 | AH44: 0.11 | AI44: 0.05 | AJ44: 0.09 | AK44: 0.00 | AL44: 0.00 | AM44: =AJ44/AK44 -> 1,798.63 | AN44: =AK44/AK44 -> 1.00 | AO44: =AL44/AK44 -> 2.20 | AP44: 0.00 | AQ44: 0.00 | AR44: yes
A45: TRINITY_DN36434_c2_g1 | B45: 433 | C45: TRINITY_DN36434_c2_g1_i1 | D45: - | E45: - | F45: - | G45: - | H45: - | I45: - | J45: - | K45: - | L45: - | M45: - | N45: - | O45: 3,655.76 | P45: 3,989.18 | Q45: 1,538.85 | R45: 0.00 | S45: 0.00 | T45: 0.00 | U45: 0.00 | V45: 0.00 | W45: 0.00 | X45: 545.65 | Y45: 674.95 | Z45: 324.67 | AA45: 0.00 | AB45: 0.00 | AC45: 0.00 | AD45: 0.00 | AE45: 0.00 | AF45: 0.00 | AG45: 515.09 | AH45: 0.00 | AI45: 0.00 | AJ45: 0.32 | AK45: 0.00 | AL45: 0.00 | AM45: =AJ45/AJ45 -> 1.00 | AN45: =AK45/AJ45 -> 0.00 | AO45: =AL45/AJ45 -> 0.00 | AP45: 0.00 | AQ45: 0.00 | AR45: yes
A46: TRINITY_DN42487_c0_g2 | B46: 991 | C46: TRINITY_DN42487_c0_g2_i1;TRINITY_DN42487_c0_g2_i2 | D46: uncharacterized protein K02A2.6-like [Astatotilapia calliptera] | E46: - | F46: - | G46: - | H46: COG2801(Retrotransposon protein) | I46: - | J46: - | K46: - | L46: - | M46: - | N46: - | O46: 3.00 | P46: 4.00 | Q46: 0.00 | R46: 0.00 | S46: 0.00 | T46: 0.00 | U46: 5,107.00 | V46: 3,032.00 | W46: 9,750.99 | X46: 0.11 | Y46: 0.16 | Z46: 0.00 | AA46: 0.00 | AB46: 0.00 | AC46: 0.00 | AD46: 478.53 | AE46: 291.21 | AF46: 740.60 | AG46: 0.09 | AH46: 0.00 | AI46: 503.45 | AJ46: 0.00 | AK46: 0.00 | AL46: 1.11 | AM46: =AJ46/AJ46 -> 1.00 | AN46: =AK46/AJ46 -> 0.00 | AO46: =AL46/AJ46 -> 19,990.70 | AP46: 0.00 | AQ46: 0.00 | AR46: yes
A47: TRINITY_DN33933_c0_g3 | B47: 985 | C47: TRINITY_DN33933_c0_g3_i1 | D47: secreted protein, putative [Ixodes scapularis] | E47: - | F47: - | G47: - | H47: - | I47: - | J47: - | K47: - | L47: - | M47: - | N47: - | O47: 2,667.00 | P47: 2,937.00 | Q47: 1,958.00 | R47: 2.00 | S47: 1.00 | T47: 7.00 | U47: 0.00 | V47: 3.00 | W47: 0.00 | X47: 96.94 | Y47: 118.20 | Z47: 92.23 | AA47: 0.08 | AB47: 0.04 | AC47: 0.24 | AD47: 0.00 | AE47: 0.11 | AF47: 0.00 | AG47: 102.46 | AH47: 0.12 | AI47: 0.04 | AJ47: 0.06 | AK47: 0.00 | AL47: 0.00 | AM47: =AJ47/AK47 -> 1,154.37 | AN47: =AK47/AK47 -> 1.00 | AO47: =AL47/AK47 -> 1.61 | AP47: 0.00 | AQ47: 0.00 | AR47: yes
A48: TRINITY_DN35967_c0_g2 | B48: 1,106 | C48: TRINITY_DN35967_c0_g2_i1;TRINITY_DN35967_c0_g2_i2;TRINITY_DN35967_c0_g2_i3 | D48: - | E48: - | F48: - | G48: - | H48: - | I48: - | J48: - | K48: - | L48: - | M48: - | N48: - | O48: 0.00 | P48: 1.00 | Q48: 9.00 | R48: 8.00 | S48: 7.00 | T48: 5.00 | U48: 13,523.00 | V48: 11,196.00 | W48: 23,649.98 | X48: 0.00 | Y48: 0.03 | Z48: 2.02 | AA48: 0.68 | AB48: 0.59 | AC48: 0.99 | AD48: 2,096.10 | AE48: 1,768.68 | AF48: 3,580.60 | AG48: 0.68 | AH48: 0.75 | AI48: 2,481.79 | AJ48: 0.00 | AK48: 0.00 | AL48: 5.49 | AM48: =AJ48/AK48 -> 1.23 | AN48: =AK48/AK48 -> 1.00 | AO48: =AL48/AK48 -> 15,987.78 | AP48: 0.00 | AQ48: 0.00 | AR48: yes
A49: TRINITY_DN37939_c0_g3 | B49: 925 | C49: TRINITY_DN37939_c0_g3_i1 | D49: calphotin-like [Varroa destructor] | E49: - | F49: Adult-specific rigid cuticular protein 15.7 OS=Araneus diadematus PE=1 SV=1 | G49: GO:0005615(extracellular space) | H49: ENOG4112DDP(Cuticular protein) | I49: - | J49: - | K49: - | L49: - | M49: T1JT45.1 PF00379.21;Chitin_bind_4; | N49: - | O49: 2.00 | P49: 0.00 | Q49: 0.00 | R49: 350.00 | S49: 481.00 | T49: 493.00 | U49: 13,213.00 | V49: 11,880.00 | W49: 7,905.00 | X49: 0.08 | Y49: 0.00 | Z49: 0.00 | AA49: 14.86 | AB49: 20.07 | AC49: 18.47 | AD49: 492.01 | AE49: 476.50 | AF49: 305.72 | AG49: 0.03 | AH49: 17.80 | AI49: 424.74 | AJ49: 0.00 | AK49: 0.01 | AL49: 0.94 | AM49: =AJ49/AJ49 -> 1.00 | AN49: =AK49/AJ49 -> 438.86 | AO49: =AL49/AJ49 -> 50,595.99 | AP49: 0.00 | AQ49: 0.00 | AR49: yes
A50: TRINITY_DN46758_c2_g2 | B50: 2,286 | C50: TRINITY_DN46758_c2_g2_i1;TRINITY_DN46758_c2_g2_i2;TRINITY_DN46758_c2_g2_i3;TRINITY_DN46758_c2_g2_i4;TRINITY_DN46758_c2_g2_i5;TRINITY_DN46758_c2_g2_i6;TRINITY_DN46758_c2_g2_i7;TRINITY_DN46758_c2_g2_i8 | D50: - | E50: - | F50: - | G50: - | H50: - | I50: - | J50: - | K50: - | L50: - | M50: - | N50: - | O50: 0.00 | P50: 0.00 | Q50: 1.00 | R50: 0.00 | S50: 2.00 | T50: 4.00 | U50: 1,782.00 | V50: 1,459.00 | W50: 1,769.01 | X50: 0.00 | Y50: 0.00 | Z50: 0.04 | AA50: 0.00 | AB50: 0.37 | AC50: 0.66 | AD50: 347.42 | AE50: 303.51 | AF50: 393.98 | AG50: 0.01 | AH50: 0.34 | AI50: 348.30 | AJ50: 0.00 | AK50: 0.00 | AL50: 0.77 | AM50: =AJ50/AJ50 -> 1.00 | AN50: =AK50/AJ50 -> 25.15 | AO50: =AL50/AJ50 -> 124,470.85 | AP50: 0.00 | AQ50: 0.00 | AR50: yes
A51: TRINITY_DN38671_c0_g3 | B51: 506 | C51: TRINITY_DN38671_c0_g3_i1 | D51: vitellin-degrading cysteine endopeptidase [Rhipicephalus microplus] | E51: - | F51: - | G51: - | H51: - | I51: - | J51: - | K51: - | L51: - | M51: - | N51: "CS_pos": "Cleavage site between pos. 21 and 22: TSA-ED. Probability: 0.6941", | O51: 5,030.73 | P51: 1,969.22 | Q51: 1,848.83 | R51: 0.00 | S51: 0.00 | T51: 0.00 | U51: 0.00 | V51: 0.00 | W51: 0.00 | X51: 544.82 | Y51: 239.19 | Z51: 275.15 | AA51: 0.00 | AB51: 0.00 | AC51: 0.00 | AD51: 0.00 | AE51: 0.00 | AF51: 0.00 | AG51: 353.05 | AH51: 0.00 | AI51: 0.00 | AJ51: 0.22 | AK51: 0.00 | AL51: 0.00 | AM51: =AJ51/AJ51 -> 1.00 | AN51: =AK51/AJ51 -> 0.00 | AO51: =AL51/AJ51 -> 0.00 | AP51: 0.00 | AQ51: 0.00 | AR51: yes
A52: TRINITY_DN43678_c0_g1 | B52: 560 | C52: TRINITY_DN43678_c0_g1_i1 | D52: - | E52: - | F52: - | G52: - | H52: - | I52: - | J52: - | K52: - | L52: - | M52: - | N52: - | O52: 1.00 | P52: 1.00 | Q52: 0.00 | R52: 5.00 | S52: 5.00 | T52: 4.00 | U52: 1,360.00 | V52: 1,712.00 | W52: 1,907.00 | X52: 0.09 | Y52: 0.10 | Z52: 0.00 | AA52: 0.42 | AB52: 0.41 | AC52: 0.30 | AD52: 114.55 | AE52: 155.40 | AF52: 172.05 | AG52: 0.06 | AH52: 0.38 | AI52: 147.33 | AJ52: 0.00 | AK52: 0.00 | AL52: 0.33 | AM52: =AJ52/AJ52 -> 1.00 | AN52: =AK52/AJ52 -> 4.68 | AO52: =AL52/AJ52 -> 8,775.14 | AP52: 0.00 | AQ52: 0.00 | AR52: yes
A53: TRINITY_DN35654_c0_g1 | B53: 6,790 | C53: TRINITY_DN35654_c0_g1_i1;TRINITY_DN35654_c0_g1_i2 | D53: - | E53: - | F53: - | G53: - | H53: - | I53: - | J53: - | K53: - | L53: - | M53: - | N53: - | O53: 5.00 | P53: 0.00 | Q53: 3.00 | R53: 11.00 | S53: 16.00 | T53: 19.00 | U53: 6,628.00 | V53: 2,680.00 | W53: 6,814.00 | X53: 0.03 | Y53: 0.00 | Z53: 0.02 | AA53: 0.05 | AB53: 0.08 | AC53: 0.08 | AD53: 25.44 | AE53: 11.08 | AF53: 26.47 | AG53: 0.02 | AH53: 0.07 | AI53: 21.00 | AJ53: 0.00 | AK53: 0.00 | AL53: 0.05 | AM53: =AJ53/AJ53 -> 1.00 | AN53: =AK53/AJ53 -> 2.59 | AO53: =AL53/AJ53 -> 3,752.35 | AP53: 0.00 | AQ53: 0.00 | AR53: yes
A54: TRINITY_DN45007_c0_g2 | B54: 1,341 | C54: TRINITY_DN45007_c0_g2_i1;TRINITY_DN45007_c0_g2_i2;TRINITY_DN45007_c0_g2_i3 | D54: - | E54: - | F54: - | G54: - | H54: - | I54: - | J54: - | K54: - | L54: - | M54: - | N54: - | O54: 0.00 | P54: 0.00 | Q54: 0.00 | R54: 79.00 | S54: 145.00 | T54: 117.00 | U54: 6,896.00 | V54: 9,695.00 | W54: 16,982.95 | X54: 0.00 | Y54: 0.00 | Z54: 0.00 | AA54: 3.08 | AB54: 6.92 | AC54: 4.92 | AD54: 256.09 | AE54: 384.79 | AF54: 761.67 | AG54: 0.00 | AH54: 4.97 | AI54: 467.52 | AJ54: 0.00 | AK54: 0.00 | AL54: 1.03 | AM54: =AJ54/AK54 -> 0.00 | AN54: =AK54/AK54 -> 1.00 | AO54: =AL54/AK54 -> 454.49 | AP54: 0.00 | AQ54: 0.00 | AR54: yes
A55: TRINITY_DN38859_c0_g3 | B55: 1,560 | C55: TRINITY_DN38859_c0_g3_i1;TRINITY_DN38859_c0_g3_i2;TRINITY_DN38859_c0_g3_i3;TRINITY_DN38859_c0_g3_i4;TRINITY_DN38859_c0_g3_i5 | D55: - | E55: - | F55: - | G55: - | H55: - | I55: - | J55: - | K55: - | L55: - | M55: - | N55: - | O55: 12.05 | P55: 8.01 | Q55: 6.04 | R55: 34.86 | S55: 29.22 | T55: 37.39 | U55: 12,365.44 | V55: 3,772.41 | W55: 8,795.74 | X55: 0.55 | Y55: 0.52 | Z55: 0.16 | AA55: 1.70 | AB55: 1.86 | AC55: 2.18 | AD55: 246.31 | AE55: 81.05 | AF55: 179.66 | AG55: 0.41 | AH55: 1.91 | AI55: 169.01 | AJ55: 0.00 | AK55: 0.00 | AL55: 0.37 | AM55: =AJ55/AJ55 -> 1.00 | AN55: =AK55/AJ55 -> 3.45 | AO55: =AL55/AJ55 -> 1,473.14 | AP55: 0.00 | AQ55: 0.00 | AR55: yes
A56: TRINITY_DN36117_c0_g2 | B56: 1,430 | C56: TRINITY_DN36117_c0_g2_i1;TRINITY_DN36117_c0_g2_i2 | D56: hypothetical protein IscW_ISCW001652 [Ixodes scapularis] | E56: - | F56: - | G56: - | H56: - | I56: - | J56: - | K56: - | L56: - | M56: - | N56: - | O56: 0.00 | P56: 2.00 | Q56: 0.00 | R56: 2.00 | S56: 2.00 | T56: 11.00 | U56: 19,644.05 | V56: 6,462.00 | W56: 25,102.87 | X56: 0.00 | Y56: 0.05 | Z56: 0.00 | AA56: 0.05 | AB56: 0.05 | AC56: 0.36 | AD56: 434.85 | AE56: 179.20 | AF56: 710.86 | AG56: 0.02 | AH56: 0.15 | AI56: 441.64 | AJ56: 0.00 | AK56: 0.00 | AL56: 0.98 | AM56: =AJ56/AJ56 -> 1.00 | AN56: =AK56/AJ56 -> 5.55 | AO56: =AL56/AJ56 -> 78,913.73 | AP56: 0.00 | AQ56: 0.00 | AR56: yes
A57: TRINITY_DN37501_c1_g1 | B57: 937 | C57: TRINITY_DN37501_c1_g1_i1;TRINITY_DN37501_c1_g1_i2 | D57: - | E57: - | F57: - | G57: - | H57: - | I57: - | J57: - | K57: - | L57: - | M57: - | N57: - | O57: 0.00 | P57: 0.00 | Q57: 0.00 | R57: 0.00 | S57: 0.00 | T57: 0.00 | U57: 2,559.00 | V57: 1,288.00 | W57: 2,370.00 | X57: 0.00 | Y57: 0.00 | Z57: 0.00 | AA57: 0.00 | AB57: 0.00 | AC57: 0.00 | AD57: 96.35 | AE57: 51.22 | AF57: 93.10 | AG57: 0.00 | AH57: 0.00 | AI57: 80.22 | AJ57: 0.00 | AK57: 0.00 | AL57: 0.18 | AM57: =AJ57/AL57 -> 0.00 | AN57: =AK57/AL57 -> 0.00 | AO57: =AL57/AL57 -> 1.00 | AP57: 0.00 | AQ57: 0.00 | AR57: yes
A58: TRINITY_DN53173_c0_g1 | B58: 1,581 | C58: TRINITY_DN53173_c0_g1_i1;TRINITY_DN53173_c0_g1_i2;TRINITY_DN53173_c0_g1_i3;TRINITY_DN53173_c0_g1_i4;TRINITY_DN53173_c0_g1_i5;TRINITY_DN53173_c0_g1_i6;TRINITY_DN53173_c0_g1_i7;TRINITY_DN53173_c0_g1_i8;TRINITY_DN53173_c0_g1_i9 | D58: - | E58: - | F58: - | G58: - | H58: - | I58: - | J58: - | K58: - | L58: - | M58: - | N58: - | O58: 1,622.03 | P58: 1,057.05 | Q58: 1,483.13 | R58: 0.00 | S58: 0.00 | T58: 0.00 | U58: 0.00 | V58: 1.00 | W58: 0.00 | X58: 33.35 | Y58: 24.54 | Z58: 38.27 | AA58: 0.00 | AB58: 0.00 | AC58: 0.00 | AD58: 0.00 | AE58: 0.02 | AF58: 0.00 | AG58: 32.05 | AH58: 0.00 | AI58: 0.01 | AJ58: 0.02 | AK58: 0.00 | AL58: 0.00 | AM58: =AJ58/AL58 -> 896.84 | AN58: =AK58/AL58 -> 0.00 | AO58: =AL58/AL58 -> 1.00 | AP58: 0.00 | AQ58: 0.00 | AR58: yes
A59: TRINITY_DN42440_c2_g1 | B59: 509 | C59: TRINITY_DN42440_c2_g1_i1 | D59: vitellogenin [Dermacentor variabilis] | E59: - | F59: - | G59: - | H59: ENOG4110M1Q(Vitellogenin) | I59: - | J59: - | K59: - | L59: - | M59: - | N59: - | O59: 19,395.40 | P59: 4,087.36 | Q59: 6,221.00 | R59: 0.00 | S59: 0.00 | T59: 0.00 | U59: 0.00 | V59: 0.00 | W59: 0.00 | X59: 2,075.91 | Y59: 490.48 | Z59: 914.11 | AA59: 0.00 | AB59: 0.00 | AC59: 0.00 | AD59: 0.00 | AE59: 0.00 | AF59: 0.00 | AG59: 1,160.17 | AH59: 0.00 | AI59: 0.00 | AJ59: 0.72 | AK59: 0.00 | AL59: 0.00 | AM59: =AJ59/AJ59 -> 1.00 | AN59: =AK59/AJ59 -> 0.00 | AO59: =AL59/AJ59 -> 0.00 | AP59: 0.00 | AQ59: 0.00 | AR59: yes
A60: TRINITY_DN35945_c0_g1 | B60: 819 | C60: TRINITY_DN35945_c0_g1_i1;TRINITY_DN35945_c0_g1_i2;TRINITY_DN35945_c0_g1_i3 | D60: structural constituent of cuticle, putative [Ixodes scapularis] | E60: - | F60: Cuticle protein 14 isoform b OS=Limulus polyphemus PE=1 SV=1 | G60: GO:0005615(extracellular space) | H60: ENOG410Y0B9(Cuticle protein) | I60: - | J60: - | K60: - | L60: - | M60: B7PWT8.1 PF00379.21;Chitin_bind_4; | N60: - | O60: 0.00 | P60: 0.00 | Q60: 0.00 | R60: 15.00 | S60: 10.00 | T60: 9.00 | U60: 2,547.00 | V60: 3,343.00 | W60: 1,645.04 | X60: 0.00 | Y60: 0.00 | Z60: 0.00 | AA60: 0.87 | AB60: 0.61 | AC60: 0.85 | AD60: 250.66 | AE60: 399.27 | AF60: 163.66 | AG60: 0.00 | AH60: 0.78 | AI60: 271.20 | AJ60: 0.00 | AK60: 0.00 | AL60: 0.60 | AM60: =AJ60/AK60 -> 0.00 | AN60: =AK60/AK60 -> 1.00 | AO60: =AL60/AK60 -> 1,679.89 | AP60: 0.00 | AQ60: 0.00 | AR60: yes
A61: TRINITY_DN55539_c1_g1 | B61: 754 | C61: TRINITY_DN55539_c1_g1_i1;TRINITY_DN55539_c1_g1_i2;TRINITY_DN55539_c1_g1_i3;TRINITY_DN55539_c1_g1_i4 | D61: cytochrome P450, putative [Ixodes scapularis] | E61: - | F61: - | G61: - | H61: COG2124(Cytochrome p450) | I61: NA | J61: NA | K61: NA | L61: NA(NA) | M61: B7Q9B8.1 PF00067.20;p450; | N61: - | O61: 2,887.00 | P61: 2,788.99 | Q61: 961.00 | R61: 4.00 | S61: 4.00 | T61: 5.00 | U61: 0.00 | V61: 1.00 | W61: 0.00 | X61: 160.38 | Y61: 186.60 | Z61: 75.79 | AA61: 0.22 | AB61: 0.28 | AC61: 0.32 | AD61: 0.00 | AE61: 0.23 | AF61: 0.00 | AG61: 140.92 | AH61: 0.27 | AI61: 0.08 | AJ61: 0.09 | AK61: 0.00 | AL61: 0.00 | AM61: =AJ61/AK61 -> 705.63 | AN61: =AK61/AK61 -> 1.00 | AO61: =AL61/AK61 -> 1.43 | AP61: 0.00 | AQ61: 0.00 | AR61: yes
A62: TRINITY_DN51213_c0_g2 | B62: 2,226 | C62: TRINITY_DN51213_c0_g2_i1 | D62: unknown [Haemaphysalis qinghaiensis] | E62: - | F62: - | G62: - | H62: ENOG4111NR3(cuticular protein) | I62: - | J62: - | K62: - | L62: - | M62: - | N62: - | O62: 3,204.00 | P62: 5,415.96 | Q62: 2,140.00 | R62: 1.00 | S62: 6.00 | T62: 1.00 | U62: 16.00 | V62: 12.00 | W62: 15.00 | X62: 42.61 | Y62: 79.51 | Z62: 36.19 | AA62: 0.02 | AB62: 0.09 | AC62: 0.01 | AD62: 0.20 | AE62: 0.16 | AF62: 0.19 | AG62: 52.77 | AH62: 0.04 | AI62: 0.18 | AJ62: 0.03 | AK62: 0.00 | AL62: 0.00 | AM62: =AJ62/AK62 -> 1,783.60 | AN62: =AK62/AK62 -> 1.00 | AO62: =AL62/AK62 -> 21.74 | AP62: 0.00 | AQ62: 0.00 | AR62: yes
A63: TRINITY_DN39206_c0_g2 | B63: 1,479 | C63: TRINITY_DN39206_c0_g2_i1;TRINITY_DN39206_c0_g2_i10;TRINITY_DN39206_c0_g2_i11;TRINITY_DN39206_c0_g2_i12;TRINITY_DN39206_c0_g2_i13;TRINITY_DN39206_c0_g2_i2;TRINITY_DN39206_c0_g2_i3;TRINITY_DN39206_c0_g2_i4;TRINITY_DN39206_c0_g2_i5;TRINITY_DN39206_c0_g2_i6;TRINITY_DN39206_c0_g2_i7;TRINITY_DN39206_c0_g2_i8;TRINITY_DN39206_c0_g2_i9 | D63: secreted protein, putative [Ixodes scapularis] | E63: - | F63: Adult-specific rigid cuticular protein 15.7 OS=Araneus diadematus PE=1 SV=1 | G63: GO:0005615(extracellular space) | H63: ENOG4112DDP(Cuticular protein) | I63: - | J63: - | K63: - | L63: - | M63: - | N63: - | O63: 0.00 | P63: 1.00 | Q63: 0.00 | R63: 4.00 | S63: 6.00 | T63: 8.00 | U63: 2,598.00 | V63: 1,440.00 | W63: 1,215.00 | X63: 0.00 | Y63: 0.04 | Z63: 0.00 | AA63: 0.30 | AB63: 1.92 | AC63: 0.86 | AD63: 246.43 | AE63: 188.27 | AF63: 137.15 | AG63: 0.01 | AH63: 1.03 | AI63: 190.62 | AJ63: 0.00 | AK63: 0.00 | AL63: 0.42 | AM63: =AJ63/AJ63 -> 1.00 | AN63: =AK63/AJ63 -> 76.18 | AO63: =AL63/AJ63 -> 68,121.26 | AP63: 0.00 | AQ63: 0.00 | AR63: yes
A64: TRINITY_DN38098_c1_g5 | B64: 537 | C64: TRINITY_DN38098_c1_g5_i1;TRINITY_DN38098_c1_g5_i2;TRINITY_DN38098_c1_g5_i3;TRINITY_DN38098_c1_g5_i4 | D64: - | E64: - | F64: - | G64: - | H64: - | I64: - | J64: - | K64: - | L64: - | M64: - | N64: - | O64: 1.00 | P64: 0.00 | Q64: 0.00 | R64: 13,025.23 | S64: 13,127.00 | T64: 9,360.75 | U64: 225.00 | V64: 301.00 | W64: 502.00 | X64: 0.13 | Y64: 0.00 | Z64: 0.00 | AA64: 1,238.88 | AB64: 1,294.89 | AC64: 812.90 | AD64: 22.58 | AE64: 31.04 | AF64: 54.96 | AG64: 0.04 | AH64: 1,115.56 | AI64: 36.19 | AJ64: 0.00 | AK64: 0.51 | AL64: 0.08 | AM64: =AJ64/AJ64 -> 1.00 | AN64: =AK64/AJ64 -> 20,628.26 | AO64: =AL64/AJ64 -> 3,233.28 | AP64: 0.00 | AQ64: 0.00 | AR64: yes
A65: TRINITY_DN38627_c0_g2 | B65: 455 | C65: TRINITY_DN38627_c0_g2_i1 | D65: hebreain [Amblyomma hebraeum] | E65: - | F65: - | G65: - | H65: - | I65: - | J65: - | K65: - | L65: - | M65: - | N65: - | O65: 19,758.00 | P65: 14,951.00 | Q65: 2,954.00 | R65: 0.00 | S65: 2.00 | T65: 2.00 | U65: 0.00 | V65: 0.00 | W65: 0.00 | X65: 2,784.76 | Y65: 2,384.11 | Z65: 585.53 | AA65: 0.00 | AB65: 0.23 | AC65: 0.21 | AD65: 0.00 | AE65: 0.00 | AF65: 0.00 | AG65: 1,918.13 | AH65: 0.15 | AI65: 0.00 | AJ65: 1.19 | AK65: 0.00 | AL65: 0.00 | AM65: =AJ65/AK65 -> 17,288.49 | AN65: =AK65/AK65 -> 1.00 | AO65: =AL65/AK65 -> 0.00 | AP65: 0.00 | AQ65: 0.00 | AR65: yes
A66: TRINITY_DN49371_c0_g2 | B66: 793 | C66: TRINITY_DN49371_c0_g2_i1;TRINITY_DN49371_c0_g2_i2;TRINITY_DN49371_c0_g2_i3 | D66: cuticle protein, putative [Ixodes scapularis] | E66: - | F66: Cuticle protein 16.8 OS=Ixodes ricinus PE=1 SV=1 | G66: GO:0005615(extracellular space);GO:0042302(structural constituent of cuticle) | H66: ENOG410YRX1(Cuticle protein) | I66: - | J66: - | K66: - | L66: - | M66: B7Q5N0.1 PF00379.21;Chitin_bind_4; | N66: - | O66: 3,215.00 | P66: 3,785.00 | Q66: 1,383.00 | R66: 0.00 | S66: 0.00 | T66: 0.00 | U66: 11.00 | V66: 3.00 | W66: 9.00 | X66: 177.35 | Y66: 225.27 | Z66: 97.74 | AA66: 0.00 | AB66: 0.00 | AC66: 0.00 | AD66: 0.55 | AE66: 0.16 | AF66: 0.47 | AG66: 166.79 | AH66: 0.00 | AI66: 0.39 | AJ66: 0.10 | AK66: 0.00 | AL66: 0.00 | AM66: =AJ66/AL66 -> 119.67 | AN66: =AK66/AL66 -> 0.00 | AO66: =AL66/AL66 -> 1.00 | AP66: 0.00 | AQ66: 0.00 | AR66: yes
A67: TRINITY_DN57185_c2_g1 | B67: 5,983 | C67: TRINITY_DN57185_c2_g1_i1;TRINITY_DN57185_c2_g1_i2;TRINITY_DN57185_c2_g1_i3 | D67: hypothetical protein IscW_ISCW016883 [Ixodes scapularis] | E67: TMPRSS2 | F67: Transmembrane protease serine 2 OS=Homo sapiens GN=TMPRSS2 PE=1 SV=3 | G67: GO:0004252(serine-type endopeptidase activity);GO:0005044(scavenger receptor activity);GO:0006508(proteolysis);GO:0008233(peptidase activity);GO:0008236(serine-type peptidase activity);GO:0016020(membrane);GO:0016787(hydrolase activity) | H67: COG5640(protease) | I67: NA | J67: NA | K67: NA | L67: NA(NA) | M67: A0A067RUA7.1 PF00089.24;Trypsin; | N67: - | O67: 0.00 | P67: 0.00 | Q67: 0.00 | R67: 22.00 | S67: 12.00 | T67: 21.00 | U67: 2,492.00 | V67: 1,540.00 | W67: 2,934.00 | X67: 0.00 | Y67: 0.00 | Z67: 0.00 | AA67: 0.12 | AB67: 0.06 | AC67: 0.10 | AD67: 15.04 | AE67: 10.96 | AF67: 20.73 | AG67: 0.00 | AH67: 0.09 | AI67: 15.58 | AJ67: 0.00 | AK67: 0.00 | AL67: 0.03 | AM67: =AJ67/AK67 -> 0.00 | AN67: =AK67/AK67 -> 1.00 | AO67: =AL67/AK67 -> 836.39 | AP67: 0.00 | AQ67: 0.00 | AR67: yes
A68: TRINITY_DN48465_c0_g1 | B68: 1,956 | C68: TRINITY_DN48465_c0_g1_i1;TRINITY_DN48465_c0_g1_i10;TRINITY_DN48465_c0_g1_i11;TRINITY_DN48465_c0_g1_i2;TRINITY_DN48465_c0_g1_i3;TRINITY_DN48465_c0_g1_i4;TRINITY_DN48465_c0_g1_i5;TRINITY_DN48465_c0_g1_i6;TRINITY_DN48465_c0_g1_i7;TRINITY_DN48465_c0_g1_i8;TRINITY_DN48465_c0_g1_i9 | D68: - | E68: - | F68: - | G68: - | H68: - | I68: - | J68: - | K68: - | L68: - | M68: - | N68: - | O68: 1.00 | P68: 0.00 | Q68: 0.00 | R68: 101,813.95 | S68: 58,382.00 | T68: 54,297.96 | U68: 3,698.00 | V68: 5,972.00 | W68: 2,884.95 | X68: 0.07 | Y68: 0.00 | Z68: 0.00 | AA68: 5,261.09 | AB68: 3,559.19 | AC68: 2,499.76 | AD68: 158.80 | AE68: 262.51 | AF68: 138.41 | AG68: 0.02 | AH68: 3,773.35 | AI68: 186.57 | AJ68: =AG68/1616.37 -> 0.00 | AK68: =AH68/2185.3 -> 1.73 | AL68: =AI68/452.3 -> 0.41 | AM68: =AJ68/AJ68 -> 1.00 | AN68: =AK68/AJ68 -> 139,549.03 | AO68: =AL68/AJ68 -> 33,336.96 | AP68: 0.00 | AQ68: 0.00 | AR68: yes
A69: TRINITY_DN44086_c0_g1 | B69: 885 | C69: TRINITY_DN44086_c0_g1_i1;TRINITY_DN44086_c0_g1_i2;TRINITY_DN44086_c0_g1_i3;TRINITY_DN44086_c0_g1_i4;TRINITY_DN44086_c0_g1_i5;TRINITY_DN44086_c0_g1_i6 | D69: conserved hypothetical protein [Ixodes scapularis] | E69: - | F69: - | G69: - | H69: - | I69: - | J69: - | K69: - | L69: - | M69: B7QIW6.1 PF02098.14;His_binding; | N69: - | O69: 4,856.01 | P69: 6,132.00 | Q69: 1,606.00 | R69: 1.00 | S69: 6.00 | T69: 3.00 | U69: 0.00 | V69: 0.00 | W69: 0.00 | X69: 250.88 | Y69: 291.63 | Z69: 89.85 | AA69: 0.05 | AB69: 0.26 | AC69: 0.12 | AD69: 0.00 | AE69: 0.00 | AF69: 0.00 | AG69: 210.79 | AH69: 0.14 | AI69: 0.00 | AJ69: 0.13 | AK69: 0.00 | AL69: 0.00 | AM69: =AJ69/AK69 -> 2,035.60 | AN69: =AK69/AK69 -> 1.00 | AO69: =AL69/AK69 -> 0.00 | AP69: 0.00 | AQ69: 0.00 | AR69: yes
A70: TRINITY_DN49624_c0_g2 | B70: 359 | C70: TRINITY_DN49624_c0_g2_i1;TRINITY_DN49624_c0_g2_i2 | D70: - | E70: - | F70: - | G70: - | H70: - | I70: - | J70: - | K70: - | L70: - | M70: - | N70: - | O70: 19,312.03 | P70: 11,570.02 | Q70: 2,906.00 | R70: 0.00 | S70: 0.00 | T70: 0.00 | U70: 0.00 | V70: 0.00 | W70: 2.00 | X70: 4,327.17 | Y70: 3,055.16 | Z70: 1,003.71 | AA70: 0.00 | AB70: 0.00 | AC70: 0.00 | AD70: 0.00 | AE70: 0.00 | AF70: 0.44 | AG70: 2,795.35 | AH70: 0.00 | AI70: 0.15 | AJ70: 1.73 | AK70: 0.00 | AL70: 0.00 | AM70: =AJ70/AL70 -> 5,214.72 | AN70: =AK70/AL70 -> 0.00 | AO70: =AL70/AL70 -> 1.00 | AP70: 0.00 | AQ70: 0.00 | AR70: yes
A71: TRINITY_DN53722_c0_g1 | B71: 1,250 | C71: TRINITY_DN53722_c0_g1_i1;TRINITY_DN53722_c0_g1_i10;TRINITY_DN53722_c0_g1_i11;TRINITY_DN53722_c0_g1_i12;TRINITY_DN53722_c0_g1_i13;TRINITY_DN53722_c0_g1_i14;TRINITY_DN53722_c0_g1_i15;TRINITY_DN53722_c0_g1_i16;TRINITY_DN53722_c0_g1_i17;TRINITY_DN53722_c0_g1_i18;TRINITY_DN53722_c0_g1_i19;TRINITY_DN53722_c0_g1_i2;TRINITY_DN53722_c0_g1_i3;TRINITY_DN53722_c0_g1_i4;TRINITY_DN53722_c0_g1_i5;TRINITY_DN53722_c0_g1_i6;TRINITY_DN53722_c0_g1_i7;TRINITY_DN53722_c0_g1_i8;TRINITY_DN53722_c0_g1_i9 | D71: - | E71: - | F71: - | G71: - | H71: - | I71: - | J71: - | K71: - | L71: - | M71: - | N71: - | O71: 0.00 | P71: 0.00 | Q71: 2.00 | R71: 2.00 | S71: 1.00 | T71: 0.00 | U71: 1,587.20 | V71: 1,273.28 | W71: 1,221.47 | X71: 0.00 | Y71: 0.00 | Z71: 0.08 | AA71: 0.07 | AB71: 0.03 | AC71: 0.00 | AD71: 185.46 | AE71: 93.04 | AF71: 98.18 | AG71: 0.03 | AH71: 0.03 | AI71: 125.56 | AJ71: 0.00 | AK71: 0.00 | AL71: 0.28 | AM71: =AJ71/AK71 -> 1.35 | AN71: =AK71/AK71 -> 1.00 | AO71: =AL71/AK71 -> 20,221.55 | AP71: 0.00 | AQ71: 0.00 | AR71: yes
A72: TRINITY_DN54491_c1_g1 | B72: 2,827 | C72: TRINITY_DN54491_c1_g1_i1;TRINITY_DN54491_c1_g1_i2;TRINITY_DN54491_c1_g1_i3;TRINITY_DN54491_c1_g1_i4;TRINITY_DN54491_c1_g1_i5;TRINITY_DN54491_c1_g1_i6;TRINITY_DN54491_c1_g1_i7 | D72: conserved hypothetical protein [Ixodes scapularis] | E72: CPVL | F72: Probable serine carboxypeptidase CPVL OS=Homo sapiens GN=CPVL PE=1 SV=2 | G72: GO:0004185(serine-type carboxypeptidase activity);GO:0051603(proteolysis involved in cellular protein catabolic process) | H72: COG2939(carboxy-peptidase) | I72: NA | J72: NA | K72: NA | L72: NA(NA) | M72: B7QF76.1 PF00450.20;Peptidase_S10; | N72: - | O72: 1,294.00 | P72: 4,123.00 | Q72: 4,148.92 | R72: 1.00 | S72: 2.00 | T72: 4.00 | U72: 0.00 | V72: 0.00 | W72: 0.00 | X72: 44.93 | Y72: 75.86 | Z72: 74.76 | AA72: 0.01 | AB72: 0.05 | AC72: 0.04 | AD72: 0.00 | AE72: 0.00 | AF72: 0.00 | AG72: 65.18 | AH72: 0.03 | AI72: 0.00 | AJ72: 0.04 | AK72: 0.00 | AL72: 0.00 | AM72: =AJ72/AK72 -> 2,937.40 | AN72: =AK72/AK72 -> 1.00 | AO72: =AL72/AK72 -> 0.00 | AP72: 0.00 | AQ72: 0.00 | AR72: yes
A73: TRINITY_DN49207_c0_g2 | B73: 425 | C73: TRINITY_DN49207_c0_g2_i1;TRINITY_DN49207_c0_g2_i2;TRINITY_DN49207_c0_g2_i3 | D73: serine proteinase inhibitor precursor [Rhipicephalus microplus] | E73: - | F73: - | G73: - | H73: - | I73: - | J73: - | K73: - | L73: - | M73: B7P7B7.1 PF01826.15;TIL; | N73: - | O73: 15,177.99 | P73: 96,269.85 | Q73: 102,844.02 | R73: 2.00 | S73: 1.00 | T73: 8.00 | U73: 0.00 | V73: 0.00 | W73: 2.00 | X73: 5,088.42 | Y73: 21,689.27 | Z73: 22,648.95 | AA73: 0.25 | AB73: 0.25 | AC73: 1.58 | AD73: 0.00 | AE73: 0.00 | AF73: 0.30 | AG73: 16,475.55 | AH73: 0.69 | AI73: 0.10 | AJ73: 10.19 | AK73: 0.00 | AL73: 0.00 | AM73: =AJ73/AL73 -> 46,102.63 | AN73: =AK73/AL73 -> 1.43 | AO73: =AL73/AL73 -> 1.00 | AP73: 0.00 | AQ73: 0.00 | AR73: yes
A74: TRINITY_DN45203_c0_g1 | B74: 1,095 | C74: TRINITY_DN45203_c0_g1_i1;TRINITY_DN45203_c0_g1_i2;TRINITY_DN45203_c0_g1_i3;TRINITY_DN45203_c0_g1_i4 | D74: - | E74: - | F74: - | G74: - | H74: - | I74: - | J74: - | K74: - | L74: - | M74: - | N74: - | O74: 0.00 | P74: 0.00 | Q74: 0.00 | R74: 0.00 | S74: 0.00 | T74: 1.00 | U74: 4,268.19 | V74: 1,048.00 | W74: 2,780.06 | X74: 0.00 | Y74: 0.00 | Z74: 0.00 | AA74: 0.00 | AB74: 0.00 | AC74: 0.03 | AD74: 128.15 | AE74: 33.76 | AF74: 87.53 | AG74: 0.00 | AH74: 0.01 | AI74: 83.15 | AJ74: 0.00 | AK74: 0.00 | AL74: 0.18 | AM74: =AJ74/AK74 -> 0.00 | AN74: =AK74/AK74 -> 1.00 | AO74: =AL74/AK74 -> 40,174.15 | AP74: 0.00 | AQ74: 0.00 | AR74: yes
A75: TRINITY_DN57172_c1_g1 | B75: 2,894 | C75: TRINITY_DN57172_c1_g1_i1;TRINITY_DN57172_c1_g1_i2;TRINITY_DN57172_c1_g1_i3;TRINITY_DN57172_c1_g1_i4 | D75: - | E75: - | F75: - | G75: - | H75: - | I75: - | J75: - | K75: - | L75: - | M75: - | N75: - | O75: 87.00 | P75: 42.00 | Q75: 38.00 | R75: 23.00 | S75: 14.00 | T75: 28.00 | U75: 9,207.00 | V75: 6,104.00 | W75: 11,890.00 | X75: 1.67 | Y75: 1.80 | Z75: 2.99 | AA75: 0.27 | AB75: 0.16 | AC75: 0.29 | AD75: 178.59 | AE75: 103.01 | AF75: 211.26 | AG75: 2.15 | AH75: 0.24 | AI75: 164.29 | AJ75: 0.00 | AK75: 0.00 | AL75: 0.36 | AM75: =AJ75/AK75 -> 12.11 | AN75: =AK75/AK75 -> 1.00 | AO75: =AL75/AK75 -> 3,307.38 | AP75: 0.00 | AQ75: 0.00 | AR75: yes
A76: TRINITY_DN37250_c1_g1 | B76: 336 | C76: TRINITY_DN37250_c1_g1_i1;TRINITY_DN37250_c1_g1_i2;TRINITY_DN37250_c1_g1_i3;TRINITY_DN37250_c1_g1_i4;TRINITY_DN37250_c1_g1_i5;TRINITY_DN37250_c1_g1_i6;TRINITY_DN37250_c1_g1_i7 | D76: - | E76: - | F76: - | G76: - | H76: - | I76: - | J76: - | K76: - | L76: - | M76: - | N76: - | O76: 7,282.45 | P76: 2,922.34 | Q76: 1,515.78 | R76: 0.00 | S76: 0.00 | T76: 0.00 | U76: 0.00 | V76: 0.00 | W76: 2.00 | X76: 2,386.88 | Y76: 1,267.22 | Z76: 763.33 | AA76: 0.00 | AB76: 0.00 | AC76: 0.00 | AD76: 0.00 | AE76: 0.00 | AF76: 1.23 | AG76: 1,472.48 | AH76: 0.00 | AI76: 0.41 | AJ76: 0.91 | AK76: 0.00 | AL76: 0.00 | AM76: =AJ76/AL76 -> 1,004.97 | AN76: =AK76/AL76 -> 0.00 | AO76: =AL76/AL76 -> 1.00 | AP76: 0.00 | AQ76: 0.00 | AR76: yes
A77: TRINITY_DN57972_c1_g1 | B77: 1,026 | C77: TRINITY_DN57972_c1_g1_i1;TRINITY_DN57972_c1_g1_i2;TRINITY_DN57972_c1_g1_i3;TRINITY_DN57972_c1_g1_i4 | D77: - | E77: - | F77: - | G77: - | H77: - | I77: - | J77: - | K77: - | L77: - | M77: - | N77: - | O77: 1.00 | P77: 3.00 | Q77: 0.00 | R77: 2.00 | S77: 4.00 | T77: 5.00 | U77: 8,819.38 | V77: 1,927.67 | W77: 9,922.58 | X77: 0.05 | Y77: 0.17 | Z77: 0.00 | AA77: 0.11 | AB77: 0.21 | AC77: 0.24 | AD77: 436.23 | AE77: 106.26 | AF77: 515.75 | AG77: 0.07 | AH77: 0.19 | AI77: 352.75 | AJ77: 0.00 | AK77: 0.00 | AL77: 0.78 | AM77: =AJ77/AJ77 -> 1.00 | AN77: =AK77/AJ77 -> 2.01 | AO77: =AL77/AJ77 -> 18,008.73 | AP77: 0.00 | AQ77: 0.00 | AR77: yes
A78: TRINITY_DN38987_c0_g3 | B78: 1,335 | C78: TRINITY_DN38987_c0_g3_i1 | D78: gastricsin [Meriones unguiculatus] | E78: Pgc | F78: Gastricsin OS=Rattus norvegicus GN=Pgc PE=1 SV=1 | G78: GO:0002803(positive regulation of antibacterial peptide production);GO:0004190(aspartic-type endopeptidase activity);GO:0005615(extracellular space);GO:0006508(proteolysis);GO:0006914(autophagy);GO:0007586(digestion);GO:0030163(protein catabolic process);GO:0070062(extracellular exosome) | H78: ENOG410XNV7(aspartic) | I78: NA | J78: NA | K78: NA | L78: NA(NA) | M78: G3I107.1 PF00026.21;Asp; | N78: "CS_pos": "Cleavage site between pos. 16 and 17: LEA-SL. Probability: 0.8159", | O78: 0.00 | P78: 0.00 | Q78: 0.00 | R78: 1,345.00 | S78: 1,881.00 | T78: 1,599.00 | U78: 0.00 | V78: 0.00 | W78: 0.00 | X78: 0.00 | Y78: 0.00 | Z78: 0.00 | AA78: 37.09 | AB78: 50.85 | AC78: 38.80 | AD78: 0.00 | AE78: 0.00 | AF78: 0.00 | AG78: 0.00 | AH78: 42.25 | AI78: 0.00 | AJ78: 0.00 | AK78: 0.02 | AL78: 0.00 | AM78: =AJ78/AK78 -> 0.00 | AN78: =AK78/AK78 -> 1.00 | AO78: =AL78/AK78 -> 0.00 | AP78: 0.00 | AQ78: 0.00 | AR78: yes
A79: TRINITY_DN53674_c1_g2 | B79: 1,191 | C79: TRINITY_DN53674_c1_g2_i1;TRINITY_DN53674_c1_g2_i2;TRINITY_DN53674_c1_g2_i3;TRINITY_DN53674_c1_g2_i4 | D79: - | E79: - | F79: - | G79: - | H79: - | I79: - | J79: - | K79: - | L79: - | M79: - | N79: - | O79: 2.00 | P79: 0.00 | Q79: 0.00 | R79: 6,891.74 | S79: 8,024.84 | T79: 12,069.30 | U79: 947.00 | V79: 688.79 | W79: 670.00 | X79: 0.35 | Y79: 0.00 | Z79: 0.00 | AA79: 922.23 | AB79: 1,074.71 | AC79: 1,445.51 | AD79: 143.42 | AE79: 112.55 | AF79: 111.91 | AG79: 0.12 | AH79: 1,147.48 | AI79: 122.63 | AJ79: 0.00 | AK79: 0.53 | AL79: 0.27 | AM79: =AJ79/AJ79 -> 1.00 | AN79: =AK79/AJ79 -> 7,072.84 | AO79: =AL79/AJ79 -> 3,651.99 | AP79: 0.00 | AQ79: 0.00 | AR79: yes
A80: TRINITY_DN55536_c0_g1 | B80: 2,506 | C80: TRINITY_DN55536_c0_g1_i1;TRINITY_DN55536_c0_g1_i2;TRINITY_DN55536_c0_g1_i3;TRINITY_DN55536_c0_g1_i4;TRINITY_DN55536_c0_g1_i5 | D80: - | E80: - | F80: - | G80: - | H80: - | I80: - | J80: - | K80: - | L80: - | M80: - | N80: - | O80: 3,362.88 | P80: 1,781.02 | Q80: 969.00 | R80: 0.00 | S80: 0.00 | T80: 2.01 | U80: 0.00 | V80: 1.00 | W80: 2.00 | X80: 44.09 | Y80: 45.71 | Z80: 26.34 | AA80: 0.00 | AB80: 0.00 | AC80: 0.03 | AD80: 0.00 | AE80: 0.01 | AF80: 0.02 | AG80: 38.71 | AH80: 0.01 | AI80: 0.01 | AJ80: 0.02 | AK80: 0.00 | AL80: 0.00 | AM80: =AJ80/AK80 -> 5,233.51 | AN80: =AK80/AK80 -> 1.00 | AO80: =AL80/AK80 -> 4.83 | AP80: 0.00 | AQ80: 0.00 | AR80: yes
A81: TRINITY_DN43418_c0_g2 | B81: 1,054 | C81: TRINITY_DN43418_c0_g2_i1;TRINITY_DN43418_c0_g2_i2;TRINITY_DN43418_c0_g2_i3;TRINITY_DN43418_c0_g2_i4 | D81: yolk cathepsin, partial [Rhipicephalus microplus] | E81: - | F81: - | G81: GO:0004190(aspartic-type endopeptidase activity);GO:0005575(cellular_component);GO:0006508(proteolysis) | H81: ENOG410XNV7(aspartic) | I81: K01379 | J81: cathepsin D | K81: EC:3.4.23.5 | L81: prap04142(Lysosome);prap04140(Autophagy - animal) | M81: G6CNN8.1 PF00026.21;Asp; | N81: - | O81: 1,378.38 | P81: 955.00 | Q81: 1,037.33 | R81: 0.00 | S81: 0.00 | T81: 1.00 | U81: 3.00 | V81: 1.00 | W81: 2.00 | X81: 54.66 | Y81: 38.03 | Z81: 48.81 | AA81: 0.00 | AB81: 0.00 | AC81: 0.04 | AD81: 0.11 | AE81: 0.03 | AF81: 0.06 | AG81: 47.17 | AH81: 0.01 | AI81: 0.07 | AJ81: 0.03 | AK81: 0.00 | AL81: 0.00 | AM81: =AJ81/AK81 -> 6,377.29 | AN81: =AK81/AK81 -> 1.00 | AO81: =AL81/AK81 -> 33.82 | AP81: 0.00 | AQ81: 0.00 | AR81: yes
A82: TRINITY_DN47169_c0_g1 | B82: 1,717 | C82: TRINITY_DN47169_c0_g1_i1;TRINITY_DN47169_c0_g1_i10;TRINITY_DN47169_c0_g1_i11;TRINITY_DN47169_c0_g1_i12;TRINITY_DN47169_c0_g1_i13;TRINITY_DN47169_c0_g1_i14;TRINITY_DN47169_c0_g1_i15;TRINITY_DN47169_c0_g1_i16;TRINITY_DN47169_c0_g1_i17;TRINITY_DN47169_c0_g1_i18;TRINITY_DN47169_c0_g1_i19;TRINITY_DN47169_c0_g1_i2;TRINITY_DN47169_c0_g1_i3;TRINITY_DN47169_c0_g1_i4;TRINITY_DN47169_c0_g1_i5;TRINITY_DN47169_c0_g1_i6;TRINITY_DN47169_c0_g1_i7;TRINITY_DN47169_c0_g1_i8;TRINITY_DN47169_c0_g1_i9 | D82: - | E82: - | F82: - | G82: - | H82: - | I82: - | J82: - | K82: - | L82: - | M82: - | N82: - | O82: 2.75 | P82: 1.01 | Q82: 2.62 | R82: 2.02 | S82: 8.57 | T82: 1.93 | U82: 3,009.99 | V82: 1,456.59 | W82: 2,194.30 | X82: 0.51 | Y82: 0.04 | Z82: 1.04 | AA82: 0.38 | AB82: 2.45 | AC82: 0.34 | AD82: 126.53 | AE82: 82.42 | AF82: 93.09 | AG82: 0.53 | AH82: 1.06 | AI82: 100.68 | AJ82: 0.00 | AK82: 0.00 | AL82: 0.22 | AM82: =AJ82/AJ82 -> 1.00 | AN82: =AK82/AJ82 -> 1.48 | AO82: =AL82/AJ82 -> 678.86 | AP82: 0.00 | AQ82: 0.00 | AR82: yes
A83: TRINITY_DN52957_c0_g2 | B83: 1,238 | C83: TRINITY_DN52957_c0_g2_i1;TRINITY_DN52957_c0_g2_i2;TRINITY_DN52957_c0_g2_i3;TRINITY_DN52957_c0_g2_i4;TRINITY_DN52957_c0_g2_i5;TRINITY_DN52957_c0_g2_i6 | D83: - | E83: - | F83: - | G83: - | H83: - | I83: - | J83: - | K83: - | L83: - | M83: - | N83: - | O83: 35,948.92 | P83: 5,215.03 | Q83: 8,716.34 | R83: 0.00 | S83: 0.00 | T83: 2.00 | U83: 0.00 | V83: 0.00 | W83: 0.00 | X83: 1,524.53 | Y83: 253.68 | Z83: 899.15 | AA83: 0.00 | AB83: 0.00 | AC83: 0.08 | AD83: 0.00 | AE83: 0.00 | AF83: 0.00 | AG83: 892.45 | AH83: 0.03 | AI83: 0.00 | AJ83: 0.55 | AK83: 0.00 | AL83: 0.00 | AM83: =AJ83/AK83 -> 40,219.15 | AN83: =AK83/AK83 -> 1.00 | AO83: =AL83/AK83 -> 0.00 | AP83: 0.00 | AQ83: 0.00 | AR83: yes
A84: TRINITY_DN33949_c0_g1 | B84: 977 | C84: TRINITY_DN33949_c0_g1_i1;TRINITY_DN33949_c0_g1_i2;TRINITY_DN33949_c0_g1_i3;TRINITY_DN33949_c0_g1_i4;TRINITY_DN33949_c0_g1_i5;TRINITY_DN33949_c0_g1_i6;TRINITY_DN33949_c0_g1_i7 | D84: - | E84: - | F84: - | G84: - | H84: - | I84: - | J84: - | K84: - | L84: - | M84: - | N84: "CS_pos": "Cleavage site between pos. 16 and 17: LEA-SL. Probability: 0.8159", | O84: 0.00 | P84: 0.00 | Q84: 0.00 | R84: 0.00 | S84: 0.00 | T84: 0.00 | U84: 997.00 | V84: 1,788.00 | W84: 1,894.00 | X84: 0.00 | Y84: 0.00 | Z84: 0.00 | AA84: 0.00 | AB84: 0.00 | AC84: 0.00 | AD84: 104.50 | AE84: 204.56 | AF84: 229.38 | AG84: 0.00 | AH84: 0.00 | AI84: 179.48 | AJ84: 0.00 | AK84: 0.00 | AL84: 0.40 | AM84: =AJ84/AL84 -> 0.00 | AN84: =AK84/AL84 -> 0.00 | AO84: =AL84/AL84 -> 1.00 | AP84: 0.00 | AQ84: 0.00 | AR84: yes
A85: TRINITY_DN54821_c0_g1 | B85: 1,670 | C85: TRINITY_DN54821_c0_g1_i1;TRINITY_DN54821_c0_g1_i2;TRINITY_DN54821_c0_g1_i3;TRINITY_DN54821_c0_g1_i4;TRINITY_DN54821_c0_g1_i5 | D85: endonuclease and reverse transcriptase-like protein [Bombyx mori] | E85: - | F85: - | G85: - | H85: ENOG4111R5M(Reverse transcriptase (RNA-dependent DNA polymerase)) | I85: - | J85: - | K85: - | L85: - | M85: J9LK93.2 PF00078.25;RVT_1; | N85: - | O85: 4.00 | P85: 3.00 | Q85: 2.00 | R85: 3,119.00 | S85: 3,302.94 | T85: 2,027.00 | U85: 2.00 | V85: 11.00 | W85: 3.00 | X85: 0.22 | Y85: 0.06 | Z85: 0.05 | AA85: 127.74 | AB85: 164.23 | AC85: 86.50 | AD85: 0.04 | AE85: 0.89 | AF85: 0.06 | AG85: 0.11 | AH85: 126.16 | AI85: 0.33 | AJ85: 0.00 | AK85: 0.06 | AL85: 0.00 | AM85: =AJ85/AJ85 -> 1.00 | AN85: =AK85/AJ85 -> 848.32 | AO85: =AL85/AJ85 -> 10.72 | AP85: 0.00 | AQ85: 0.00 | AR85: yes
A86: TRINITY_DN37066_c0_g1 | B86: 545 | C86: TRINITY_DN37066_c0_g1_i1;TRINITY_DN37066_c0_g1_i2 | D86: - | E86: - | F86: - | G86: - | H86: - | I86: - | J86: - | K86: - | L86: - | M86: - | N86: - | O86: 0.00 | P86: 0.00 | Q86: 1.00 | R86: 0.00 | S86: 4.00 | T86: 2.00 | U86: 1,489.00 | V86: 1,364.00 | W86: 1,052.00 | X86: 0.00 | Y86: 0.00 | Z86: 0.28 | AA86: 0.00 | AB86: 0.59 | AC86: 0.15 | AD86: 251.89 | AE86: 251.13 | AF86: 196.76 | AG86: 0.09 | AH86: 0.25 | AI86: 233.26 | AJ86: 0.00 | AK86: 0.00 | AL86: 0.52 | AM86: =AJ86/AJ86 -> 1.00 | AN86: =AK86/AJ86 -> 2.05 | AO86: =AL86/AJ86 -> 9,262.15 | AP86: 0.00 | AQ86: 0.00 | AR86: yes
A87: TRINITY_DN52019_c0_g1 | B87: 2,284 | C87: TRINITY_DN52019_c0_g1_i1;TRINITY_DN52019_c0_g1_i2;TRINITY_DN52019_c0_g1_i3 | D87: - | E87: - | F87: - | G87: - | H87: - | I87: - | J87: - | K87: - | L87: - | M87: - | N87: - | O87: 0.00 | P87: 0.00 | Q87: 0.00 | R87: 5.00 | S87: 0.00 | T87: 4.00 | U87: 8,177.00 | V87: 1,746.00 | W87: 5,980.01 | X87: 0.00 | Y87: 0.00 | Z87: 0.00 | AA87: 0.08 | AB87: 0.00 | AC87: 0.05 | AD87: 124.69 | AE87: 27.28 | AF87: 124.43 | AG87: 0.00 | AH87: 0.04 | AI87: 92.13 | AJ87: 0.00 | AK87: 0.00 | AL87: 0.20 | AM87: =AJ87/AK87 -> 0.00 | AN87: =AK87/AK87 -> 1.00 | AO87: =AL87/AK87 -> 11,128.22 | AP87: 0.00 | AQ87: 0.00 | AR87: yes
A88: TRINITY_DN44652_c0_g1 | B88: 2,518 | C88: TRINITY_DN44652_c0_g1_i1;TRINITY_DN44652_c0_g1_i10;TRINITY_DN44652_c0_g1_i11;TRINITY_DN44652_c0_g1_i2;TRINITY_DN44652_c0_g1_i3;TRINITY_DN44652_c0_g1_i4;TRINITY_DN44652_c0_g1_i5;TRINITY_DN44652_c0_g1_i6;TRINITY_DN44652_c0_g1_i7;TRINITY_DN44652_c0_g1_i8;TRINITY_DN44652_c0_g1_i9 | D88: cytochrome P450 4c3-like isoform X1 [Varroa destructor] | E88: Cyp4v2 | F88: Cytochrome P450 4V2 OS=Mus musculus GN=Cyp4v2 PE=1 SV=1 | G88: GO:0004497(monooxygenase activity);GO:0005506(iron ion binding);GO:0010430(fatty acid omega-oxidation);GO:0016021(integral component of membrane);GO:0016705(oxidoreductase activity, acting on paired donors, with incorporation or reduction of molecular oxygen);GO:0020037(heme binding) | H88: COG2124(Cytochrome p450) | I88: NA | J88: NA | K88: NA | L88: NA(NA) | M88: G1K9K9.2 PF00067.20;p450; | N88: - | O88: 1.00 | P88: 0.00 | Q88: 0.00 | R88: 1.00 | S88: 3.00 | T88: 1.00 | U88: 6,138.00 | V88: 1,092.00 | W88: 3,151.00 | X88: 0.02 | Y88: 0.00 | Z88: 0.00 | AA88: 0.02 | AB88: 0.05 | AC88: 0.02 | AD88: 99.56 | AE88: 19.04 | AF88: 51.17 | AG88: 0.01 | AH88: 0.03 | AI88: 56.59 | AJ88: 0.00 | AK88: 0.00 | AL88: 0.13 | AM88: =AJ88/AJ88 -> 1.00 | AN88: =AK88/AJ88 -> 2.22 | AO88: =AL88/AJ88 -> 20,223.39 | AP88: 0.00 | AQ88: 0.00 | AR88: yes
A89: TRINITY_DN51366_c1_g2 | B89: 1,301 | C89: TRINITY_DN51366_c1_g2_i1;TRINITY_DN51366_c1_g2_i2;TRINITY_DN51366_c1_g2_i3;TRINITY_DN51366_c1_g2_i4 | D89: valacyclovir hydrolase, putative [Ixodes scapularis] | E89: Abhd11 | F89: Protein ABHD11 OS=Mus musculus GN=Abhd11 PE=1 SV=1 | G89: GO:0016787(hydrolase activity) | H89: COG0596(Alpha beta hydrolase) | I89: NA | J89: NA | K89: NA | L89: NA(NA) | M89: B7PTF5.1 PF12697.5;Abhydrolase_6; | N89: - | O89: 3,631.00 | P89: 1,854.96 | Q89: 1,365.00 | R89: 0.00 | S89: 2.00 | T89: 3.00 | U89: 19.00 | V89: 20.00 | W89: 12.00 | X89: 122.56 | Y89: 74.70 | Z89: 64.03 | AA89: 0.00 | AB89: 0.08 | AC89: 0.10 | AD89: 0.66 | AE89: 0.73 | AF89: 0.43 | AG89: 87.10 | AH89: 0.06 | AI89: 0.61 | AJ89: 0.05 | AK89: 0.00 | AL89: 0.00 | AM89: =AJ89/AK89 -> 1,962.62 | AN89: =AK89/AK89 -> 1.00 | AO89: =AL89/AK89 -> 49.12 | AP89: 0.00 | AQ89: 0.00 | AR89: yes
A90: TRINITY_DN32141_c0_g1 | B90: 412 | C90: TRINITY_DN32141_c0_g1_i1;TRINITY_DN32141_c0_g1_i2 | D90: - | E90: - | F90: - | G90: - | H90: - | I90: - | J90: - | K90: - | L90: - | M90: - | N90: - | O90: 0.00 | P90: 2.00 | Q90: 3.00 | R90: 2.00 | S90: 4.00 | T90: 6.00 | U90: 1,764.00 | V90: 1,618.00 | W90: 4,499.00 | X90: 0.00 | Y90: 0.45 | Z90: 0.79 | AA90: 0.26 | AB90: 0.52 | AC90: 0.70 | AD90: 263.33 | AE90: 260.12 | AF90: 782.95 | AG90: 0.41 | AH90: 0.49 | AI90: 435.47 | AJ90: 0.00 | AK90: 0.00 | AL90: 0.96 | AM90: =AJ90/AK90 -> 1.13 | AN90: =AK90/AK90 -> 1.00 | AO90: =AL90/AK90 -> 4,293.85 | AP90: 0.00 | AQ90: 0.00 | AR90: yes
A91: TRINITY_DN35967_c0_g1 | B91: 705 | C91: TRINITY_DN35967_c0_g1_i1 | D91: - | E91: - | F91: - | G91: - | H91: - | I91: - | J91: - | K91: - | L91: - | M91: - | N91: "CS_pos": "Cleavage site between pos. 25 and 26: AHA-GA. Probability: 0.5941", | O91: 0.00 | P91: 1.00 | Q91: 0.00 | R91: 1.00 | S91: 0.00 | T91: 1.00 | U91: 2,701.00 | V91: 13,267.00 | W91: 3,070.00 | X91: 0.00 | Y91: 0.07 | Z91: 0.00 | AA91: 0.06 | AB91: 0.00 | AC91: 0.05 | AD91: 149.64 | AE91: 791.87 | AF91: 178.85 | AG91: 0.02 | AH91: 0.04 | AI91: 373.45 | AJ91: 0.00 | AK91: 0.00 | AL91: 0.83 | AM91: =AJ91/AJ91 -> 1.00 | AN91: =AK91/AJ91 -> 1.48 | AO91: =AL91/AJ91 -> 66,729.31 | AP91: 0.00 | AQ91: 0.00 | AR91: yes
A92: TRINITY_DN38098_c1_g7 | B92: 1,100 | C92: TRINITY_DN38098_c1_g7_i1;TRINITY_DN38098_c1_g7_i2 | D92: putative cement protein RIM36, partial [Dermacentor variabilis] | E92: - | F92: - | G92: - | H92: - | I92: - | J92: - | K92: - | L92: - | M92: - | N92: "CS_pos": "Cleavage site between pos. 18 and 19: AEA-FY. Probability: 0.6497", | O92: 1.00 | P92: 0.00 | Q92: 0.00 | R92: 40,170.40 | S92: 41,882.80 | T92: 18,686.51 | U92: 3,526.24 | V92: 3,873.13 | W92: 4,738.41 | X92: 0.03 | Y92: 0.00 | Z92: 0.00 | AA92: 1,386.21 | AB92: 1,418.52 | AC92: 568.15 | AD92: 104.48 | AE92: 124.02 | AF92: 145.34 | AG92: 0.01 | AH92: 1,124.29 | AI92: 124.61 | AJ92: 0.00 | AK92: 0.51 | AL92: 0.28 | AM92: =AJ92/AJ92 -> 1.00 | AN92: =AK92/AJ92 -> 83,158.77 | AO92: =AL92/AJ92 -> 44,531.48 | AP92: 0.00 | AQ92: 0.00 | AR92: yes
A93: TRINITY_DN52244_c0_g1 | B93: 1,261 | C93: TRINITY_DN52244_c0_g1_i1;TRINITY_DN52244_c0_g1_i2;TRINITY_DN52244_c0_g1_i3;TRINITY_DN52244_c0_g1_i4;TRINITY_DN52244_c0_g1_i5 | D93: peritrophic membrane chitin binding protein, putative [Ixodes scapularis] | E93: - | F93: - | G93: GO:0004568(chitinase activity);GO:0005576(extracellular region);GO:0006032(chitin catabolic process);GO:0008061(chitin binding) | H93: ENOG4111JEU(NA) | I93: - | J93: - | K93: - | L93: - | M93: A0A088A1P6.1 PF01522.19;Polysacc_deac_1; | N93: - | O93: 4,150.00 | P93: 1,064.00 | Q93: 3,094.00 | R93: 1.00 | S93: 5.00 | T93: 6.00 | U93: 1.00 | V93: 0.00 | W93: 3.00 | X93: 355.63 | Y93: 48.71 | Z93: 409.62 | AA93: 0.16 | AB93: 0.41 | AC93: 0.28 | AD93: 0.02 | AE93: 0.00 | AF93: 0.10 | AG93: 271.32 | AH93: 0.28 | AI93: 0.04 | AJ93: 0.17 | AK93: 0.00 | AL93: 0.00 | AM93: =AJ93/AL93 -> 1,898.05 | AN93: =AK93/AL93 -> 1.45 | AO93: =AL93/AL93 -> 1.00 | AP93: 0.00 | AQ93: 0.00 | AR93: yes
A94: TRINITY_DN43090_c0_g1 | B94: 1,875 | C94: TRINITY_DN43090_c0_g1_i1;TRINITY_DN43090_c0_g1_i10;TRINITY_DN43090_c0_g1_i11;TRINITY_DN43090_c0_g1_i12;TRINITY_DN43090_c0_g1_i13;TRINITY_DN43090_c0_g1_i14;TRINITY_DN43090_c0_g1_i2;TRINITY_DN43090_c0_g1_i3;TRINITY_DN43090_c0_g1_i4;TRINITY_DN43090_c0_g1_i5;TRINITY_DN43090_c0_g1_i6;TRINITY_DN43090_c0_g1_i7;TRINITY_DN43090_c0_g1_i8;TRINITY_DN43090_c0_g1_i9 | D94: 20/24 kDa immunodominant saliva protein [Rhipicephalus appendiculatus] | E94: - | F94: - | G94: - | H94: - | I94: - | J94: - | K94: - | L94: - | M94: - | N94: - | O94: 1.00 | P94: 0.00 | Q94: 1.00 | R94: 56,542.89 | S94: 52,831.84 | T94: 36,332.00 | U94: 5,695.00 | V94: 11,309.00 | W94: 7,324.01 | X94: 0.03 | Y94: 0.00 | Z94: 0.04 | AA94: 2,184.21 | AB94: 2,228.12 | AC94: 1,363.63 | AD94: 169.08 | AE94: 350.66 | AF94: 266.07 | AG94: 0.02 | AH94: 1,925.32 | AI94: 261.94 | AJ94: 0.00 | AK94: 0.88 | AL94: 0.58 | AM94: =AJ94/AJ94 -> 1.00 | AN94: =AK94/AJ94 -> 71,203.71 | AO94: =AL94/AJ94 -> 46,804.33 | AP94: 0.00 | AQ94: 0.00 | AR94: yes
A95: TRINITY_DN45033_c0_g3 | B95: 623 | C95: TRINITY_DN45033_c0_g3_i1;TRINITY_DN45033_c0_g3_i2 | D95: - | E95: - | F95: - | G95: - | H95: - | I95: - | J95: - | K95: - | L95: - | M95: - | N95: - | O95: 0.00 | P95: 0.00 | Q95: 0.00 | R95: 0.00 | S95: 0.00 | T95: 0.00 | U95: 1,546.00 | V95: 1,020.00 | W95: 1,408.00 | X95: 0.00 | Y95: 0.00 | Z95: 0.00 | AA95: 0.00 | AB95: 0.00 | AC95: 0.00 | AD95: 297.42 | AE95: 217.97 | AF95: 181.35 | AG95: 0.00 | AH95: 0.00 | AI95: 232.25 | AJ95: 0.00 | AK95: 0.00 | AL95: 0.51 | AM95: =AJ95/AL95 -> 0.00 | AN95: =AK95/AL95 -> 0.00 | AO95: =AL95/AL95 -> 1.00 | AP95: 0.00 | AQ95: 0.00 | AR95: yes
A96: TRINITY_DN35012_c0_g1 | B96: 2,280 | C96: TRINITY_DN35012_c0_g1_i1;TRINITY_DN35012_c0_g1_i2;TRINITY_DN35012_c0_g1_i3;TRINITY_DN35012_c0_g1_i4;TRINITY_DN35012_c0_g1_i5;TRINITY_DN35012_c0_g1_i6;TRINITY_DN35012_c0_g1_i7;TRINITY_DN35012_c0_g1_i8 | D96: protein Skeletor, isoforms B/C-like isoform X1 [Varroa destructor] | E96: Skeletor | F96: Protein Skeletor, isoforms B/C OS=Drosophila melanogaster GN=Skeletor PE=1 SV=2 | G96: GO:0004500(dopamine beta-monooxygenase activity);GO:0005198(structural molecule activity);GO:0005634(nucleus);GO:0005700(polytene chromosome);GO:0006584(catecholamine metabolic process);GO:0006997(nucleus organization);GO:0051225(spindle assembly) | H96: ENOG410XSWZ(domon domain-containing protein) | I96: - | J96: - | K96: - | L96: - | M96: T1KFH7.1 PF10517.7;DM13; | N96: "CS_pos": "Cleavage site between pos. 19 and 20: AAA-EP. Probability: 0.6235", | O96: 11.00 | P96: 1.00 | Q96: 1.00 | R96: 3.00 | S96: 7.00 | T96: 7.00 | U96: 2,352.00 | V96: 2,873.00 | W96: 2,695.00 | X96: 0.74 | Y96: 0.29 | Z96: 0.03 | AA96: 0.07 | AB96: 0.19 | AC96: 0.17 | AD96: 81.56 | AE96: 126.01 | AF96: 109.37 | AG96: 0.35 | AH96: 0.14 | AI96: 105.65 | AJ96: 0.00 | AK96: 0.00 | AL96: 0.23 | AM96: =AJ96/AK96 -> 3.38 | AN96: =AK96/AK96 -> 1.00 | AO96: =AL96/AK96 -> 3,646.08 | AP96: 0.00 | AQ96: 0.00 | AR96: yes
A97: TRINITY_DN56630_c1_g1 | B97: 5,477 | C97: TRINITY_DN56630_c1_g1_i1;TRINITY_DN56630_c1_g1_i2 | D97: fatty acid synthase, putative [Ixodes scapularis] | E97: FASN | F97: Fatty acid synthase OS=Gallus gallus GN=FASN PE=1 SV=5 | G97: GO:0004313([acyl-carrier-protein] S-acetyltransferase activity);GO:0004314([acyl-carrier-protein] S-malonyltransferase activity);GO:0004315(3-oxoacyl-[acyl-carrier-protein] synthase activity);GO:0004316(3-oxoacyl-[acyl-carrier-protein] reductase (NADPH) activity);GO:0004317(3-hydroxypalmitoyl-[acyl-carrier-protein] dehydratase activity);GO:0004319(enoyl-[acyl-carrier-protein] reductase (NADPH, B-specific) activity);GO:0004320(oleoyl-[acyl-carrier-protein] hydrolase activity);GO:0005623(cell);GO:0006089(lactate metabolic process);GO:0006633(fatty acid biosynthetic process);GO:0016295(myristoyl-[acyl-carrier-protein] hydrolase activity);GO:0016296(palmitoyl-[acyl-carrier-protein] hydrolase activity);GO:0031177(phosphopantetheine binding);GO:0032100(positive regulation of appetite);GO:0047117(enoyl-[acyl-carrier-protein] reductase (NADPH, A-specific) activity);GO:0047451(3-hydroxyoctanoyl-[acyl-carrier-protein] dehydratase activity);GO:0055114(oxidation-reduction process) | H97: COG3321(synthase) | I97: K00665 | J97: fatty acid synthase, animal type | K97: EC:2.3.1.85 | L97: isc00061(Fatty acid biosynthesis) | M97: V4B8B1.1 PF00698.19;Acyl_transf_1; | N97: - | O97: 4,638.37 | P97: 1,287.00 | Q97: 2,899.48 | R97: 20.00 | S97: 30.00 | T97: 15.00 | U97: 2.00 | V97: 1.00 | W97: 3.00 | X97: 25.49 | Y97: 18.07 | Z97: 50.58 | AA97: 0.32 | AB97: 0.18 | AC97: 0.08 | AD97: 0.01 | AE97: 0.01 | AF97: 0.01 | AG97: 31.38 | AH97: 0.19 | AI97: 0.01 | AJ97: 0.02 | AK97: 0.00 | AL97: 0.00 | AM97: =AJ97/AL97 -> 878.09 | AN97: =AK97/AL97 -> 3.93 | AO97: =AL97/AL97 -> 1.00 | AP97: 0.00 | AQ97: 0.00 | AR97: yes
A98: TRINITY_DN50656_c0_g2 | B98: 862 | C98: TRINITY_DN50656_c0_g2_i1;TRINITY_DN50656_c0_g2_i10;TRINITY_DN50656_c0_g2_i11;TRINITY_DN50656_c0_g2_i12;TRINITY_DN50656_c0_g2_i13;TRINITY_DN50656_c0_g2_i14;TRINITY_DN50656_c0_g2_i2;TRINITY_DN50656_c0_g2_i3;TRINITY_DN50656_c0_g2_i4;TRINITY_DN50656_c0_g2_i5;TRINITY_DN50656_c0_g2_i6;TRINITY_DN50656_c0_g2_i7;TRINITY_DN50656_c0_g2_i8;TRINITY_DN50656_c0_g2_i9 | D98: - | E98: - | F98: - | G98: - | H98: - | I98: - | J98: - | K98: - | L98: - | M98: - | N98: - | O98: 4.00 | P98: 2.00 | Q98: 1.00 | R98: 25.00 | S98: 34.00 | T98: 67.00 | U98: 7,819.00 | V98: 3,595.00 | W98: 14,669.13 | X98: 0.21 | Y98: 0.20 | Z98: 0.07 | AA98: 1.34 | AB98: 1.89 | AC98: 3.17 | AD98: 385.52 | AE98: 195.69 | AF98: 761.46 | AG98: 0.16 | AH98: 2.13 | AI98: 447.56 | AJ98: 0.00 | AK98: 0.00 | AL98: 0.99 | AM98: =AJ98/AJ98 -> 1.00 | AN98: =AK98/AJ98 -> 9.85 | AO98: =AL98/AJ98 -> 9,996.44 | AP98: 0.00 | AQ98: 0.00 | AR98: yes
A99: TRINITY_DN34514_c0_g1 | B99: 210 | C99: TRINITY_DN34514_c0_g1_i1 | D99: - | E99: - | F99: - | G99: - | H99: - | I99: - | J99: - | K99: - | L99: - | M99: - | N99: - | O99: 2.00 | P99: 1.00 | Q99: 0.00 | R99: 0.00 | S99: 0.00 | T99: 0.00 | U99: 1,231.00 | V99: 1,060.00 | W99: 1,017.00 | X99: 1.47 | Y99: 0.85 | Z99: 0.00 | AA99: 0.00 | AB99: 0.00 | AC99: 0.00 | AD99: 850.25 | AE99: 790.93 | AF99: 778.38 | AG99: 0.77 | AH99: 0.00 | AI99: 806.52 | AJ99: 0.00 | AK99: 0.00 | AL99: 1.78 | AM99: 1.00 | AN99: 0.00 | AO99: 3,743.16 | AP99: 0.00 | AQ99: 0.00 | AR99: yes
A100: TRINITY_DN43697_c0_g4 | B100: 1,420 | C100: TRINITY_DN43697_c0_g4_i1;TRINITY_DN43697_c0_g4_i2;TRINITY_DN43697_c0_g4_i3 | D100: - | E100: - | F100: - | G100: - | H100: - | I100: - | J100: - | K100: - | L100: - | M100: - | N100: - | O100: 14.75 | P100: 24.00 | Q100: 8.00 | R100: 87.94 | S100: 159.99 | T100: 168.90 | U100: 11,389.97 | V100: 7,780.62 | W100: 16,245.88 | X100: 0.55 | Y100: 0.85 | Z100: 0.23 | AA100: 2.38 | AB100: 5.19 | AC100: 4.79 | AD100: 310.71 | AE100: 212.45 | AF100: 448.16 | AG100: 0.54 | AH100: 4.12 | AI100: 323.77 | AJ100: 0.00 | AK100: 0.00 | AL100: 0.72 | AM100: 1.00 | AN100: 5.64 | AO100: 2,142.68 | AP100: 0.00 | AQ100: 0.00 | AR100: yes
A101: TRINITY_DN43545_c1_g1 | B101: 871 | C101: TRINITY_DN43545_c1_g1_i1;TRINITY_DN43545_c1_g1_i2;TRINITY_DN43545_c1_g1_i3;TRINITY_DN43545_c1_g1_i4;TRINITY_DN43545_c1_g1_i5 | D101: - | E101: - | F101: - | G101: - | H101: - | I101: - | J101: - | K101: - | L101: - | M101: - | N101: - | O101: 1.00 | P101: 0.00 | Q101: 0.00 | R101: 2.00 | S101: 3.00 | T101: 11.00 | U101: 1,413.00 | V101: 1,507.32 | W101: 1,374.26 | X101: 0.44 | Y101: 0.00 | Z101: 0.00 | AA101: 0.61 | AB101: 0.93 | AC101: 3.09 | AD101: 488.48 | AE101: 542.69 | AF101: 514.86 | AG101: 0.15 | AH101: 1.54 | AI101: 515.34 | AJ101: 0.00 | AK101: 0.00 | AL101: 1.14 | AM101: 1.00 | AN101: 7.59 | AO101: 12,277.69 | AP101: 0.00 | AQ101: 0.00 | AR101: yes
A102: TRINITY_DN51325_c0_g1 | B102: 2,516 | C102: TRINITY_DN51325_c0_g1_i1;TRINITY_DN51325_c0_g1_i10;TRINITY_DN51325_c0_g1_i11;TRINITY_DN51325_c0_g1_i2;TRINITY_DN51325_c0_g1_i3;TRINITY_DN51325_c0_g1_i4;TRINITY_DN51325_c0_g1_i5;TRINITY_DN51325_c0_g1_i6;TRINITY_DN51325_c0_g1_i7;TRINITY_DN51325_c0_g1_i8;TRINITY_DN51325_c0_g1_i9 | D102: - | E102: - | F102: - | G102: - | H102: - | I102: - | J102: - | K102: - | L102: - | M102: - | N102: - | O102: 0.00 | P102: 1.00 | Q102: 0.00 | R102: 17,828.07 | S102: 18,261.97 | T102: 15,086.00 | U102: 1,231.00 | V102: 2,305.00 | W102: 944.00 | X102: 0.00 | Y102: 0.29 | Z102: 0.00 | AA102: 1,284.71 | AB102: 2,059.40 | AC102: 1,490.30 | AD102: 14.04 | AE102: 77.50 | AF102: 36.70 | AG102: 0.10 | AH102: 1,611.47 | AI102: 42.75 | AJ102: 0.00 | AK102: 0.74 | AL102: 0.09 | AM102: 1.00 | AN102: 11,919.33 | AO102: 1,527.74 | AP102: 0.00 | AQ102: 0.00 | AR102: yes
A103: TRINITY_DN45311_c2_g3 | B103: 1,628 | C103: TRINITY_DN45311_c2_g3_i1;TRINITY_DN45311_c2_g3_i2;TRINITY_DN45311_c2_g3_i3;TRINITY_DN45311_c2_g3_i4;TRINITY_DN45311_c2_g3_i5;TRINITY_DN45311_c2_g3_i6 | D103: putative cement protein RIM36, partial [Dermacentor variabilis] | E103: - | F103: - | G103: - | H103: - | I103: - | J103: - | K103: - | L103: - | M103: - | N103: - | O103: 1.00 | P103: 0.00 | Q103: 0.00 | R103: 30,497.73 | S103: 26,916.99 | T103: 22,121.23 | U103: 1,302.00 | V103: 3,476.01 | W103: 2,057.00 | X103: 0.07 | Y103: 0.00 | Z103: 0.00 | AA103: 2,174.77 | AB103: 1,671.68 | AC103: 1,251.94 | AD103: 37.55 | AE103: 169.29 | AF103: 96.53 | AG103: 0.02 | AH103: 1,699.46 | AI103: 101.12 | AJ103: 0.00 | AK103: 0.78 | AL103: 0.22 | AM103: 1.00 | AN103: 62,850.78 | AO103: 18,068.47 | AP103: 0.00 | AQ103: 0.00 | AR103: yes
A104: TRINITY_DN54396_c0_g1 | B104: 3,191 | C104: TRINITY_DN54396_c0_g1_i1;TRINITY_DN54396_c0_g1_i10;TRINITY_DN54396_c0_g1_i11;TRINITY_DN54396_c0_g1_i12;TRINITY_DN54396_c0_g1_i13;TRINITY_DN54396_c0_g1_i14;TRINITY_DN54396_c0_g1_i15;TRINITY_DN54396_c0_g1_i16;TRINITY_DN54396_c0_g1_i17;TRINITY_DN54396_c0_g1_i18;TRINITY_DN54396_c0_g1_i19;TRINITY_DN54396_c0_g1_i2;TRINITY_DN54396_c0_g1_i20;TRINITY_DN54396_c0_g1_i3;TRINITY_DN54396_c0_g1_i4;TRINITY_DN54396_c0_g1_i5;TRINITY_DN54396_c0_g1_i6;TRINITY_DN54396_c0_g1_i7;TRINITY_DN54396_c0_g1_i8;TRINITY_DN54396_c0_g1_i9 | D104: - | E104: - | F104: - | G104: - | H104: - | I104: - | J104: - | K104: - | L104: - | M104: - | N104: - | O104: 0.00 | P104: 0.00 | Q104: 0.00 | R104: 18,391.99 | S104: 10,749.14 | T104: 9,712.00 | U104: 1,118.00 | V104: 1,268.00 | W104: 1,017.00 | X104: 0.00 | Y104: 0.00 | Z104: 0.00 | AA104: 1,495.32 | AB104: 708.56 | AC104: 689.93 | AD104: 56.04 | AE104: 62.98 | AF104: 45.66 | AG104: 0.00 | AH104: 964.60 | AI104: 54.89 | AJ104: 0.00 | AK104: 0.44 | AL104: 0.12 | AM104: =AJ104/AL104 -> 0.00 | AN104: =AK104/AL104 -> 3.64 | AO104: =AL104/AL104 -> 1.00 | AP104: 0.00 | AQ104: 0.00 | AR104: yes
A105: TRINITY_DN40196_c0_g1 | B105: 733 | C105: TRINITY_DN40196_c0_g1_i1;TRINITY_DN40196_c0_g1_i10;TRINITY_DN40196_c0_g1_i11;TRINITY_DN40196_c0_g1_i12;TRINITY_DN40196_c0_g1_i13;TRINITY_DN40196_c0_g1_i14;TRINITY_DN40196_c0_g1_i15;TRINITY_DN40196_c0_g1_i16;TRINITY_DN40196_c0_g1_i2;TRINITY_DN40196_c0_g1_i3;TRINITY_DN40196_c0_g1_i4;TRINITY_DN40196_c0_g1_i5;TRINITY_DN40196_c0_g1_i6;TRINITY_DN40196_c0_g1_i7;TRINITY_DN40196_c0_g1_i8;TRINITY_DN40196_c0_g1_i9 | D105: - | E105: - | F105: - | G105: - | H105: - | I105: - | J105: - | K105: - | L105: - | M105: - | N105: - | O105: 1,486.00 | P105: 1,685.00 | Q105: 2,380.00 | R105: 18.00 | S105: 10.00 | T105: 21.00 | U105: 7.00 | V105: 3.00 | W105: 5.00 | X105: 303.56 | Y105: 391.33 | Z105: 384.60 | AA105: 2.08 | AB105: 1.48 | AC105: 2.27 | AD105: 1.61 | AE105: 0.75 | AF105: 1.27 | AG105: 359.83 | AH105: 1.94 | AI105: 1.21 | AJ105: 0.22 | AK105: 0.00 | AL105: 0.00 | AM105: =AJ105/AL105 -> 83.21 | AN105: =AK105/AL105 -> 0.33 | AO105: =AL105/AL105 -> 1.00 | AP105: 0.00 | AQ105: 0.00 | AR105: yes
A106: TRINITY_DN37066_c3_g2 | B106: 1,209 | C106: TRINITY_DN37066_c3_g2_i1;TRINITY_DN37066_c3_g2_i2 | D106: - | E106: - | F106: - | G106: - | H106: - | I106: - | J106: - | K106: - | L106: - | M106: - | N106: - | O106: 16.00 | P106: 9.00 | Q106: 1.00 | R106: 11.00 | S106: 8.00 | T106: 20.00 | U106: 5,512.00 | V106: 3,890.00 | W106: 8,182.00 | X106: 0.44 | Y106: 0.28 | Z106: 0.04 | AA106: 0.34 | AB106: 0.25 | AC106: 0.54 | AD106: 144.53 | AE106: 109.97 | AF106: 224.91 | AG106: 0.25 | AH106: 0.38 | AI106: 159.80 | AJ106: 0.00 | AK106: 0.00 | AL106: 0.35 | AM106: =AJ106/AJ106 -> 1.00 | AN106: =AK106/AJ106 -> 1.12 | AO106: =AL106/AJ106 -> 2,284.29 | AP106: 0.00 | AQ106: 0.00 | AR106: yes
A107: TRINITY_DN39144_c1_g1 | B107: 440 | C107: TRINITY_DN39144_c1_g1_i1;TRINITY_DN39144_c1_g1_i2;TRINITY_DN39144_c1_g1_i3;TRINITY_DN39144_c1_g1_i4;TRINITY_DN39144_c1_g1_i5;TRINITY_DN39144_c1_g1_i6;TRINITY_DN39144_c1_g1_i7;TRINITY_DN39144_c1_g1_i8;TRINITY_DN39144_c1_g1_i9 | D107: - | E107: - | F107: - | G107: - | H107: - | I107: - | J107: - | K107: - | L107: - | M107: - | N107: - | O107: 1,931.00 | P107: 731.00 | Q107: 1,399.00 | R107: 0.00 | S107: 0.00 | T107: 0.00 | U107: 0.00 | V107: 0.00 | W107: 0.00 | X107: 572.67 | Y107: 229.21 | Z107: 496.08 | AA107: 0.00 | AB107: 0.00 | AC107: 0.00 | AD107: 0.00 | AE107: 0.00 | AF107: 0.00 | AG107: 432.65 | AH107: 0.00 | AI107: 0.00 | AJ107: 0.27 | AK107: 0.00 | AL107: 0.00 | AM107: =AJ107/AJ107 -> 1.00 | AN107: =AK107/AJ107 -> 0.00 | AO107: =AL107/AJ107 -> 0.00 | AP107: 0.00 | AQ107: 0.00 | AR107: yes
A108: TRINITY_DN18819_c0_g1 | B108: 744 | C108: TRINITY_DN18819_c0_g1_i1 | D108: surfactant protein A1 precursor [Gallus gallus] | E108: Sftpa1 | F108: Pulmonary surfactant-associated protein A OS=Mus musculus GN=Sftpa1 PE=1 SV=1 | G108: GO:0030246(carbohydrate binding) | H108: ENOG410XPJ1(c-type lectin domain family) | I108: K10067 | J108: pulmonary surfactant-associated protein A | K108: - | L108: cpic04145(Phagosome) | M108: Q2LK96.1 PF00059.19;Lectin_C; | N108: - | O108: 1,047.00 | P108: 1,046.00 | Q108: 990.00 | R108: 0.00 | S108: 0.00 | T108: 0.00 | U108: 0.00 | V108: 0.00 | W108: 0.00 | X108: 57.34 | Y108: 63.58 | Z108: 71.33 | AA108: 0.00 | AB108: 0.00 | AC108: 0.00 | AD108: 0.00 | AE108: 0.00 | AF108: 0.00 | AG108: 64.08 | AH108: 0.00 | AI108: 0.00 | AJ108: 0.04 | AK108: 0.00 | AL108: 0.00 | AM108: =AJ108/AJ108 -> 1.00 | AN108: =AK108/AJ108 -> 0.00 | AO108: =AL108/AJ108 -> 0.00 | AP108: 0.00 | AQ108: 0.00 | AR108: yes
A109: TRINITY_DN42022_c0_g4 | B109: 558 | C109: TRINITY_DN42022_c0_g4_i1;TRINITY_DN42022_c0_g4_i2;TRINITY_DN42022_c0_g4_i3 | D109: - | E109: - | F109: - | G109: - | H109: - | I109: - | J109: - | K109: - | L109: - | M109: - | N109: - | O109: 4.00 | P109: 0.00 | Q109: 0.00 | R109: 2,234.00 | S109: 3,717.00 | T109: 2,535.00 | U109: 0.00 | V109: 7.00 | W109: 5.00 | X109: 0.49 | Y109: 0.00 | Z109: 0.00 | AA109: 233.21 | AB109: 388.87 | AC109: 235.68 | AD109: 0.00 | AE109: 0.84 | AF109: 0.60 | AG109: 0.16 | AH109: 285.92 | AI109: 0.48 | AJ109: 0.00 | AK109: 0.13 | AL109: 0.00 | AM109: =AJ109/AJ109 -> 1.00 | AN109: =AK109/AJ109 -> 1,321.77 | AO109: =AL109/AJ109 -> 10.72 | AP109: 0.00 | AQ109: 0.00 | AR109: yes
A110: TRINITY_DN39317_c0_g1 | B110: 1,670 | C110: TRINITY_DN39317_c0_g1_i1 | D110: ixoderin precursor, putative [Ixodes scapularis] | E110: - | F110: Techylectin-5A OS=Tachypleus tridentatus PE=1 SV=1 | G110: GO:0030246(carbohydrate binding) | H110: ENOG410ZYS4(fibrinogen) | I110: NA | J110: NA | K110: NA | L110: NA(NA) | M110: B7QKG4.1 PF00147.16;Fibrinogen_C; | N110: - | O110: 5,310.00 | P110: 2,324.00 | Q110: 950.00 | R110: 0.00 | S110: 0.00 | T110: 0.00 | U110: 0.00 | V110: 0.00 | W110: 0.00 | X110: 98.64 | Y110: 47.69 | Z110: 22.54 | AA110: 0.00 | AB110: 0.00 | AC110: 0.00 | AD110: 0.00 | AE110: 0.00 | AF110: 0.00 | AG110: 56.29 | AH110: 0.00 | AI110: 0.00 | AJ110: 0.03 | AK110: 0.00 | AL110: 0.00 | AM110: =AJ110/AJ110 -> 1.00 | AN110: =AK110/AJ110 -> 0.00 | AO110: =AL110/AJ110 -> 0.00 | AP110: 0.00 | AQ110: 0.00 | AR110: yes
A111: TRINITY_DN34326_c0_g1 | B111: 762 | C111: TRINITY_DN34326_c0_g1_i1 | D111: Niemann-Pick type C1 domain-containing protein, putative [Ixodes scapularis] | E111: - | F111: - | G111: - | H111: ENOG410ZFWI(Niemann-Pick type C1 domain-containing protein) | I111: K12385 | J111: Niemann-Pick C1 protein | K111: - | L111: isc04142(Lysosome) | M111: B7PY52.1 PF16414.3;NPC1_N; | N111: - | O111: 906.00 | P111: 3,270.00 | Q111: 4,170.00 | R111: 3.00 | S111: 7.00 | T111: 7.00 | U111: 0.00 | V111: 1.00 | W111: 1.00 | X111: 47.81 | Y111: 191.48 | Z111: 289.04 | AA111: 0.16 | AB111: 0.37 | AC111: 0.33 | AD111: 0.00 | AE111: 0.05 | AF111: 0.05 | AG111: 176.11 | AH111: 0.29 | AI111: 0.03 | AJ111: 0.11 | AK111: 0.00 | AL111: 0.00 | AM111: =AJ111/AL111 -> 1,642.66 | AN111: =AK111/AL111 -> 2.00 | AO111: =AL111/AL111 -> 1.00 | AP111: 0.00 | AQ111: 0.00 | AR111: yes
A112: TRINITY_DN45268_c0_g1 | B112: 1,105 | C112: TRINITY_DN45268_c0_g1_i1;TRINITY_DN45268_c0_g1_i2;TRINITY_DN45268_c0_g1_i3;TRINITY_DN45268_c0_g1_i4;TRINITY_DN45268_c0_g1_i5 | D112: - | E112: - | F112: - | G112: - | H112: - | I112: - | J112: - | K112: - | L112: - | M112: - | N112: - | O112: 1,257.00 | P112: 1,331.00 | Q112: 808.00 | R112: 0.00 | S112: 0.00 | T112: 0.00 | U112: 0.00 | V112: 0.00 | W112: 0.00 | X112: 67.55 | Y112: 71.15 | Z112: 51.80 | AA112: 0.00 | AB112: 0.00 | AC112: 0.00 | AD112: 0.00 | AE112: 0.00 | AF112: 0.00 | AG112: 63.50 | AH112: 0.00 | AI112: 0.00 | AJ112: 0.04 | AK112: 0.00 | AL112: 0.00 | AM112: =AJ112/AJ112 -> 1.00 | AN112: =AK112/AJ112 -> 0.00 | AO112: =AL112/AJ112 -> 0.00 | AP112: 0.00 | AQ112: 0.00 | AR112: yes
A113: TRINITY_DN55649_c1_g2 | B113: 1,292 | C113: TRINITY_DN55649_c1_g2_i1;TRINITY_DN55649_c1_g2_i2;TRINITY_DN55649_c1_g2_i3 | D113: cuticular protein, putative [Ixodes scapularis] | E113: - | F113: - | G113: GO:0005615(extracellular space) | H113: ENOG410Y0B9(Cuticle protein) | I113: - | J113: - | K113: - | L113: - | M113: B7PA50.1 PF00379.21;Chitin_bind_4; | N113: - | O113: 24.00 | P113: 30.00 | Q113: 38.00 | R113: 3.00 | S113: 1.00 | T113: 4.00 | U113: 8,994.00 | V113: 1,982.00 | W113: 5,051.00 | X113: 0.61 | Y113: 1.94 | Z113: 4.29 | AA113: 0.40 | AB113: 0.03 | AC113: 0.10 | AD113: 568.80 | AE113: 51.59 | AF113: 186.27 | AG113: 2.28 | AH113: 0.18 | AI113: 268.89 | AJ113: 0.00 | AK113: 0.00 | AL113: 0.59 | AM113: =AJ113/AK113 -> 17.13 | AN113: =AK113/AK113 -> 1.00 | AO113: =AL113/AK113 -> 7,217.50 | AP113: 0.00 | AQ113: 0.00 | AR113: yes
A114: TRINITY_DN57618_c3_g1 | B114: 2,680 | C114: TRINITY_DN57618_c3_g1_i1;TRINITY_DN57618_c3_g1_i2;TRINITY_DN57618_c3_g1_i3;TRINITY_DN57618_c3_g1_i4;TRINITY_DN57618_c3_g1_i5 | D114: cuticle protein, putative [Ixodes scapularis] | E114: - | F114: Adult-specific rigid cuticular protein 15.7 OS=Araneus diadematus PE=1 SV=1 | G114: GO:0005615(extracellular space) | H114: ENOG410Y0B9(Cuticle protein) | I114: K03006 | J114: DNA-directed RNA polymerase II subunit RPB1 | K114: EC:2.7.7.6 | L114: tut00230(Purine metabolism);tut00240(Pyrimidine metabolism);tut03020(RNA polymerase) | M114: B7PXX7.1 PF00379.21;Chitin_bind_4; | N114: - | O114: 0.00 | P114: 0.00 | Q114: 0.00 | R114: 4.00 | S114: 2.00 | T114: 13.00 | U114: 2,654.00 | V114: 1,374.00 | W114: 3,533.00 | X114: 0.00 | Y114: 0.00 | Z114: 0.00 | AA114: 0.19 | AB114: 0.03 | AC114: 0.28 | AD114: 37.95 | AE114: 27.60 | AF114: 87.59 | AG114: 0.00 | AH114: 0.17 | AI114: 51.05 | AJ114: 0.00 | AK114: 0.00 | AL114: 0.11 | AM114: =AJ114/AK114 -> 0.00 | AN114: =AK114/AK114 -> 1.00 | AO114: =AL114/AK114 -> 1,450.88 | AP114: 0.00 | AQ114: 0.00 | AR114: yes
A115: TRINITY_DN56175_c0_g1 | B115: 2,234 | C115: TRINITY_DN56175_c0_g1_i1;TRINITY_DN56175_c0_g1_i10;TRINITY_DN56175_c0_g1_i11;TRINITY_DN56175_c0_g1_i2;TRINITY_DN56175_c0_g1_i3;TRINITY_DN56175_c0_g1_i4;TRINITY_DN56175_c0_g1_i5;TRINITY_DN56175_c0_g1_i6;TRINITY_DN56175_c0_g1_i7;TRINITY_DN56175_c0_g1_i8;TRINITY_DN56175_c0_g1_i9 | D115: PREDICTED: elongation of very long chain fatty acids protein 4 [Galendromus occidentalis] | E115: ELOVL4 | F115: Elongation of very long chain fatty acids protein 4 OS=Macaca fascicularis GN=ELOVL4 PE=2 SV=1 | G115: GO:0016740(transferase activity);GO:0019367(fatty acid elongation, saturated fatty acid);GO:0030176(integral component of endoplasmic reticulum membrane);GO:0042761(very long-chain fatty acid biosynthetic process) | H115: ENOG410XRWT(elongation of very long chain fatty acids protein) | I115: K10249 | J115: elongation of very long chain fatty acids protein 4 | K115: EC:2.3.1.199 | L115: isc00062(Fatty acid elongation) | M115: B7QN74.1 PF01151.16;ELO; | N115: - | O115: 4.32 | P115: 0.00 | Q115: 0.00 | R115: 2.00 | S115: 0.00 | T115: 3.28 | U115: 2,530.28 | V115: 2,189.44 | W115: 7,982.74 | X115: 0.79 | Y115: 0.00 | Z115: 0.00 | AA115: 0.28 | AB115: 0.00 | AC115: 0.42 | AD115: 86.26 | AE115: 60.37 | AF115: 204.50 | AG115: 0.26 | AH115: 0.23 | AI115: 117.04 | AJ115: 0.00 | AK115: 0.00 | AL115: 0.26 | AM115: =AJ115/AK115 -> 1.53 | AN115: =AK115/AK115 -> 1.00 | AO115: =AL115/AK115 -> 2,458.62 | AP115: 0.00 | AQ115: 0.00 | AR115: yes
A116: TRINITY_DN41171_c0_g1 | B116: 708 | C116: TRINITY_DN41171_c0_g1_i1;TRINITY_DN41171_c0_g1_i10;TRINITY_DN41171_c0_g1_i11;TRINITY_DN41171_c0_g1_i12;TRINITY_DN41171_c0_g1_i13;TRINITY_DN41171_c0_g1_i14;TRINITY_DN41171_c0_g1_i15;TRINITY_DN41171_c0_g1_i16;TRINITY_DN41171_c0_g1_i17;TRINITY_DN41171_c0_g1_i18;TRINITY_DN41171_c0_g1_i19;TRINITY_DN41171_c0_g1_i2;TRINITY_DN41171_c0_g1_i20;TRINITY_DN41171_c0_g1_i3;TRINITY_DN41171_c0_g1_i4;TRINITY_DN41171_c0_g1_i5;TRINITY_DN41171_c0_g1_i6;TRINITY_DN41171_c0_g1_i7;TRINITY_DN41171_c0_g1_i8;TRINITY_DN41171_c0_g1_i9 | D116: - | E116: - | F116: - | G116: - | H116: - | I116: - | J116: - | K116: - | L116: - | M116: - | N116: - | O116: 24,501.72 | P116: 14,168.59 | Q116: 2,335.46 | R116: 0.00 | S116: 0.00 | T116: 0.00 | U116: 0.00 | V116: 2.00 | W116: 0.00 | X116: 2,974.85 | Y116: 1,419.80 | Z116: 484.70 | AA116: 0.00 | AB116: 0.00 | AC116: 0.00 | AD116: 0.00 | AE116: 0.41 | AF116: 0.00 | AG116: 1,626.45 | AH116: 0.00 | AI116: 0.14 | AJ116: 1.01 | AK116: 0.00 | AL116: 0.00 | AM116: =AJ116/AL116 -> 3,250.86 | AN116: =AK116/AL116 -> 0.00 | AO116: =AL116/AL116 -> 1.00 | AP116: 0.00 | AQ116: 0.00 | AR116: yes
A117: TRINITY_DN53495_c1_g1 | B117: 3,945 | C117: TRINITY_DN53495_c1_g1_i1;TRINITY_DN53495_c1_g1_i2;TRINITY_DN53495_c1_g1_i3;TRINITY_DN53495_c1_g1_i4;TRINITY_DN53495_c1_g1_i5;TRINITY_DN53495_c1_g1_i6;TRINITY_DN53495_c1_g1_i7;TRINITY_DN53495_c1_g1_i8 | D117: hypothetical protein EGW08_004621 [Elysia chlorotica] | E117: AAEL006169 | F117: Lysosomal aspartic protease OS=Aedes aegypti GN=AAEL006169 PE=1 SV=2 | G117: GO:0004190(aspartic-type endopeptidase activity);GO:0005615(extracellular space);GO:0005764(lysosome);GO:0006508(proteolysis);GO:0030163(protein catabolic process) | H117: ENOG410XNV7(aspartic) | I117: K01379 | J117: cathepsin D | K117: EC:3.4.23.5 | L117: nve04142(Lysosome);nve04140(Autophagy - animal) | M117: A7RH56.1 PF00026.21;Asp; | N117: - | O117: 42,396.96 | P117: 4,131.00 | Q117: 13,239.01 | R117: 32.00 | S117: 31.00 | T117: 47.00 | U117: 0.00 | V117: 1.00 | W117: 1.00 | X117: 530.07 | Y117: 56.34 | Z117: 146.33 | AA117: 0.42 | AB117: 0.76 | AC117: 0.96 | AD117: 0.00 | AE117: 0.02 | AF117: 0.01 | AG117: 244.25 | AH117: 0.71 | AI117: 0.01 | AJ117: 0.15 | AK117: 0.00 | AL117: 0.00 | AM117: =AJ117/AL117 -> 6,834.71 | AN117: =AK117/AL117 -> 14.70 | AO117: =AL117/AL117 -> 1.00 | AP117: 0.00 | AQ117: 0.00 | AR117: yes
A118: TRINITY_DN33194_c0_g1 | B118: 1,488 | C118: TRINITY_DN33194_c0_g1_i1 | D118: aspartic protease [Haemaphysalis longicornis] | E118: AAEL006169 | F118: Lysosomal aspartic protease OS=Aedes aegypti GN=AAEL006169 PE=1 SV=2 | G118: GO:0004190(aspartic-type endopeptidase activity);GO:0005615(extracellular space);GO:0005764(lysosome);GO:0006508(proteolysis);GO:0030163(protein catabolic process) | H118: ENOG410XNV7(aspartic) | I118: K01379 | J118: cathepsin D | K118: EC:3.4.23.5 | L118: sko04142(Lysosome);sko04140(Autophagy - animal) | M118: A0A087ZY53.1 PF00026.21;Asp; | N118: - | O118: 2,859.00 | P118: 1,012.00 | Q118: 3,363.00 | R118: 11.00 | S118: 9.00 | T118: 19.00 | U118: 0.00 | V118: 3.00 | W118: 2.00 | X118: 61.04 | Y118: 23.88 | Z118: 91.90 | AA118: 0.27 | AB118: 0.22 | AC118: 0.41 | AD118: 0.00 | AE118: 0.07 | AF118: 0.04 | AG118: 58.94 | AH118: 0.30 | AI118: 0.04 | AJ118: 0.04 | AK118: 0.00 | AL118: 0.00 | AM118: =AJ118/AL118 -> 412.32 | AN118: =AK118/AL118 -> 1.55 | AO118: =AL118/AL118 -> 1.00 | AP118: 0.00 | AQ118: 0.00 | AR118: yes
A119: TRINITY_DN41713_c0_g1 | B119: 2,516 | C119: TRINITY_DN41713_c0_g1_i1;TRINITY_DN41713_c0_g1_i2;TRINITY_DN41713_c0_g1_i3;TRINITY_DN41713_c0_g1_i4 | D119: - | E119: - | F119: - | G119: - | H119: - | I119: - | J119: - | K119: - | L119: - | M119: - | N119: - | O119: 7.00 | P119: 0.00 | Q119: 0.00 | R119: 8.00 | S119: 8.00 | T119: 14.00 | U119: 2,196.00 | V119: 1,597.00 | W119: 2,256.00 | X119: 0.10 | Y119: 0.00 | Z119: 0.00 | AA119: 0.41 | AB119: 0.57 | AC119: 0.64 | AD119: 92.72 | AE119: 76.60 | AF119: 88.04 | AG119: 0.03 | AH119: 0.54 | AI119: 85.79 | AJ119: 0.00 | AK119: 0.00 | AL119: 0.19 | AM119: =AJ119/AJ119 -> 1.00 | AN119: =AK119/AJ119 -> 13.31 | AO119: =AL119/AJ119 -> 10,219.50 | AP119: 0.00 | AQ119: 0.00 | AR119: yes
A120: TRINITY_DN56026_c0_g1 | B120: 2,309 | C120: TRINITY_DN56026_c0_g1_i1;TRINITY_DN56026_c0_g1_i2;TRINITY_DN56026_c0_g1_i3;TRINITY_DN56026_c0_g1_i4;TRINITY_DN56026_c0_g1_i5;TRINITY_DN56026_c0_g1_i6 | D120: - | E120: - | F120: - | G120: - | H120: - | I120: - | J120: - | K120: - | L120: - | M120: - | N120: - | O120: 19.00 | P120: 14.00 | Q120: 26.00 | R120: 47.00 | S120: 39.00 | T120: 67.00 | U120: 5,159.00 | V120: 2,346.00 | W120: 4,284.00 | X120: 0.47 | Y120: 0.35 | Z120: 1.09 | AA120: 1.54 | AB120: 0.95 | AC120: 1.87 | AD120: 93.31 | AE120: 48.56 | AF120: 113.05 | AG120: 0.64 | AH120: 1.45 | AI120: 84.97 | AJ120: 0.00 | AK120: 0.00 | AL120: 0.19 | AM120: =AJ120/AJ120 -> 1.00 | AN120: =AK120/AJ120 -> 1.68 | AO120: =AL120/AJ120 -> 474.46 | AP120: 0.00 | AQ120: 0.00 | AR120: yes
A121: TRINITY_DN51987_c1_g2 | B121: 1,222 | C121: TRINITY_DN51987_c1_g2_i1;TRINITY_DN51987_c1_g2_i2;TRINITY_DN51987_c1_g2_i3;TRINITY_DN51987_c1_g2_i4;TRINITY_DN51987_c1_g2_i5;TRINITY_DN51987_c1_g2_i6;TRINITY_DN51987_c1_g2_i7 | D121: ixoderin precursor, putative [Ixodes scapularis] | E121: - | F121: Techylectin-5A OS=Tachypleus tridentatus PE=1 SV=1 | G121: GO:0030246(carbohydrate binding) | H121: ENOG410ZYS4(fibrinogen) | I121: NA | J121: NA | K121: NA | L121: NA(NA) | M121: B7QKG4.1 PF00147.16;Fibrinogen_C; | N121: - | O121: 1,499.12 | P121: 3,937.67 | Q121: 2,393.41 | R121: 2.00 | S121: 1.00 | T121: 10.00 | U121: 0.00 | V121: 3.00 | W121: 2.00 | X121: 48.13 | Y121: 144.81 | Z121: 111.43 | AA121: 0.08 | AB121: 0.03 | AC121: 0.42 | AD121: 0.00 | AE121: 0.15 | AF121: 0.10 | AG121: 101.46 | AH121: 0.18 | AI121: 0.08 | AJ121: 0.06 | AK121: 0.00 | AL121: 0.00 | AM121: =AJ121/AK121 -> 762.07 | AN121: =AK121/AK121 -> 1.00 | AO121: =AL121/AK121 -> 2.15 | AP121: 0.00 | AQ121: 0.00 | AR121: yes
A122: TRINITY_DN49878_c0_g1 | B122: 1,087 | C122: TRINITY_DN49878_c0_g1_i1;TRINITY_DN49878_c0_g1_i2;TRINITY_DN49878_c0_g1_i3;TRINITY_DN49878_c0_g1_i4;TRINITY_DN49878_c0_g1_i5;TRINITY_DN49878_c0_g1_i6;TRINITY_DN49878_c0_g1_i7;TRINITY_DN49878_c0_g1_i8;TRINITY_DN49878_c0_g1_i9 | D122: - | E122: - | F122: - | G122: - | H122: - | I122: - | J122: - | K122: - | L122: - | M122: - | N122: - | O122: 0.00 | P122: 0.00 | Q122: 0.00 | R122: 0.00 | S122: 1.00 | T122: 1.00 | U122: 1,245.00 | V122: 689.00 | W122: 1,491.00 | X122: 0.00 | Y122: 0.00 | Z122: 0.00 | AA122: 0.00 | AB122: 0.03 | AC122: 0.04 | AD122: 39.54 | AE122: 23.50 | AF122: 50.91 | AG122: 0.00 | AH122: 0.02 | AI122: 37.98 | AJ122: 0.00 | AK122: 0.00 | AL122: 0.08 | AM122: =AJ122/AK122 -> 0.00 | AN122: =AK122/AK122 -> 1.00 | AO122: =AL122/AK122 -> 9,175.07 | AP122: 0.00 | AQ122: 0.00 | AR122: yes
A123: TRINITY_DN51035_c0_g1 | B123: 1,198 | C123: TRINITY_DN51035_c0_g1_i1;TRINITY_DN51035_c0_g1_i2;TRINITY_DN51035_c0_g1_i3;TRINITY_DN51035_c0_g1_i4;TRINITY_DN51035_c0_g1_i5;TRINITY_DN51035_c0_g1_i6;TRINITY_DN51035_c0_g1_i7;TRINITY_DN51035_c0_g1_i8;TRINITY_DN51035_c0_g1_i9 | D123: - | E123: - | F123: - | G123: - | H123: - | I123: - | J123: - | K123: - | L123: - | M123: - | N123: - | O123: 0.00 | P123: 0.00 | Q123: 0.00 | R123: 1.00 | S123: 2.00 | T123: 5.00 | U123: 3,236.22 | V123: 829.05 | W123: 3,916.12 | X123: 0.00 | Y123: 0.00 | Z123: 0.00 | AA123: 0.37 | AB123: 0.38 | AC123: 1.12 | AD123: 809.64 | AE123: 259.45 | AF123: 659.29 | AG123: 0.00 | AH123: 0.62 | AI123: 576.13 | AJ123: 0.00 | AK123: 0.00 | AL123: 1.27 | AM123: =AJ123/AK123 -> 0.00 | AN123: =AK123/AK123 -> 1.00 | AO123: =AL123/AK123 -> 4,489.66 | AP123: 0.00 | AQ123: 0.00 | AR123: yes
A124: TRINITY_DN49207_c0_g1 | B124: 2,289 | C124: TRINITY_DN49207_c0_g1_i1;TRINITY_DN49207_c0_g1_i10;TRINITY_DN49207_c0_g1_i11;TRINITY_DN49207_c0_g1_i12;TRINITY_DN49207_c0_g1_i13;TRINITY_DN49207_c0_g1_i14;TRINITY_DN49207_c0_g1_i2;TRINITY_DN49207_c0_g1_i3;TRINITY_DN49207_c0_g1_i4;TRINITY_DN49207_c0_g1_i5;TRINITY_DN49207_c0_g1_i6;TRINITY_DN49207_c0_g1_i7;TRINITY_DN49207_c0_g1_i8;TRINITY_DN49207_c0_g1_i9 | D124: - | E124: - | F124: - | G124: - | H124: - | I124: - | J124: - | K124: - | L124: - | M124: - | N124: - | O124: 769.00 | P124: 3,702.00 | Q124: 3,357.00 | R124: 0.00 | S124: 3.00 | T124: 1.00 | U124: 2.00 | V124: 0.00 | W124: 1.00 | X124: 26.37 | Y124: 74.58 | Z124: 81.40 | AA124: 0.00 | AB124: 0.06 | AC124: 0.13 | AD124: 0.04 | AE124: 0.00 | AF124: 0.01 | AG124: 60.78 | AH124: 0.06 | AI124: 0.02 | AJ124: 0.04 | AK124: 0.00 | AL124: 0.00 | AM124: =AJ124/AK124 -> 1,369.56 | AN124: =AK124/AK124 -> 1.00 | AO124: =AL124/AK124 -> 1.61 | AP124: 0.00 | AQ124: 0.00 | AR124: yes
A125: TRINITY_DN52234_c1_g3 | B125: 1,259 | C125: TRINITY_DN52234_c1_g3_i1;TRINITY_DN52234_c1_g3_i2;TRINITY_DN52234_c1_g3_i3 | D125: - | E125: - | F125: - | G125: - | H125: - | I125: - | J125: - | K125: - | L125: - | M125: - | N125: - | O125: 4.00 | P125: 2.00 | Q125: 1.00 | R125: 10.00 | S125: 14.00 | T125: 29.00 | U125: 4,444.00 | V125: 1,296.00 | W125: 5,664.00 | X125: 0.19 | Y125: 0.25 | Z125: 0.03 | AA125: 0.29 | AB125: 0.40 | AC125: 1.11 | AD125: 129.49 | AE125: 38.76 | AF125: 202.10 | AG125: 0.16 | AH125: 0.60 | AI125: 123.45 | AJ125: 0.00 | AK125: 0.00 | AL125: 0.27 | AM125: =AJ125/AJ125 -> 1.00 | AN125: =AK125/AJ125 -> 2.77 | AO125: =AL125/AJ125 -> 2,757.31 | AP125: 0.00 | AQ125: 0.00 | AR125: yes
A126: TRINITY_DN48625_c1_g2 | B126: 1,519 | C126: TRINITY_DN48625_c1_g2_i1 | D126: - | E126: - | F126: - | G126: - | H126: - | I126: - | J126: - | K126: - | L126: - | M126: - | N126: - | O126: 0.00 | P126: 0.00 | Q126: 0.00 | R126: 2.61 | S126: 0.00 | T126: 0.00 | U126: 3,827.40 | V126: 821.56 | W126: 3,863.00 | X126: 0.00 | Y126: 0.00 | Z126: 0.00 | AA126: 0.06 | AB126: 0.00 | AC126: 0.00 | AD126: 75.56 | AE126: 17.47 | AF126: 78.28 | AG126: 0.00 | AH126: 0.02 | AI126: 57.10 | AJ126: 0.00 | AK126: 0.00 | AL126: 0.13 | AM126: =AJ126/AK126 -> 0.00 | AN126: =AK126/AK126 -> 1.00 | AO126: =AL126/AK126 -> 13,794.01 | AP126: 0.00 | AQ126: 0.00 | AR126: yes
A127: TRINITY_DN50987_c1_g2 | B127: 455 | C127: TRINITY_DN50987_c1_g2_i1 | D127: - | E127: - | F127: - | G127: - | H127: - | I127: - | J127: - | K127: - | L127: - | M127: - | N127: - | O127: 1,202.09 | P127: 766.74 | Q127: 639.25 | R127: 0.00 | S127: 0.00 | T127: 1.00 | U127: 0.00 | V127: 1.00 | W127: 2.00 | X127: 161.73 | Y127: 116.53 | Z127: 120.48 | AA127: 0.00 | AB127: 0.00 | AC127: 0.10 | AD127: 0.00 | AE127: 0.13 | AF127: 0.26 | AG127: 132.91 | AH127: 0.03 | AI127: 0.13 | AJ127: 0.08 | AK127: 0.00 | AL127: 0.00 | AM127: =AJ127/AK127 -> 5,989.72 | AN127: =AK127/AK127 -> 1.00 | AO127: =AL127/AK127 -> 20.94 | AP127: 0.00 | AQ127: 0.00 | AR127: yes
A128: TRINITY_DN52790_c0_g1 | B128: 2,021 | C128: TRINITY_DN52790_c0_g1_i1;TRINITY_DN52790_c0_g1_i2;TRINITY_DN52790_c0_g1_i3;TRINITY_DN52790_c0_g1_i4;TRINITY_DN52790_c0_g1_i5;TRINITY_DN52790_c0_g1_i6;TRINITY_DN52790_c0_g1_i7;TRINITY_DN52790_c0_g1_i8;TRINITY_DN52790_c0_g1_i9 | D128: - | E128: - | F128: - | G128: - | H128: - | I128: - | J128: - | K128: - | L128: - | M128: - | N128: - | O128: 11.00 | P128: 5.00 | Q128: 0.00 | R128: 34.00 | S128: 61.00 | T128: 120.00 | U128: 19,126.04 | V128: 8,486.00 | W128: 17,824.97 | X128: 1.12 | Y128: 0.31 | Z128: 0.00 | AA128: 5.09 | AB128: 11.71 | AC128: 17.84 | AD128: 3,424.16 | AE128: 2,069.25 | AF128: 2,850.66 | AG128: 0.48 | AH128: 11.55 | AI128: 2,781.36 | AJ128: 0.00 | AK128: 0.01 | AL128: 6.15 | AM128: =AJ128/AJ128 -> 1.00 | AN128: =AK128/AJ128 -> 17.80 | AO128: =AL128/AJ128 -> 20,707.62 | AP128: 0.00 | AQ128: 0.00 | AR128: yes
A129: TRINITY_DN45997_c0_g1 | B129: 784 | C129: TRINITY_DN45997_c0_g1_i1;TRINITY_DN45997_c0_g1_i2;TRINITY_DN45997_c0_g1_i3;TRINITY_DN45997_c0_g1_i4;TRINITY_DN45997_c0_g1_i5;TRINITY_DN45997_c0_g1_i6 | D129: thiopurine methyltransferase, putative [Ixodes scapularis] | E129: - | F129: - | G129: GO:0006139(nucleobase-containing compound metabolic process);GO:0008119(thiopurine S-methyltransferase activity) | H129: ENOG4111GNF(Thiopurine S-methyltransferase) | I129: K00569 | J129: thiopurine S-methyltransferase | K129: EC:2.1.1.67 | L129: isc00983(Drug metabolism - other enzymes) | M129: B7P7D9.1 PF05724.9;TPMT; | N129: - | O129: 10.00 | P129: 11.00 | Q129: 15.00 | R129: 5.00 | S129: 5.00 | T129: 8.00 | U129: 3,848.00 | V129: 1,733.00 | W129: 1,191.00 | X129: 0.66 | Y129: 0.97 | Z129: 1.00 | AA129: 0.45 | AB129: 0.26 | AC129: 0.40 | AD129: 189.37 | AE129: 97.97 | AF129: 68.55 | AG129: 0.88 | AH129: 0.37 | AI129: 118.63 | AJ129: 0.00 | AK129: 0.00 | AL129: 0.26 | AM129: =AJ129/AK129 -> 3.22 | AN129: =AK129/AK129 -> 1.00 | AO129: =AL129/AK129 -> 1,549.09 | AP129: 0.00 | AQ129: 0.00 | AR129: yes
A130: TRINITY_DN45840_c2_g2 | B130: 1,243 | C130: TRINITY_DN45840_c2_g2_i1;TRINITY_DN45840_c2_g2_i2;TRINITY_DN45840_c2_g2_i3;TRINITY_DN45840_c2_g2_i4;TRINITY_DN45840_c2_g2_i5;TRINITY_DN45840_c2_g2_i6;TRINITY_DN45840_c2_g2_i7 | D130: - | E130: - | F130: - | G130: - | H130: - | I130: - | J130: - | K130: - | L130: - | M130: - | N130: - | O130: 1,203.00 | P130: 810.00 | Q130: 1,192.00 | R130: 1.00 | S130: 6.00 | T130: 3.00 | U130: 0.00 | V130: 0.00 | W130: 0.00 | X130: 48.05 | Y130: 32.22 | Z130: 59.66 | AA130: 0.26 | AB130: 0.85 | AC130: 0.48 | AD130: 0.00 | AE130: 0.00 | AF130: 0.00 | AG130: 46.64 | AH130: 0.53 | AI130: 0.00 | AJ130: 0.03 | AK130: 0.00 | AL130: 0.00 | AM130: =AJ130/AK130 -> 118.97 | AN130: =AK130/AK130 -> 1.00 | AO130: =AL130/AK130 -> 0.00 | AP130: 0.00 | AQ130: 0.00 | AR130: yes
A131: TRINITY_DN55256_c0_g1 | B131: 2,136 | C131: TRINITY_DN55256_c0_g1_i1;TRINITY_DN55256_c0_g1_i10;TRINITY_DN55256_c0_g1_i11;TRINITY_DN55256_c0_g1_i12;TRINITY_DN55256_c0_g1_i2;TRINITY_DN55256_c0_g1_i3;TRINITY_DN55256_c0_g1_i4;TRINITY_DN55256_c0_g1_i5;TRINITY_DN55256_c0_g1_i6;TRINITY_DN55256_c0_g1_i7;TRINITY_DN55256_c0_g1_i8;TRINITY_DN55256_c0_g1_i9 | D131: - | E131: - | F131: - | G131: - | H131: - | I131: - | J131: - | K131: - | L131: - | M131: - | N131: - | O131: 1,620.23 | P131: 552.00 | Q131: 1,058.35 | R131: 0.00 | S131: 2.00 | T131: 0.00 | U131: 1.00 | V131: 0.00 | W131: 0.00 | X131: 29.03 | Y131: 13.97 | Z131: 23.75 | AA131: 0.00 | AB131: 0.04 | AC131: 0.00 | AD131: 0.01 | AE131: 0.00 | AF131: 0.00 | AG131: 22.25 | AH131: 0.01 | AI131: 0.00 | AJ131: 0.01 | AK131: 0.00 | AL131: 0.00 | AM131: =AJ131/AK131 -> 3,008.16 | AN131: =AK131/AK131 -> 1.00 | AO131: =AL131/AK131 -> 0.00 | AP131: 0.00 | AQ131: 0.00 | AR131: yes
A132: TRINITY_DN51126_c0_g1 | B132: 892 | C132: TRINITY_DN51126_c0_g1_i1;TRINITY_DN51126_c0_g1_i10;TRINITY_DN51126_c0_g1_i11;TRINITY_DN51126_c0_g1_i12;TRINITY_DN51126_c0_g1_i2;TRINITY_DN51126_c0_g1_i3;TRINITY_DN51126_c0_g1_i4;TRINITY_DN51126_c0_g1_i5;TRINITY_DN51126_c0_g1_i6;TRINITY_DN51126_c0_g1_i7;TRINITY_DN51126_c0_g1_i8;TRINITY_DN51126_c0_g1_i9 | D132: - | E132: - | F132: - | G132: - | H132: - | I132: - | J132: - | K132: - | L132: - | M132: - | N132: - | O132: 1,851.00 | P132: 1,002.79 | Q132: 667.00 | R132: 0.00 | S132: 0.00 | T132: 0.00 | U132: 0.00 | V132: 2.00 | W132: 0.00 | X132: 120.80 | Y132: 69.13 | Z132: 58.65 | AA132: 0.00 | AB132: 0.00 | AC132: 0.00 | AD132: 0.00 | AE132: 0.12 | AF132: 0.00 | AG132: 82.86 | AH132: 0.00 | AI132: 0.04 | AJ132: =AG132/1616.37 -> 0.05 | AK132: =AH132/2185.3 -> 0.00 | AL132: =AI132/452.3 -> 0.00 | AM132: =AJ132/AL132 -> 579.66 | AN132: =AK132/AL132 -> 0.00 | AO132: =AL132/AL132 -> 1.00 | AP132: 0.00 | AQ132: 0.00 | AR132: yes
A133: TRINITY_DN34330_c0_g1 | B133: 696 | C133: TRINITY_DN34330_c0_g1_i1;TRINITY_DN34330_c0_g1_i2 | D133: - | E133: - | F133: - | G133: - | H133: - | I133: - | J133: - | K133: - | L133: - | M133: - | N133: - | O133: 0.00 | P133: 0.00 | Q133: 0.00 | R133: 1.00 | S133: 2.00 | T133: 0.00 | U133: 911.00 | V133: 681.00 | W133: 1,365.00 | X133: 0.00 | Y133: 0.00 | Z133: 0.00 | AA133: 0.06 | AB133: 0.12 | AC133: 0.00 | AD133: 52.34 | AE133: 42.20 | AF133: 81.47 | AG133: 0.00 | AH133: 0.06 | AI133: 58.67 | AJ133: 0.00 | AK133: 0.00 | AL133: 0.13 | AM133: =AJ133/AK133 -> 0.00 | AN133: =AK133/AK133 -> 1.00 | AO133: =AL133/AK133 -> 4,724.43 | AP133: 0.00 | AQ133: 0.00 | AR133: yes
A134: TRINITY_DN34336_c1_g3 | B134: 350 | C134: TRINITY_DN34336_c1_g3_i1 | D134: - | E134: - | F134: - | G134: - | H134: - | I134: - | J134: - | K134: - | L134: - | M134: - | N134: - | O134: 9,914.00 | P134: 5,578.00 | Q134: 3,400.00 | R134: 0.00 | S134: 0.00 | T134: 10.00 | U134: 0.00 | V134: 0.00 | W134: 0.00 | X134: 2,318.14 | Y134: 1,506.05 | Z134: 1,168.06 | AA134: 0.00 | AB134: 0.00 | AC134: 1.57 | AD134: 0.00 | AE134: 0.00 | AF134: 0.00 | AG134: 1,664.08 | AH134: 0.52 | AI134: 0.00 | AJ134: 1.03 | AK134: 0.00 | AL134: 0.00 | AM134: =AJ134/AK134 -> 4,326.54 | AN134: =AK134/AK134 -> 1.00 | AO134: =AL134/AK134 -> 0.00 | AP134: 0.00 | AQ134: 0.00 | AR134: yes
A135: TRINITY_DN40464_c0_g1 | B135: 414 | C135: TRINITY_DN40464_c0_g1_i1;TRINITY_DN40464_c0_g1_i2;TRINITY_DN40464_c0_g1_i3 | D135: - | E135: - | F135: - | G135: - | H135: - | I135: - | J135: - | K135: - | L135: - | M135: - | N135: - | O135: 0.00 | P135: 0.00 | Q135: 0.00 | R135: 0.00 | S135: 0.00 | T135: 0.00 | U135: 1,402.01 | V135: 1,727.00 | W135: 658.00 | X135: 0.00 | Y135: 0.00 | Z135: 0.00 | AA135: 0.00 | AB135: 0.00 | AC135: 0.00 | AD135: 233.31 | AE135: 312.09 | AF135: 121.91 | AG135: 0.00 | AH135: 0.00 | AI135: 222.44 | AJ135: 0.00 | AK135: 0.00 | AL135: 0.49 | AM135: =AJ135/AL135 -> 0.00 | AN135: =AK135/AL135 -> 0.00 | AO135: =AL135/AL135 -> 1.00 | AP135: 0.00 | AQ135: 0.00 | AR135: yes
A136: TRINITY_DN52663_c1_g1 | B136: 3,599 | C136: TRINITY_DN52663_c1_g1_i1;TRINITY_DN52663_c1_g1_i2;TRINITY_DN52663_c1_g1_i3 | D136: - | E136: - | F136: - | G136: - | H136: - | I136: - | J136: - | K136: - | L136: - | M136: - | N136: - | O136: 24.00 | P136: 2.00 | Q136: 6.00 | R136: 27.00 | S136: 33.00 | T136: 66.00 | U136: 9,552.95 | V136: 6,820.00 | W136: 7,762.01 | X136: 0.19 | Y136: 0.02 | Z136: 0.06 | AA136: 0.26 | AB136: 0.30 | AC136: 0.55 | AD136: 74.77 | AE136: 55.51 | AF136: 60.17 | AG136: 0.09 | AH136: 0.37 | AI136: 63.48 | AJ136: 0.00 | AK136: 0.00 | AL136: 0.14 | AM136: =AJ136/AJ136 -> 1.00 | AN136: =AK136/AJ136 -> 3.04 | AO136: =AL136/AJ136 -> 2,520.63 | AP136: 0.00 | AQ136: 0.00 | AR136: yes
A137: TRINITY_DN35901_c0_g1 | B137: 850 | C137: TRINITY_DN35901_c0_g1_i1;TRINITY_DN35901_c0_g1_i2;TRINITY_DN35901_c0_g1_i3;TRINITY_DN35901_c0_g1_i4;TRINITY_DN35901_c0_g1_i5;TRINITY_DN35901_c0_g1_i6;TRINITY_DN35901_c0_g1_i7;TRINITY_DN35901_c0_g1_i8 | D137: immunoglobulin-binding protein, putative [Ixodes scapularis] | E137: - | F137: - | G137: - | H137: - | I137: - | J137: - | K137: - | L137: - | M137: B7PXV1.1 PF02221.13;E1_DerP2_DerF2; | N137: "CS_pos": "Cleavage site between pos. 27 and 28: VEG-SV. Probability: 0.8581", | O137: 1,311.00 | P137: 2,161.00 | Q137: 1,190.00 | R137: 0.00 | S137: 0.00 | T137: 1.00 | U137: 6.00 | V137: 0.00 | W137: 9.00 | X137: 73.05 | Y137: 112.48 | Z137: 69.70 | AA137: 0.00 | AB137: 0.00 | AC137: 0.04 | AD137: 0.96 | AE137: 0.00 | AF137: 0.39 | AG137: 85.08 | AH137: 0.01 | AI137: 0.45 | AJ137: 0.05 | AK137: 0.00 | AL137: 0.00 | AM137: =AJ137/AK137 -> 11,502.65 | AN137: =AK137/AK137 -> 1.00 | AO137: =AL137/AK137 -> 217.42 | AP137: 0.00 | AQ137: 0.00 | AR137: yes
A138: TRINITY_DN56834_c1_g3 | B138: 2,637 | C138: TRINITY_DN56834_c1_g3_i1 | D138: peroxinectin, putative [Ixodes scapularis] | E138: pxdn | F138: Peroxidasin OS=Xenopus tropicalis GN=pxdn PE=2 SV=1 | G138: GO:0001960(negative regulation of cytokine-mediated signaling pathway);GO:0004601(peroxidase activity);GO:0005152(interleukin-1 receptor antagonist activity);GO:0005201(extracellular matrix structural constituent);GO:0005576(extracellular region);GO:0005615(extracellular space);GO:0005783(endoplasmic reticulum);GO:0006955(immune response);GO:0006979(response to oxidative stress);GO:0020037(heme binding);GO:0030198(extracellular matrix organization);GO:0031012(extracellular matrix);GO:0042744(hydrogen peroxide catabolic process);GO:0046872(metal ion binding);GO:0055114(oxidation-reduction process);GO:0070062(extracellular exosome);GO:0098869(cellular oxidant detoxification) | H138: ENOG410XPZ3(prostaglandin G H synthase and cyclooxygenase) | I138: NA | J138: NA | K138: NA | L138: NA(NA) | M138: B7P9B9.1 PF03098.13;An_peroxidase; | N138: - | O138: 23,475.00 | P138: 4,899.00 | Q138: 5,922.00 | R138: 10.00 | S138: 4.00 | T138: 29.00 | U138: 3.00 | V138: 3.00 | W138: 3.00 | X138: 257.99 | Y138: 59.42 | Z138: 82.60 | AA138: 0.13 | AB138: 0.05 | AC138: 0.33 | AD138: 0.03 | AE138: 0.03 | AF138: 0.03 | AG138: 133.34 | AH138: 0.17 | AI138: 0.03 | AJ138: 0.08 | AK138: 0.00 | AL138: 0.00 | AM138: =AJ138/AL138 -> 1,243.73 | AN138: =AK138/AL138 -> 1.17 | AO138: =AL138/AL138 -> 1.00 | AP138: 0.00 | AQ138: 0.00 | AR138: yes
A139: TRINITY_DN44386_c2_g2 | B139: 396 | C139: TRINITY_DN44386_c2_g2_i1;TRINITY_DN44386_c2_g2_i2;TRINITY_DN44386_c2_g2_i3 | D139: - | E139: - | F139: - | G139: - | H139: - | I139: - | J139: - | K139: - | L139: - | M139: - | N139: - | O139: 0.00 | P139: 1.00 | Q139: 0.00 | R139: 0.00 | S139: 1.00 | T139: 2.00 | U139: 1,728.79 | V139: 553.95 | W139: 2,724.88 | X139: 0.00 | Y139: 0.21 | Z139: 0.00 | AA139: 0.00 | AB139: 0.17 | AC139: 0.25 | AD139: 287.70 | AE139: 98.15 | AF139: 509.07 | AG139: 0.07 | AH139: 0.14 | AI139: 298.31 | AJ139: 0.00 | AK139: 0.00 | AL139: 0.66 | AM139: =AJ139/AJ139 -> 1.00 | AN139: =AK139/AJ139 -> 1.48 | AO139: =AL139/AJ139 -> 15,229.44 | AP139: 0.00 | AQ139: 0.00 | AR139: yes
A140: TRINITY_DN50888_c0_g1 | B140: 1,194 | C140: TRINITY_DN50888_c0_g1_i1;TRINITY_DN50888_c0_g1_i2;TRINITY_DN50888_c0_g1_i3;TRINITY_DN50888_c0_g1_i4;TRINITY_DN50888_c0_g1_i5;TRINITY_DN50888_c0_g1_i6 | D140: putative methyltransferase, partial [Dermacentor variabilis] | E140: - | F140: - | G140: GO:0005737(cytoplasm);GO:0008757(S-adenosylmethionine-dependent methyltransferase activity);GO:0032259(methylation) | H140: ENOG410ZWS9(Acid methyltransferase) | I140: K10718 | J140: juvenile hormone-III synthase | K140: EC:2.1.1.325 | L140: isc00981(Insect hormone biosynthesis) | M140: B7Q775.1 PF13649.4;Methyltransf_25; | N140: - | O140: 3,280.00 | P140: 1,753.03 | Q140: 1,978.05 | R140: 47.08 | S140: 61.00 | T140: 54.00 | U140: 4.15 | V140: 10.00 | W140: 12.43 | X140: 145.75 | Y140: 74.92 | Z140: 96.23 | AA140: 4.49 | AB140: 4.66 | AC140: 3.47 | AD140: 0.64 | AE140: 1.16 | AF140: 1.35 | AG140: 105.63 | AH140: 4.21 | AI140: 1.05 | AJ140: 0.07 | AK140: 0.00 | AL140: 0.00 | AM140: =AJ140/AK140 -> 33.92 | AN140: =AK140/AK140 -> 1.00 | AO140: =AL140/AK140 -> 1.21 | AP140: 0.00 | AQ140: 0.00 | AR140: yes
A141: TRINITY_DN51987_c1_g1 | B141: 331 | C141: TRINITY_DN51987_c1_g1_i1 | D141: TPA_inf: ixoderin precursor [Amblyomma variegatum] | E141: - | F141: - | G141: - | H141: - | I141: - | J141: - | K141: - | L141: - | M141: - | N141: - | O141: 1,189.88 | P141: 1,090.64 | Q141: 644.77 | R141: 1.00 | S141: 3.00 | T141: 0.00 | U141: 0.00 | V141: 0.00 | W141: 0.00 | X141: 313.26 | Y141: 332.37 | Z141: 251.01 | AA141: 0.19 | AB141: 0.58 | AC141: 0.00 | AD141: 0.00 | AE141: 0.00 | AF141: 0.00 | AG141: 298.88 | AH141: 0.26 | AI141: 0.00 | AJ141: 0.18 | AK141: 0.00 | AL141: 0.00 | AM141: =AJ141/AK141 -> 1,554.15 | AN141: =AK141/AK141 -> 1.00 | AO141: =AL141/AK141 -> 0.00 | AP141: 0.00 | AQ141: 0.00 | AR141: yes
A142: TRINITY_DN39292_c0_g2 | B142: 1,035 | C142: TRINITY_DN39292_c0_g2_i1;TRINITY_DN39292_c0_g2_i2;TRINITY_DN39292_c0_g2_i3;TRINITY_DN39292_c0_g2_i4;TRINITY_DN39292_c0_g2_i5;TRINITY_DN39292_c0_g2_i6;TRINITY_DN39292_c0_g2_i7;TRINITY_DN39292_c0_g2_i8 | D142: - | E142: - | F142: - | G142: - | H142: - | I142: - | J142: - | K142: - | L142: - | M142: - | N142: - | O142: 4,051.15 | P142: 1,402.95 | Q142: 2,154.21 | R142: 9.00 | S142: 11.00 | T142: 18.72 | U142: 13.07 | V142: 7.00 | W142: 2.00 | X142: 191.56 | Y142: 117.07 | Z142: 342.06 | AA142: 2.03 | AB142: 2.02 | AC142: 3.22 | AD142: 1.98 | AE142: 1.62 | AF142: 0.63 | AG142: 216.90 | AH142: 2.42 | AI142: 1.41 | AJ142: 0.13 | AK142: 0.00 | AL142: 0.00 | AM142: =AJ142/AK142 -> 121.18 | AN142: =AK142/AK142 -> 1.00 | AO142: =AL142/AK142 -> 2.82 | AP142: 0.00 | AQ142: 0.00 | AR142: yes
A143: TRINITY_DN49720_c0_g2 | B143: 5,278 | C143: TRINITY_DN49720_c0_g2_i1;TRINITY_DN49720_c0_g2_i2;TRINITY_DN49720_c0_g2_i3 | D143: hypothetical protein X975_18153, partial [Stegodyphus mimosarum] | E143: NT1 | F143: Neurotrophin 1 OS=Drosophila melanogaster GN=NT1 PE=1 SV=1 | G143: GO:0005121(Toll binding);GO:0005576(extracellular region);GO:0007399(nervous system development);GO:0007411(axon guidance);GO:0008045(motor neuron axon guidance);GO:0008063(Toll signaling pathway);GO:0008083(growth factor activity);GO:0008592(regulation of Toll signaling pathway);GO:0010941(regulation of cell death);GO:0021556(central nervous system formation);GO:0031637(regulation of neuronal synaptic plasticity in response to neurotrophin);GO:0045087(innate immune response) | H143: ENOG4111KIW(NA) | I143: K01052 | J143: lysosomal acid lipase/cholesteryl ester hydrolase | K143: EC:3.1.1.13 | L143: dpx00100(Steroid biosynthesis);dpx04142(Lysosome) | M143: H9JMW8.1 PF16077.3;Spaetzle; | N143: - | O143: 0.00 | P143: 2.00 | Q143: 0.00 | R143: 6.00 | S143: 2.00 | T143: 4.00 | U143: 1,199.00 | V143: 783.00 | W143: 1,979.00 | X143: 0.00 | Y143: 0.02 | Z143: 0.00 | AA143: 0.08 | AB143: 0.04 | AC143: 0.05 | AD143: 11.54 | AE143: 8.75 | AF143: 20.14 | AG143: 0.01 | AH143: 0.06 | AI143: 13.48 | AJ143: 0.00 | AK143: 0.00 | AL143: 0.03 | AM143: =AJ143/AJ143 -> 1.00 | AN143: =AK143/AJ143 -> 4.44 | AO143: =AL143/AJ143 -> 4,817.30 | AP143: 0.00 | AQ143: 0.00 | AR143: yes
A144: TRINITY_DN38173_c0_g2 | B144: 876 | C144: TRINITY_DN38173_c0_g2_i1;TRINITY_DN38173_c0_g2_i10;TRINITY_DN38173_c0_g2_i11;TRINITY_DN38173_c0_g2_i12;TRINITY_DN38173_c0_g2_i13;TRINITY_DN38173_c0_g2_i14;TRINITY_DN38173_c0_g2_i2;TRINITY_DN38173_c0_g2_i3;TRINITY_DN38173_c0_g2_i4;TRINITY_DN38173_c0_g2_i5;TRINITY_DN38173_c0_g2_i6;TRINITY_DN38173_c0_g2_i7;TRINITY_DN38173_c0_g2_i8;TRINITY_DN38173_c0_g2_i9 | D144: salivary protein Sal1 [Rhipicephalus annulatus] | E144: - | F144: - | G144: - | H144: - | I144: - | J144: - | K144: - | L144: - | M144: - | N144: - | O144: 20,966.13 | P144: 7,282.01 | Q144: 2,444.94 | R144: 0.00 | S144: 1.00 | T144: 1.00 | U144: 5.00 | V144: 1.00 | W144: 11.00 | X144: 8,435.92 | Y144: 3,131.53 | Z144: 1,016.01 | AA144: 0.00 | AB144: 0.28 | AC144: 0.45 | AD144: 1.41 | AE144: 0.20 | AF144: 2.44 | AG144: 4,194.49 | AH144: 0.24 | AI144: 1.35 | AJ144: 2.60 | AK144: 0.00 | AL144: 0.00 | AM144: =AJ144/AK144 -> 23,628.61 | AN144: =AK144/AK144 -> 1.00 | AO144: =AL144/AK144 -> 27.18 | AP144: 0.00 | AQ144: 0.00 | AR144: yes
A145: TRINITY_DN41263_c0_g2 | B145: 3,406 | C145: TRINITY_DN41263_c0_g2_i1;TRINITY_DN41263_c0_g2_i2;TRINITY_DN41263_c0_g2_i3;TRINITY_DN41263_c0_g2_i4;TRINITY_DN41263_c0_g2_i5;TRINITY_DN41263_c0_g2_i6;TRINITY_DN41263_c0_g2_i7 | D145: Vitellogenin-2 [Caenorhabditis elegans] | E145: vit-2 | F145: Vitellogenin-2 OS=Caenorhabditis elegans GN=vit-2 PE=1 SV=5 | G145: GO:0005319(lipid transporter activity);GO:0005576(extracellular region);GO:0006869(lipid transport);GO:0031410(cytoplasmic vesicle);GO:0031983(vesicle lumen);GO:0042718(yolk granule);GO:0045735(nutrient reservoir activity) | H145: ENOG411104F(Apolipoprotein B (Including Ag(X) antigen)) | I145: - | J145: - | K145: - | L145: - | M145: G8JY38.1 PF09172.9;DUF1943; | N145: - | O145: 0.00 | P145: 0.00 | Q145: 0.00 | R145: 880.00 | S145: 1,019.00 | T145: 1,106.00 | U145: 0.00 | V145: 0.00 | W145: 0.00 | X145: 0.00 | Y145: 0.00 | Z145: 0.00 | AA145: 11.56 | AB145: 12.12 | AC145: 12.06 | AD145: 0.00 | AE145: 0.00 | AF145: 0.00 | AG145: 0.00 | AH145: 11.91 | AI145: 0.00 | AJ145: 0.00 | AK145: 0.01 | AL145: 0.00 | AM145: =AJ145/AK145 -> 0.00 | AN145: =AK145/AK145 -> 1.00 | AO145: =AL145/AK145 -> 0.00 | AP145: 0.00 | AQ145: 0.00 | AR145: yes
A146: TRINITY_DN40429_c0_g1 | B146: 1,236 | C146: TRINITY_DN40429_c0_g1_i1;TRINITY_DN40429_c0_g1_i2 | D146: salivary sulfotransferase, putative [Ixodes scapularis] | E146: Sult3a1 | F146: Amine sulfotransferase OS=Mus musculus GN=Sult3a1 PE=2 SV=1 | G146: GO:0008146(sulfotransferase activity) | H146: ENOG4111H56(Sulfotransferase) | I146: NA | J146: NA | K146: NA | L146: NA(NA) | M146: B7PQV2.1 PF00685.25;Sulfotransfer_1; | N146: - | O146: 951.00 | P146: 1,337.00 | Q146: 1,023.00 | R146: 7.00 | S146: 16.00 | T146: 7.00 | U146: 1.00 | V146: 2.00 | W146: 1.00 | X146: 26.03 | Y146: 41.74 | Z146: 37.17 | AA146: 0.22 | AB146: 0.49 | AC146: 0.19 | AD146: 0.03 | AE146: 0.06 | AF146: 0.03 | AG146: 34.98 | AH146: 0.30 | AI146: 0.04 | AJ146: 0.02 | AK146: 0.00 | AL146: 0.00 | AM146: =AJ146/AL146 -> 244.71 | AN146: =AK146/AL146 -> 1.55 | AO146: =AL146/AL146 -> 1.00 | AP146: 0.00 | AQ146: 0.00 | AR146: yes
A147: TRINITY_DN43343_c1_g1 | B147: 1,537 | C147: TRINITY_DN43343_c1_g1_i1;TRINITY_DN43343_c1_g1_i2;TRINITY_DN43343_c1_g1_i3;TRINITY_DN43343_c1_g1_i4 | D147: - | E147: - | F147: - | G147: - | H147: - | I147: - | J147: - | K147: - | L147: - | M147: - | N147: - | O147: 1,119.00 | P147: 667.00 | Q147: 1,246.00 | R147: 1.00 | S147: 0.00 | T147: 2.00 | U147: 8.00 | V147: 3.00 | W147: 3.00 | X147: 400.94 | Y147: 110.32 | Z147: 234.62 | AA147: 0.35 | AB147: 0.00 | AC147: 0.64 | AD147: 0.56 | AE147: 0.70 | AF147: 1.22 | AG147: 248.63 | AH147: 0.33 | AI147: 0.83 | AJ147: 0.15 | AK147: 0.00 | AL147: 0.00 | AM147: =AJ147/AK147 -> 1,018.61 | AN147: =AK147/AK147 -> 1.00 | AO147: =AL147/AK147 -> 12.15 | AP147: 0.00 | AQ147: 0.00 | AR147: yes
A148: TRINITY_DN37201_c1_g4 | B148: 294 | C148: TRINITY_DN37201_c1_g4_i1 | D148: - | E148: - | F148: - | G148: - | H148: - | I148: - | J148: - | K148: - | L148: - | M148: - | N148: - | O148: 0.00 | P148: 0.00 | Q148: 0.00 | R148: 0.00 | S148: 2.00 | T148: 0.00 | U148: 1,241.00 | V148: 616.00 | W148: 945.00 | X148: 0.00 | Y148: 0.00 | Z148: 0.00 | AA148: 0.00 | AB148: 0.49 | AC148: 0.00 | AD148: 382.73 | AE148: 205.30 | AF148: 323.95 | AG148: 0.00 | AH148: 0.16 | AI148: 303.99 | AJ148: 0.00 | AK148: 0.00 | AL148: 0.67 | AM148: =AJ148/AK148 -> 0.00 | AN148: =AK148/AK148 -> 1.00 | AO148: =AL148/AK148 -> 9,179.60 | AP148: 0.00 | AQ148: 0.00 | AR148: yes
A149: TRINITY_DN58100_c0_g1 | B149: 3,411 | C149: TRINITY_DN58100_c0_g1_i1;TRINITY_DN58100_c0_g1_i2 | D149: acetylcholinesterase, putative [Ixodes scapularis] | E149: - | F149: Acetylcholinesterase OS=Leptinotarsa decemlineata PE=2 SV=1 | G149: GO:0004104(cholinesterase activity);GO:0005615(extracellular space) | H149: COG2272(Carboxylesterase) | I149: K01049 | J149: acetylcholinesterase | K149: EC:3.1.1.7 | L149: isc00564(Glycerophospholipid metabolism) | M149: B7PWE5.1 PF00135.26;COesterase; | N149: - | O149: 1.00 | P149: 0.00 | Q149: 0.00 | R149: 3.00 | S149: 6.00 | T149: 0.00 | U149: 5,481.41 | V149: 894.76 | W149: 5,336.00 | X149: 0.19 | Y149: 0.00 | Z149: 0.00 | AA149: 0.03 | AB149: 0.06 | AC149: 0.00 | AD149: 47.88 | AE149: 8.22 | AF149: 43.58 | AG149: 0.06 | AH149: 0.03 | AI149: 33.23 | AJ149: 0.00 | AK149: 0.00 | AL149: 0.07 | AM149: =AJ149/AK149 -> 2.70 | AN149: =AK149/AK149 -> 1.00 | AO149: =AL149/AK149 -> 5,351.72 | AP149: 0.00 | AQ149: 0.00 | AR149: yes
A150: TRINITY_DN48825_c1_g1 | B150: 1,330 | C150: TRINITY_DN48825_c1_g1_i1;TRINITY_DN48825_c1_g1_i2 | D150: conserved hypothetical protein [Ixodes scapularis] | E150: - | F150: - | G150: - | H150: ENOG410Y1IK(Protein of unknown function (DUF3421)) | I150: - | J150: - | K150: - | L150: - | M150: - | N150: - | O150: 16,923.98 | P150: 19,762.04 | Q150: 12,396.03 | R150: 447.00 | S150: 468.00 | T150: 384.00 | U150: 52.00 | V150: 81.00 | W150: 29.00 | X150: 1,247.64 | Y150: 1,624.60 | Z150: 1,224.31 | AA150: 31.67 | AB150: 32.85 | AC150: 24.11 | AD150: 3.51 | AE150: 5.66 | AF150: 2.11 | AG150: 1,365.52 | AH150: 29.54 | AI150: 3.76 | AJ150: 0.84 | AK150: 0.01 | AL150: 0.01 | AM150: =AJ150/AL150 -> 101.62 | AN150: =AK150/AL150 -> 1.63 | AO150: =AL150/AL150 -> 1.00 | AP150: 0.00 | AQ150: 0.00 | AR150: yes
A151: TRINITY_DN38633_c0_g1 | B151: 927 | C151: TRINITY_DN38633_c0_g1_i1;TRINITY_DN38633_c0_g1_i10;TRINITY_DN38633_c0_g1_i11;TRINITY_DN38633_c0_g1_i12;TRINITY_DN38633_c0_g1_i13;TRINITY_DN38633_c0_g1_i14;TRINITY_DN38633_c0_g1_i15;TRINITY_DN38633_c0_g1_i16;TRINITY_DN38633_c0_g1_i2;TRINITY_DN38633_c0_g1_i3;TRINITY_DN38633_c0_g1_i4;TRINITY_DN38633_c0_g1_i5;TRINITY_DN38633_c0_g1_i6;TRINITY_DN38633_c0_g1_i7;TRINITY_DN38633_c0_g1_i8;TRINITY_DN38633_c0_g1_i9 | D151: - | E151: - | F151: - | G151: - | H151: - | I151: - | J151: - | K151: - | L151: - | M151: - | N151: "CS_pos": "Cleavage site between pos. 20 and 21: CFA-SG. Probability: 0.5542", | O151: 1.00 | P151: 0.00 | Q151: 0.00 | R151: 10,332.99 | S151: 31,919.01 | T151: 15,513.99 | U151: 8,485.99 | V151: 13,350.00 | W151: 10,361.00 | X151: 0.05 | Y151: 0.00 | Z151: 0.00 | AA151: 912.84 | AB151: 3,123.18 | AC151: 1,264.21 | AD151: 1,174.01 | AE151: 2,161.98 | AF151: 1,521.97 | AG151: 0.02 | AH151: 1,766.74 | AI151: 1,619.32 | AJ151: 0.00 | AK151: 0.81 | AL151: 3.58 | AM151: =AJ151/AJ151 -> 1.00 | AN151: =AK151/AJ151 -> 65,338.98 | AO151: =AL151/AJ151 -> 289,345.60 | AP151: 0.00 | AQ151: 0.00 | AR151: yes
A152: TRINITY_DN49972_c0_g2 | B152: 308 | C152: TRINITY_DN49972_c0_g2_i1 | D152: - | E152: - | F152: - | G152: - | H152: - | I152: - | J152: - | K152: - | L152: - | M152: - | N152: - | O152: 0.00 | P152: 0.00 | Q152: 0.00 | R152: 0.00 | S152: 0.00 | T152: 0.00 | U152: 883.00 | V152: 673.00 | W152: 1,115.00 | X152: 0.00 | Y152: 0.00 | Z152: 0.00 | AA152: 0.00 | AB152: 0.00 | AC152: 0.00 | AD152: 244.96 | AE152: 201.82 | AF152: 343.30 | AG152: 0.00 | AH152: 0.00 | AI152: 263.36 | AJ152: 0.00 | AK152: 0.00 | AL152: 0.58 | AM152: =AJ152/AL152 -> 0.00 | AN152: =AK152/AL152 -> 0.00 | AO152: =AL152/AL152 -> 1.00 | AP152: 0.00 | AQ152: 0.00 | AR152: yes
A153: TRINITY_DN49972_c0_g1 | B153: 371 | C153: TRINITY_DN49972_c0_g1_i1;TRINITY_DN49972_c0_g1_i2 | D153: - | E153: - | F153: - | G153: - | H153: - | I153: - | J153: - | K153: - | L153: - | M153: - | N153: - | O153: 0.00 | P153: 0.00 | Q153: 0.00 | R153: 0.00 | S153: 0.00 | T153: 0.00 | U153: 889.29 | V153: 766.28 | W153: 709.92 | X153: 0.00 | Y153: 0.00 | Z153: 0.00 | AA153: 0.00 | AB153: 0.00 | AC153: 0.00 | AD153: 219.33 | AE153: 219.94 | AF153: 201.42 | AG153: 0.00 | AH153: 0.00 | AI153: 213.56 | AJ153: 0.00 | AK153: 0.00 | AL153: 0.47 | AM153: =AJ153/AL153 -> 0.00 | AN153: =AK153/AL153 -> 0.00 | AO153: =AL153/AL153 -> 1.00 | AP153: 0.00 | AQ153: 0.00 | AR153: yes
A154: TRINITY_DN35946_c0_g2 | B154: 1,592 | C154: TRINITY_DN35946_c0_g2_i1;TRINITY_DN35946_c0_g2_i2 | D154: cuticular protein, putative [Ixodes scapularis] | E154: - | F154: Cuticle protein 10.9 OS=Ixodes ricinus PE=1 SV=1 | G154: GO:0005615(extracellular space) | H154: ENOG410Y0B9(Cuticle protein) | I154: - | J154: - | K154: - | L154: - | M154: B7PDK3.1 PF00379.21;Chitin_bind_4; | N154: "CS_pos": "Cleavage site between pos. 42 and 43: ANA-GN. Probability: 0.5355", | O154: 0.00 | P154: 0.00 | Q154: 0.00 | R154: 62.00 | S154: 95.00 | T154: 128.00 | U154: 2,112.00 | V154: 1,225.00 | W154: 1,815.00 | X154: 0.00 | Y154: 0.00 | Z154: 0.00 | AA154: 1.42 | AB154: 2.13 | AC154: 2.57 | AD154: 39.70 | AE154: 24.75 | AF154: 34.99 | AG154: 0.00 | AH154: 2.04 | AI154: 33.15 | AJ154: 0.00 | AK154: 0.00 | AL154: 0.07 | AM154: =AJ154/AK154 -> 0.00 | AN154: =AK154/AK154 -> 1.00 | AO154: =AL154/AK154 -> 78.51 | AP154: 0.00 | AQ154: 0.00 | AR154: yes
A155: TRINITY_DN42487_c0_g1 | B155: 219 | C155: TRINITY_DN42487_c0_g1_i1 | D155: - | E155: - | F155: - | G155: - | H155: - | I155: - | J155: - | K155: - | L155: - | M155: - | N155: - | O155: 0.00 | P155: 2.00 | Q155: 0.00 | R155: 0.00 | S155: 0.00 | T155: 0.00 | U155: 846.00 | V155: 656.00 | W155: 1,156.00 | X155: 0.00 | Y155: 1.56 | Z155: 0.00 | AA155: 0.00 | AB155: 0.00 | AC155: 0.00 | AD155: 527.89 | AE155: 441.17 | AF155: 802.77 | AG155: 0.52 | AH155: 0.00 | AI155: 590.61 | AJ155: 0.00 | AK155: 0.00 | AL155: 1.31 | AM155: =AJ155/AJ155 -> 1.00 | AN155: =AK155/AJ155 -> 0.00 | AO155: =AL155/AJ155 -> 4,058.93 | AP155: 0.00 | AQ155: 0.00 | AR155: yes
A156: TRINITY_DN50628_c0_g1 | B156: 3,184 | C156: TRINITY_DN50628_c0_g1_i1;TRINITY_DN50628_c0_g1_i10;TRINITY_DN50628_c0_g1_i11;TRINITY_DN50628_c0_g1_i2;TRINITY_DN50628_c0_g1_i3;TRINITY_DN50628_c0_g1_i4;TRINITY_DN50628_c0_g1_i5;TRINITY_DN50628_c0_g1_i6;TRINITY_DN50628_c0_g1_i7;TRINITY_DN50628_c0_g1_i8;TRINITY_DN50628_c0_g1_i9 | D156: cuticle protein, putative [Ixodes scapularis] | E156: - | F156: Adult-specific rigid cuticular protein 15.5 OS=Araneus diadematus PE=1 SV=1 | G156: GO:0005615(extracellular space) | H156: ENOG410Y0B9(Cuticle protein) | I156: K03006 | J156: DNA-directed RNA polymerase II subunit RPB1 | K156: EC:2.7.7.6 | L156: tut00230(Purine metabolism);tut00240(Pyrimidine metabolism);tut03020(RNA polymerase) | M156: B7P5Q4.1 PF00379.21;Chitin_bind_4; | N156: - | O156: 0.00 | P156: 2.00 | Q156: 0.00 | R156: 9.00 | S156: 5.00 | T156: 6.00 | U156: 14,164.03 | V156: 1,200.00 | W156: 10,086.01 | X156: 0.00 | Y156: 0.04 | Z156: 0.00 | AA156: 0.14 | AB156: 0.09 | AC156: 0.09 | AD156: 158.94 | AE156: 15.33 | AF156: 138.26 | AG156: 0.01 | AH156: 0.11 | AI156: 104.18 | AJ156: 0.00 | AK156: 0.00 | AL156: 0.23 | AM156: =AJ156/AJ156 -> 1.00 | AN156: =AK156/AJ156 -> 8.14 | AO156: =AL156/AJ156 -> 37,230.47 | AP156: 0.00 | AQ156: 0.00 | AR156: yes
A157: TRINITY_DN37667_c1_g3 | B157: 1,475 | C157: TRINITY_DN37667_c1_g3_i1;TRINITY_DN37667_c1_g3_i2 | D157: Proclotting enzyme, partial [Stegodyphus mimosarum] | E157: - | F157: Clotting factor B OS=Tachypleus tridentatus PE=1 SV=1 | G157: GO:0004252(serine-type endopeptidase activity);GO:0005044(scavenger receptor activity);GO:0006508(proteolysis);GO:0008233(peptidase activity);GO:0008236(serine-type peptidase activity);GO:0016020(membrane);GO:0016787(hydrolase activity) | H157: COG5640(protease) | I157: NA | J157: NA | K157: NA | L157: NA(NA) | M157: T1KLS5.1 PF00089.24;Trypsin; | N157: - | O157: 0.00 | P157: 0.00 | Q157: 0.00 | R157: 11.00 | S157: 18.00 | T157: 9.00 | U157: 892.00 | V157: 1,412.00 | W157: 2,990.00 | X157: 0.00 | Y157: 0.00 | Z157: 0.00 | AA157: 0.27 | AB157: 0.44 | AC157: 0.20 | AD157: 18.44 | AE157: 31.41 | AF157: 63.49 | AG157: 0.00 | AH157: 0.30 | AI157: 37.78 | AJ157: 0.00 | AK157: 0.00 | AL157: 0.08 | AM157: =AJ157/AK157 -> 0.00 | AN157: =AK157/AK157 -> 1.00 | AO157: =AL157/AK157 -> 608.45 | AP157: 0.00 | AQ157: 0.00 | AR157: yes
A158: TRINITY_DN47165_c1_g2 | B158: 3,694 | C158: TRINITY_DN47165_c1_g2_i1;TRINITY_DN47165_c1_g2_i2;TRINITY_DN47165_c1_g2_i3 | D158: transglutaminase [Haemaphysalis longicornis] | E158: - | F158: Annulin OS=Schistocerca americana PE=2 SV=1 | G158: GO:0003810(protein-glutamine gamma-glutamyltransferase activity);GO:0018149(peptide cross-linking);GO:0042381(hemolymph coagulation);GO:0045087(innate immune response) | H158: ENOG410XQEZ(transglutaminase) | I158: NA | J158: NA | K158: NA | L158: NA(NA) | M158: E9FUJ2.1 PF01841.17;Transglut_core; | N158: - | O158: 0.00 | P158: 0.00 | Q158: 0.00 | R158: 4,890.00 | S158: 3,850.00 | T158: 3,000.00 | U158: 3,038.00 | V158: 3,039.00 | W158: 3,577.00 | X158: 0.00 | Y158: 0.00 | Z158: 0.00 | AA158: 61.96 | AB158: 48.90 | AC158: 34.51 | AD158: 36.19 | AE158: 41.67 | AF158: 46.40 | AG158: 0.00 | AH158: 48.46 | AI158: 41.42 | AJ158: 0.00 | AK158: 0.02 | AL158: 0.09 | AM158: =AJ158/AK158 -> 0.00 | AN158: =AK158/AK158 -> 1.00 | AO158: =AL158/AK158 -> 4.13 | AP158: 0.00 | AQ158: 0.00 | AR158: yes
A159: TRINITY_DN41209_c0_g2 | B159: 1,432 | C159: TRINITY_DN41209_c0_g2_i1;TRINITY_DN41209_c0_g2_i2;TRINITY_DN41209_c0_g2_i3;TRINITY_DN41209_c0_g2_i4;TRINITY_DN41209_c0_g2_i5 | D159: - | E159: - | F159: - | G159: - | H159: - | I159: - | J159: - | K159: - | L159: - | M159: - | N159: - | O159: 0.00 | P159: 1.00 | Q159: 4.00 | R159: 6.00 | S159: 29.00 | T159: 11.00 | U159: 3,253.00 | V159: 2,036.00 | W159: 1,679.00 | X159: 0.00 | Y159: 0.09 | Z159: 0.45 | AA159: 0.68 | AB159: 2.85 | AC159: 1.11 | AD159: 364.60 | AE159: 243.06 | AF159: 201.17 | AG159: 0.18 | AH159: 1.55 | AI159: 269.61 | AJ159: 0.00 | AK159: 0.00 | AL159: 0.60 | AM159: =AJ159/AJ159 -> 1.00 | AN159: =AK159/AJ159 -> 6.37 | AO159: =AL159/AJ159 -> 5,352.76 | AP159: 0.00 | AQ159: 0.00 | AR159: yes
A160: TRINITY_DN56779_c2_g4 | B160: 2,322 | C160: TRINITY_DN56779_c2_g4_i1;TRINITY_DN56779_c2_g4_i2;TRINITY_DN56779_c2_g4_i3;TRINITY_DN56779_c2_g4_i4;TRINITY_DN56779_c2_g4_i5 | D160: Kunitz/Bovine pancreatic trypsin inhibitor domain protein [Trichuris suis] | E160: Ppn | F160: Papilin OS=Drosophila melanogaster GN=Ppn PE=1 SV=2 | G160: GO:0004222(metalloendopeptidase activity);GO:0004867(serine-type endopeptidase inhibitor activity);GO:0005201(extracellular matrix structural constituent);GO:0005604(basement membrane);GO:0008270(zinc ion binding);GO:0030198(extracellular matrix organization) | H160: ENOG410XQNP(serine peptidase inhibitor, Kunitz type) | I160: K03909 | J160: tissue factor pathway inhibitor | K160: - | L160: epz04610(Complement and coagulation cascades) | M160: B7PG23.1 PF00014.21;Kunitz_BPTI; | N160: - | O160: 209,667.93 | P160: 23,748.91 | Q160: 33,199.99 | R160: 0.00 | S160: 11.00 | T160: 4.00 | U160: 1.00 | V160: 3.00 | W160: 0.00 | X160: 2,690.55 | Y160: 525.26 | Z160: 607.36 | AA160: 0.00 | AB160: 0.16 | AC160: 0.05 | AD160: 0.01 | AE160: 0.04 | AF160: 0.00 | AG160: 1,274.39 | AH160: 0.07 | AI160: 0.02 | AJ160: 0.79 | AK160: 0.00 | AL160: 0.00 | AM160: =AJ160/AK160 -> 24,613.57 | AN160: =AK160/AK160 -> 1.00 | AO160: =AL160/AK160 -> 1.38 | AP160: 0.00 | AQ160: 0.00 | AR160: yes
A161: TRINITY_DN47804_c0_g1 | B161: 978 | C161: TRINITY_DN47804_c0_g1_i1;TRINITY_DN47804_c0_g1_i2;TRINITY_DN47804_c0_g1_i3;TRINITY_DN47804_c0_g1_i4;TRINITY_DN47804_c0_g1_i5 | D161: - | E161: - | F161: - | G161: - | H161: - | I161: - | J161: - | K161: - | L161: - | M161: - | N161: - | O161: 0.00 | P161: 0.00 | Q161: 0.00 | R161: 4,101.00 | S161: 2,998.00 | T161: 2,233.00 | U161: 128.00 | V161: 207.00 | W161: 78.00 | X161: 0.00 | Y161: 0.00 | Z161: 0.00 | AA161: 200.64 | AB161: 134.38 | AC161: 102.63 | AD161: 4.96 | AE161: 8.78 | AF161: 3.46 | AG161: 0.00 | AH161: 145.88 | AI161: 5.73 | AJ161: 0.00 | AK161: 0.07 | AL161: 0.01 | AM161: =AJ161/AL161 -> 0.00 | AN161: =AK161/AL161 -> 5.27 | AO161: =AL161/AL161 -> 1.00 | AP161: 0.00 | AQ161: 0.00 | AR161: yes
A162: TRINITY_DN46309_c0_g3 | B162: 930 | C162: TRINITY_DN46309_c0_g3_i1 | D162: - | E162: - | F162: - | G162: - | H162: - | I162: - | J162: - | K162: - | L162: - | M162: - | N162: - | O162: 1,158.00 | P162: 1,418.00 | Q162: 628.00 | R162: 1.00 | S162: 4.00 | T162: 3.00 | U162: 7.00 | V162: 7.00 | W162: 5.00 | X162: 45.59 | Y162: 61.84 | Z162: 32.12 | AA162: 0.04 | AB162: 0.17 | AC162: 0.11 | AD162: 0.26 | AE162: 0.28 | AF162: 0.19 | AG162: 46.52 | AH162: 0.11 | AI162: 0.24 | AJ162: 0.03 | AK162: 0.00 | AL162: 0.00 | AM162: =AJ162/AK162 -> 571.76 | AN162: =AK162/AK162 -> 1.00 | AO162: =AL162/AK162 -> 10.54 | AP162: 0.00 | AQ162: 0.00 | AR162: yes
A163: TRINITY_DN57209_c1_g1 | B163: 2,394 | C163: TRINITY_DN57209_c1_g1_i1;TRINITY_DN57209_c1_g1_i2;TRINITY_DN57209_c1_g1_i3;TRINITY_DN57209_c1_g1_i4;TRINITY_DN57209_c1_g1_i5;TRINITY_DN57209_c1_g1_i6;TRINITY_DN57209_c1_g1_i7 | D163: cuticle protein, putative [Ixodes scapularis] | E163: - | F163: Cuticle protein 10.9 OS=Ixodes ricinus PE=1 SV=1 | G163: GO:0005615(extracellular space) | H163: - | I163: - | J163: - | K163: - | L163: - | M163: B7P5P8.1 PF00379.21;Chitin_bind_4; | N163: - | O163: 2,237.00 | P163: 1,865.00 | Q163: 517.00 | R163: 0.00 | S163: 0.00 | T163: 0.00 | U163: 12.00 | V163: 8.00 | W163: 9.00 | X163: 35.33 | Y163: 30.92 | Z163: 29.80 | AA163: 0.00 | AB163: 0.00 | AC163: 0.00 | AD163: 0.15 | AE163: 0.14 | AF163: 0.15 | AG163: 32.02 | AH163: 0.00 | AI163: 0.15 | AJ163: 0.02 | AK163: 0.00 | AL163: 0.00 | AM163: =AJ163/AL163 -> 59.73 | AN163: =AK163/AL163 -> 0.00 | AO163: =AL163/AL163 -> 1.00 | AP163: 0.00 | AQ163: 0.00 | AR163: yes
A164: TRINITY_DN55649_c1_g1 | B164: 1,245 | C164: TRINITY_DN55649_c1_g1_i1;TRINITY_DN55649_c1_g1_i2;TRINITY_DN55649_c1_g1_i3;TRINITY_DN55649_c1_g1_i4 | D164: - | E164: - | F164: - | G164: - | H164: - | I164: - | J164: - | K164: - | L164: - | M164: - | N164: - | O164: 31.00 | P164: 86.00 | Q164: 35.00 | R164: 1.00 | S164: 4.00 | T164: 2.00 | U164: 29,706.02 | V164: 3,789.00 | W164: 27,146.98 | X164: 4.99 | Y164: 8.02 | Z164: 12.52 | AA164: 0.11 | AB164: 0.12 | AC164: 0.05 | AD164: 1,805.57 | AE164: 253.72 | AF164: 1,605.16 | AG164: 8.51 | AH164: 0.09 | AI164: 1,221.48 | AJ164: 0.01 | AK164: 0.00 | AL164: 2.70 | AM164: =AJ164/AK164 -> 127.84 | AN164: =AK164/AK164 -> 1.00 | AO164: =AL164/AK164 -> 65,573.49 | AP164: 0.00 | AQ164: 0.00 | AR164: yes
A165: TRINITY_DN38267_c1_g1 | B165: 597 | C165: TRINITY_DN38267_c1_g1_i1;TRINITY_DN38267_c1_g1_i2;TRINITY_DN38267_c1_g1_i3;TRINITY_DN38267_c1_g1_i4 | D165: - | E165: - | F165: - | G165: - | H165: - | I165: - | J165: - | K165: - | L165: - | M165: - | N165: - | O165: 8,008.99 | P165: 23,353.02 | Q165: 2,069.00 | R165: 10.00 | S165: 8.00 | T165: 20.00 | U165: 0.00 | V165: 0.00 | W165: 0.00 | X165: 790.68 | Y165: 2,668.13 | Z165: 229.71 | AA165: 0.75 | AB165: 0.65 | AC165: 1.36 | AD165: 0.00 | AE165: 0.00 | AF165: 0.00 | AG165: 1,229.51 | AH165: 0.92 | AI165: 0.00 | AJ165: 0.76 | AK165: 0.00 | AL165: 0.00 | AM165: =AJ165/AJ165 -> 1.00 | AN165: =AK165/AJ165 -> 0.00 | AO165: =AL165/AJ165 -> 0.00 | AP165: 0.00 | AQ165: 0.00 | AR165: yes
A166: TRINITY_DN50268_c0_g1 | B166: 1,326 | C166: TRINITY_DN50268_c0_g1_i1;TRINITY_DN50268_c0_g1_i2;TRINITY_DN50268_c0_g1_i3;TRINITY_DN50268_c0_g1_i4;TRINITY_DN50268_c0_g1_i5;TRINITY_DN50268_c0_g1_i6;TRINITY_DN50268_c0_g1_i7;TRINITY_DN50268_c0_g1_i8;TRINITY_DN50268_c0_g1_i9 | D166: - | E166: - | F166: - | G166: - | H166: - | I166: - | J166: - | K166: - | L166: - | M166: - | N166: - | O166: 0.00 | P166: 0.00 | Q166: 1.00 | R166: 13,265.87 | S166: 10,115.85 | T166: 6,942.22 | U166: 3,624.55 | V166: 6,058.76 | W166: 2,912.72 | X166: 0.00 | Y166: 0.00 | Z166: 0.04 | AA166: 377.43 | AB166: 292.11 | AC166: 176.09 | AD166: 88.71 | AE166: 160.71 | AF166: 79.57 | AG166: 0.01 | AH166: 281.88 | AI166: 109.66 | AJ166: 0.00 | AK166: 0.13 | AL166: 0.24 | AM166: =AJ166/AJ166 -> 1.00 | AN166: =AK166/AJ166 -> 20,849.42 | AO166: =AL166/AJ166 -> 39,188.84 | AP166: 0.00 | AQ166: 0.00 | AR166: yes
A167: TRINITY_DN55054_c0_g1 | B167: 2,007 | C167: TRINITY_DN55054_c0_g1_i1;TRINITY_DN55054_c0_g1_i10;TRINITY_DN55054_c0_g1_i11;TRINITY_DN55054_c0_g1_i12;TRINITY_DN55054_c0_g1_i13;TRINITY_DN55054_c0_g1_i2;TRINITY_DN55054_c0_g1_i3;TRINITY_DN55054_c0_g1_i4;TRINITY_DN55054_c0_g1_i5;TRINITY_DN55054_c0_g1_i6;TRINITY_DN55054_c0_g1_i7;TRINITY_DN55054_c0_g1_i8;TRINITY_DN55054_c0_g1_i9 | D167: hypothetical protein QR98_0013400 [Sarcoptes scabiei] | E167: - | F167: - | G167: - | H167: - | I167: - | J167: - | K167: - | L167: - | M167: - | N167: - | O167: 4.75 | P167: 2.00 | Q167: 4.00 | R167: 12.08 | S167: 37.31 | T167: 33.02 | U167: 8,434.34 | V167: 1,878.05 | W167: 2,650.78 | X167: 0.34 | Y167: 0.03 | Z167: 0.25 | AA167: 0.48 | AB167: 1.25 | AC167: 1.21 | AD167: 143.87 | AE167: 47.50 | AF167: 62.97 | AG167: 0.21 | AH167: 0.98 | AI167: 84.78 | AJ167: 0.00 | AK167: 0.00 | AL167: 0.19 | AM167: =AJ167/AJ167 -> 1.00 | AN167: =AK167/AJ167 -> 3.45 | AO167: =AL167/AJ167 -> 1,442.74 | AP167: 0.00 | AQ167: 0.00 | AR167: yes
A168: TRINITY_DN51672_c1_g4 | B168: 305 | C168: TRINITY_DN51672_c1_g4_i1 | D168: - | E168: - | F168: - | G168: - | H168: - | I168: - | J168: - | K168: - | L168: - | M168: - | N168: - | O168: 1.00 | P168: 0.00 | Q168: 0.00 | R168: 2,008.00 | S168: 2,049.00 | T168: 1,732.00 | U168: 56.00 | V168: 75.00 | W168: 132.00 | X168: 0.34 | Y168: 0.00 | Z168: 0.00 | AA168: 487.89 | AB168: 503.15 | AC168: 384.03 | AD168: 17.27 | AE168: 25.00 | AF168: 45.25 | AG168: 0.11 | AH168: 458.36 | AI168: 29.17 | AJ168: 0.00 | AK168: 0.21 | AL168: 0.06 | AM168: =AJ168/AJ168 -> 1.00 | AN168: =AK168/AJ168 -> 3,082.08 | AO168: =AL168/AJ168 -> 947.67 | AP168: 0.00 | AQ168: 0.00 | AR168: yes
A169: TRINITY_DN40940_c0_g1 | B169: 3,429 | C169: TRINITY_DN40940_c0_g1_i1;TRINITY_DN40940_c0_g1_i10;TRINITY_DN40940_c0_g1_i11;TRINITY_DN40940_c0_g1_i12;TRINITY_DN40940_c0_g1_i13;TRINITY_DN40940_c0_g1_i14;TRINITY_DN40940_c0_g1_i15;TRINITY_DN40940_c0_g1_i2;TRINITY_DN40940_c0_g1_i3;TRINITY_DN40940_c0_g1_i4;TRINITY_DN40940_c0_g1_i5;TRINITY_DN40940_c0_g1_i6;TRINITY_DN40940_c0_g1_i7;TRINITY_DN40940_c0_g1_i8;TRINITY_DN40940_c0_g1_i9 | D169: - | E169: - | F169: - | G169: - | H169: - | I169: - | J169: - | K169: - | L169: - | M169: - | N169: - | O169: 0.00 | P169: 0.00 | Q169: 0.00 | R169: 2,068.00 | S169: 2,720.00 | T169: 2,410.00 | U169: 2,124.00 | V169: 3,921.00 | W169: 2,900.00 | X169: 0.00 | Y169: 0.00 | Z169: 0.00 | AA169: 172.98 | AB169: 332.82 | AC169: 174.56 | AD169: 151.95 | AE169: 330.51 | AF169: 317.27 | AG169: 0.00 | AH169: 226.79 | AI169: 266.58 | AJ169: 0.00 | AK169: 0.10 | AL169: 0.59 | AM169: =AJ169/AK169 -> 0.00 | AN169: =AK169/AK169 -> 1.00 | AO169: =AL169/AK169 -> 5.68 | AP169: 0.00 | AQ169: 0.00 | AR169: yes
A170: TRINITY_DN41573_c0_g2 | B170: 434 | C170: TRINITY_DN41573_c0_g2_i1;TRINITY_DN41573_c0_g2_i2;TRINITY_DN41573_c0_g2_i3;TRINITY_DN41573_c0_g2_i4 | D170: PREDICTED: tissue factor pathway inhibitor-like [Stegastes partitus] | E170: - | F170: Kunitz-type serine protease inhibitor 6 (Fragment) OS=Rhipicephalus microplus PE=1 SV=2 | G170: GO:0004867(serine-type endopeptidase inhibitor activity);GO:0005615(extracellular space);GO:0007596(blood coagulation);GO:0009986(cell surface);GO:0010951(negative regulation of endopeptidase activity) | H170: ENOG410XQNP(serine peptidase inhibitor, Kunitz type) | I170: NA | J170: NA | K170: NA | L170: NA(NA) | M170: D6WQ41.1 PF00014.21;Kunitz_BPTI; | N170: - | O170: 1,694.00 | P170: 3,204.00 | Q170: 1,184.00 | R170: 10.00 | S170: 5.00 | T170: 7.00 | U170: 0.00 | V170: 7.00 | W170: 1.00 | X170: 262.59 | Y170: 575.66 | Z170: 257.37 | AA170: 2.22 | AB170: 0.86 | AC170: 1.21 | AD170: 0.00 | AE170: 1.80 | AF170: 0.15 | AG170: 365.21 | AH170: 1.43 | AI170: 0.65 | AJ170: 0.23 | AK170: 0.00 | AL170: 0.00 | AM170: =AJ170/AL170 -> 157.22 | AN170: =AK170/AL170 -> 0.46 | AO170: =AL170/AL170 -> 1.00 | AP170: 0.00 | AQ170: 0.00 | AR170: yes
A171: TRINITY_DN53846_c0_g1 | B171: 2,131 | C171: TRINITY_DN53846_c0_g1_i1;TRINITY_DN53846_c0_g1_i2;TRINITY_DN53846_c0_g1_i3;TRINITY_DN53846_c0_g1_i4;TRINITY_DN53846_c0_g1_i5;TRINITY_DN53846_c0_g1_i6 | D171: vitellogenin [Dermacentor variabilis] | E171: - | F171: - | G171: - | H171: ENOG4110M1Q(Vitellogenin) | I171: - | J171: - | K171: - | L171: - | M171: B7QJ67.1 PF01347.20;Vitellogenin_N; | N171: - | O171: 2,196.00 | P171: 1,132.00 | Q171: 833.00 | R171: 1.00 | S171: 5.00 | T171: 8.00 | U171: 8.00 | V171: 4.00 | W171: 2.00 | X171: 41.29 | Y171: 33.39 | Z171: 15.78 | AA171: 0.02 | AB171: 0.08 | AC171: 0.12 | AD171: 0.15 | AE171: 0.06 | AF171: 0.05 | AG171: 30.15 | AH171: 0.07 | AI171: 0.09 | AJ171: 0.02 | AK171: 0.00 | AL171: 0.00 | AM171: =AJ171/AK171 -> 582.32 | AN171: =AK171/AK171 -> 1.00 | AO171: =AL171/AK171 -> 6.21 | AP171: 0.00 | AQ171: 0.00 | AR171: yes
A172: TRINITY_DN50028_c0_g1 | B172: 476 | C172: TRINITY_DN50028_c0_g1_i1;TRINITY_DN50028_c0_g1_i2;TRINITY_DN50028_c0_g1_i3;TRINITY_DN50028_c0_g1_i4 | D172: - | E172: - | F172: - | G172: - | H172: - | I172: - | J172: - | K172: - | L172: - | M172: - | N172: - | O172: 7.00 | P172: 3.00 | Q172: 6.00 | R172: 9,420.81 | S172: 10,913.92 | T172: 9,879.98 | U172: 5,698.80 | V172: 3,304.16 | W172: 6,690.87 | X172: 1.41 | Y172: 0.41 | Z172: 2.74 | AA172: 994.03 | AB172: 1,536.42 | AC172: 914.01 | AD172: 1,042.07 | AE172: 395.69 | AF172: 1,482.21 | AG172: 1.52 | AH172: 1,148.15 | AI172: 973.32 | AJ172: 0.00 | AK172: 0.53 | AL172: 2.15 | AM172: =AJ172/AJ172 -> 1.00 | AN172: =AK172/AJ172 -> 558.71 | AO172: =AL172/AJ172 -> 2,288.37 | AP172: 0.00 | AQ172: 0.00 | AR172: yes
A173: TRINITY_DN415_c0_g1 | B173: 618 | C173: TRINITY_DN415_c0_g1_i1 | D173: fatty acid-binding protein, intestinal [Mus musculus] | E173: Fabp2 | F173: Fatty acid-binding protein, intestinal OS=Mus musculus GN=Fabp2 PE=1 SV=2 | G173: GO:0005324(long-chain fatty acid transporter activity);GO:0005504(fatty acid binding);GO:0005622(intracellular);GO:0005737(cytoplasm);GO:0005886(plasma membrane);GO:0005902(microvillus);GO:0006631(fatty acid metabolic process);GO:0008289(lipid binding);GO:0015909(long-chain fatty acid transport);GO:0036041(long-chain fatty acid binding);GO:0045179(apical cortex);GO:0050892(intestinal absorption) | H173: ENOG4111US8(acid binding protein) | I173: K08751 | J173: fatty acid-binding protein 2, intestinal | K173: - | L173: mmu03320(PPAR signaling pathway);mmu04975(Fat digestion and absorption) | M173: P02693.4 PF00061.21;Lipocalin; | N173: - | O173: 0.00 | P173: 0.00 | Q173: 0.00 | R173: 1.00 | S173: 0.00 | T173: 0.00 | U173: 550.00 | V173: 801.00 | W173: 923.00 | X173: 0.00 | Y173: 0.00 | Z173: 0.00 | AA173: 0.07 | AB173: 0.00 | AC173: 0.00 | AD173: 37.74 | AE173: 59.23 | AF173: 67.20 | AG173: 0.00 | AH173: 0.02 | AI173: 54.72 | AJ173: 0.00 | AK173: 0.00 | AL173: 0.12 | AM173: =AJ173/AK173 -> 0.00 | AN173: =AK173/AK173 -> 1.00 | AO173: =AL173/AK173 -> 13,219.06 | AP173: 0.00 | AQ173: 0.00 | AR173: yes
A174: TRINITY_DN55437_c1_g3 | B174: 636 | C174: TRINITY_DN55437_c1_g3_i1;TRINITY_DN55437_c1_g3_i2;TRINITY_DN55437_c1_g3_i3 | D174: - | E174: - | F174: - | G174: - | H174: - | I174: - | J174: - | K174: - | L174: - | M174: - | N174: - | O174: 0.00 | P174: 0.00 | Q174: 0.00 | R174: 2,445.00 | S174: 3,676.69 | T174: 2,830.00 | U174: 2,762.00 | V174: 3,547.00 | W174: 6,115.00 | X174: 0.00 | Y174: 0.00 | Z174: 0.00 | AA174: 167.51 | AB174: 248.69 | AC174: 171.82 | AD174: 180.63 | AE174: 249.94 | AF174: 423.36 | AG174: 0.00 | AH174: 196.01 | AI174: 284.64 | AJ174: 0.00 | AK174: 0.09 | AL174: 0.63 | AM174: =AJ174/AK174 -> 0.00 | AN174: =AK174/AK174 -> 1.00 | AO174: =AL174/AK174 -> 7.02 | AP174: 0.00 | AQ174: 0.00 | AR174: yes
A175: TRINITY_DN52957_c0_g1 | B175: 698 | C175: TRINITY_DN52957_c0_g1_i1;TRINITY_DN52957_c0_g1_i2;TRINITY_DN52957_c0_g1_i3;TRINITY_DN52957_c0_g1_i4 | D175: - | E175: - | F175: - | G175: - | H175: - | I175: - | J175: - | K175: - | L175: - | M175: - | N175: - | O175: 11,296.03 | P175: 2,740.80 | Q175: 3,310.88 | R175: 0.00 | S175: 0.00 | T175: 10.00 | U175: 1.00 | V175: 0.00 | W175: 0.00 | X175: 943.35 | Y175: 383.41 | Z175: 681.53 | AA175: 0.00 | AB175: 0.00 | AC175: 0.69 | AD175: 0.07 | AE175: 0.00 | AF175: 0.00 | AG175: 669.43 | AH175: 0.23 | AI175: 0.02 | AJ175: 0.41 | AK175: 0.00 | AL175: 0.00 | AM175: =AJ175/AL175 -> 9,366.15 | AN175: =AK175/AL175 -> 2.38 | AO175: =AL175/AL175 -> 1.00 | AP175: 0.00 | AQ175: 0.00 | AR175: yes
A176: TRINITY_DN3527_c0_g1 | B176: 464 | C176: TRINITY_DN3527_c0_g1_i1 | D176: serum amyloid A protein [Gallus gallus] | E176: - | F176: Serum amyloid A protein OS=Anas platyrhynchos PE=1 SV=2 | G176: GO:0005615(extracellular space);GO:0006953(acute-phase response);GO:0034364(high-density lipoprotein particle);GO:0042056(chemoattractant activity);GO:0050918(positive chemotaxis);GO:0060326(cell chemotaxis) | H176: ENOG4110KPS(Serum amyloid A-like 1) | I176: NA | J176: NA | K176: NA | L176: NA(NA) | M176: F1NW65.2 PF00277.16;SAA; | N176: "CS_pos": "Cleavage site between pos. 36 and 37: ASA-DN. Probability: 0.6914", | O176: 753.00 | P176: 701.00 | Q176: 691.00 | R176: 0.00 | S176: 0.00 | T176: 0.00 | U176: 0.00 | V176: 0.00 | W176: 0.00 | X176: 97.27 | Y176: 102.11 | Z176: 124.58 | AA176: 0.00 | AB176: 0.00 | AC176: 0.00 | AD176: 0.00 | AE176: 0.00 | AF176: 0.00 | AG176: 107.99 | AH176: 0.00 | AI176: 0.00 | AJ176: 0.07 | AK176: 0.00 | AL176: 0.00 | AM176: =AJ176/AJ176 -> 1.00 | AN176: =AK176/AJ176 -> 0.00 | AO176: =AL176/AJ176 -> 0.00 | AP176: 0.00 | AQ176: 0.00 | AR176: yes
A177: TRINITY_DN57899_c2_g3 | B177: 1,701 | C177: TRINITY_DN57899_c2_g3_i1;TRINITY_DN57899_c2_g3_i2;TRINITY_DN57899_c2_g3_i3;TRINITY_DN57899_c2_g3_i4 | D177: - | E177: - | F177: - | G177: - | H177: - | I177: - | J177: - | K177: - | L177: - | M177: - | N177: - | O177: 0.00 | P177: 0.00 | Q177: 0.00 | R177: 321.14 | S177: 435.86 | T177: 241.46 | U177: 1,885.36 | V177: 1,959.15 | W177: 3,820.96 | X177: 0.00 | Y177: 0.00 | Z177: 0.00 | AA177: 13.38 | AB177: 14.30 | AC177: 6.39 | AD177: 80.45 | AE177: 82.03 | AF177: 102.10 | AG177: 0.00 | AH177: 11.36 | AI177: 88.19 | AJ177: 0.00 | AK177: 0.01 | AL177: 0.19 | AM177: =AJ177/AK177 -> 0.00 | AN177: =AK177/AK177 -> 1.00 | AO177: =AL177/AK177 -> 37.51 | AP177: 0.00 | AQ177: 0.00 | AR177: yes
A178: TRINITY_DN58332_c9_g1 | B178: 1,615 | C178: TRINITY_DN58332_c9_g1_i1;TRINITY_DN58332_c9_g1_i2;TRINITY_DN58332_c9_g1_i3 | D178: secreted protein, putative [Ixodes scapularis] | E178: - | F178: - | G178: - | H178: - | I178: - | J178: - | K178: - | L178: - | M178: - | N178: - | O178: 2,906.92 | P178: 1,525.73 | Q178: 785.85 | R178: 7.16 | S178: 6.27 | T178: 6.08 | U178: 13.14 | V178: 3.00 | W178: 10.17 | X178: 126.57 | Y178: 90.46 | Z178: 27.21 | AA178: 0.16 | AB178: 0.17 | AC178: 0.12 | AD178: 0.37 | AE178: 0.09 | AF178: 0.19 | AG178: 81.41 | AH178: 0.15 | AI178: 0.22 | AJ178: 0.05 | AK178: 0.00 | AL178: 0.00 | AM178: =AJ178/AK178 -> 733.76 | AN178: =AK178/AK178 -> 1.00 | AO178: =AL178/AK178 -> 7.09 | AP178: 0.00 | AQ178: 0.00 | AR178: yes
A179: TRINITY_DN42467_c0_g1 | B179: 2,090 | C179: TRINITY_DN42467_c0_g1_i1;TRINITY_DN42467_c0_g1_i10;TRINITY_DN42467_c0_g1_i11;TRINITY_DN42467_c0_g1_i12;TRINITY_DN42467_c0_g1_i13;TRINITY_DN42467_c0_g1_i2;TRINITY_DN42467_c0_g1_i3;TRINITY_DN42467_c0_g1_i4;TRINITY_DN42467_c0_g1_i5;TRINITY_DN42467_c0_g1_i6;TRINITY_DN42467_c0_g1_i7;TRINITY_DN42467_c0_g1_i8;TRINITY_DN42467_c0_g1_i9 | D179: - | E179: - | F179: - | G179: - | H179: - | I179: - | J179: - | K179: - | L179: - | M179: - | N179: - | O179: 5.00 | P179: 1.00 | Q179: 10.00 | R179: 18.00 | S179: 12.00 | T179: 39.00 | U179: 17,737.00 | V179: 2,902.12 | W179: 13,184.00 | X179: 0.07 | Y179: 0.02 | Z179: 0.58 | AA179: 0.52 | AB179: 0.20 | AC179: 1.05 | AD179: 534.39 | AE179: 79.95 | AF179: 519.21 | AG179: 0.22 | AH179: 0.59 | AI179: 377.85 | AJ179: 0.00 | AK179: 0.00 | AL179: 0.84 | AM179: =AJ179/AJ179 -> 1.00 | AN179: =AK179/AJ179 -> 1.98 | AO179: =AL179/AJ179 -> 6,137.77 | AP179: 0.00 | AQ179: 0.00 | AR179: yes
A180: TRINITY_DN57503_c2_g2 | B180: 1,181 | C180: TRINITY_DN57503_c2_g2_i1 | D180: - | E180: - | F180: - | G180: - | H180: - | I180: - | J180: - | K180: - | L180: - | M180: - | N180: - | O180: 6,800.00 | P180: 1,703.00 | Q180: 1,875.00 | R180: 3.00 | S180: 7.00 | T180: 2.00 | U180: 59.00 | V180: 51.00 | W180: 37.00 | X180: 194.06 | Y180: 53.76 | Z180: 68.90 | AA180: 0.10 | AB180: 0.22 | AC180: 0.06 | AD180: 1.59 | AE180: 1.48 | AF180: 1.03 | AG180: 105.57 | AH180: 0.13 | AI180: 1.37 | AJ180: 0.07 | AK180: 0.00 | AL180: 0.00 | AM180: =AJ180/AK180 -> 1,097.91 | AN180: =AK180/AK180 -> 1.00 | AO180: =AL180/AK180 -> 50.92 | AP180: 0.00 | AQ180: 0.00 | AR180: yes
A181: TRINITY_DN51113_c4_g1 | B181: 469 | C181: TRINITY_DN51113_c4_g1_i1;TRINITY_DN51113_c4_g1_i2 | D181: TPA_inf: glycine-rich protein 44 [Amblyomma variegatum] | E181: - | F181: - | G181: - | H181: - | I181: - | J181: - | K181: - | L181: - | M181: - | N181: - | O181: 14,183.89 | P181: 3,724.06 | Q181: 1,167.95 | R181: 4.00 | S181: 2.00 | T181: 0.00 | U181: 0.00 | V181: 1.00 | W181: 1.00 | X181: 2,133.95 | Y181: 836.28 | Z181: 278.06 | AA181: 0.76 | AB181: 0.89 | AC181: 0.00 | AD181: 0.00 | AE181: 0.12 | AF181: 0.12 | AG181: 1,082.76 | AH181: 0.55 | AI181: 0.08 | AJ181: 0.67 | AK181: 0.00 | AL181: 0.00 | AM181: =AJ181/AL181 -> 3,787.29 | AN181: =AK181/AL181 -> 1.42 | AO181: =AL181/AL181 -> 1.00 | AP181: 0.00 | AQ181: 0.00 | AR181: yes
A182: TRINITY_DN46552_c0_g3 | B182: 1,380 | C182: TRINITY_DN46552_c0_g3_i1;TRINITY_DN46552_c0_g3_i2 | D182: - | E182: - | F182: - | G182: - | H182: - | I182: - | J182: - | K182: - | L182: - | M182: - | N182: "CS_pos": "Cleavage site between pos. 25 and 26: GQS-QC. Probability: 0.7555", | O182: 0.00 | P182: 0.00 | Q182: 0.00 | R182: 1,280.00 | S182: 2,102.01 | T182: 820.00 | U182: 4,098.00 | V182: 4,813.00 | W182: 6,801.00 | X182: 0.00 | Y182: 0.00 | Z182: 0.00 | AA182: 35.45 | AB182: 56.51 | AC182: 20.15 | AD182: 96.99 | AE182: 122.43 | AF182: 165.48 | AG182: 0.00 | AH182: 37.37 | AI182: 128.30 | AJ182: 0.00 | AK182: 0.02 | AL182: 0.28 | AM182: =AJ182/AK182 -> 0.00 | AN182: =AK182/AK182 -> 1.00 | AO182: =AL182/AK182 -> 16.59 | AP182: 0.00 | AQ182: 0.00 | AR182: yes
A183: TRINITY_DN46758_c2_g1 | B183: 571 | C183: TRINITY_DN46758_c2_g1_i1 | D183: - | E183: - | F183: - | G183: - | H183: - | I183: - | J183: - | K183: - | L183: - | M183: - | N183: - | O183: 0.00 | P183: 0.00 | Q183: 0.00 | R183: 1.00 | S183: 4.00 | T183: 4.00 | U183: 1,015.00 | V183: 1,014.00 | W183: 562.00 | X183: 0.00 | Y183: 0.00 | Z183: 0.00 | AA183: 0.08 | AB183: 0.31 | AC183: 0.28 | AD183: 79.90 | AE183: 86.03 | AF183: 47.23 | AG183: 0.00 | AH183: 0.22 | AI183: 71.05 | AJ183: 0.00 | AK183: 0.00 | AL183: 0.16 | AM183: =AJ183/AK183 -> 0.00 | AN183: =AK183/AK183 -> 1.00 | AO183: =AL183/AK183 -> 1,560.36 | AP183: 0.00 | AQ183: 0.00 | AR183: yes
A184: TRINITY_DN35848_c2_g2 | B184: 253 | C184: TRINITY_DN35848_c2_g2_i1 | D184: salivary protein Sal2 [Rhipicephalus annulatus] | E184: - | F184: - | G184: - | H184: - | I184: - | J184: - | K184: - | L184: - | M184: - | N184: - | O184: 6,736.45 | P184: 3,461.72 | Q184: 488.56 | R184: 0.00 | S184: 0.00 | T184: 0.00 | U184: 0.00 | V184: 0.00 | W184: 1.00 | X184: 3,215.13 | Y184: 1,913.21 | Z184: 342.58 | AA184: 0.00 | AB184: 0.00 | AC184: 0.00 | AD184: 0.00 | AE184: 0.00 | AF184: 0.49 | AG184: 1,823.64 | AH184: 0.00 | AI184: 0.16 | AJ184: 1.13 | AK184: 0.00 | AL184: 0.00 | AM184: =AJ184/AL184 -> 3,189.37 | AN184: =AK184/AL184 -> 0.00 | AO184: =AL184/AL184 -> 1.00 | AP184: 0.00 | AQ184: 0.00 | AR184: yes
A185: TRINITY_DN48048_c1_g1 | B185: 1,316 | C185: TRINITY_DN48048_c1_g1_i1;TRINITY_DN48048_c1_g1_i2;TRINITY_DN48048_c1_g1_i3 | D185: - | E185: - | F185: - | G185: - | H185: - | I185: - | J185: - | K185: - | L185: - | M185: - | N185: - | O185: 3,311.00 | P185: 635.00 | Q185: 717.00 | R185: 0.00 | S185: 0.00 | T185: 1.00 | U185: 0.00 | V185: 0.00 | W185: 0.00 | X185: 82.93 | Y185: 17.82 | Z185: 23.33 | AA185: 0.00 | AB185: 0.00 | AC185: 0.02 | AD185: 0.00 | AE185: 0.00 | AF185: 0.00 | AG185: 41.36 | AH185: 0.01 | AI185: 0.00 | AJ185: 0.03 | AK185: 0.00 | AL185: 0.00 | AM185: =AJ185/AK185 -> 5,591.79 | AN185: =AK185/AK185 -> 1.00 | AO185: =AL185/AK185 -> 0.00 | AP185: 0.00 | AQ185: 0.00 | AR185: yes
A186: TRINITY_DN39305_c0_g4 | B186: 653 | C186: TRINITY_DN39305_c0_g4_i1;TRINITY_DN39305_c0_g4_i2 | D186: - | E186: - | F186: - | G186: - | H186: - | I186: - | J186: - | K186: - | L186: - | M186: - | N186: - | O186: 0.00 | P186: 0.00 | Q186: 0.00 | R186: 116.00 | S186: 204.00 | T186: 296.00 | U186: 2,575.00 | V186: 3,917.00 | W186: 1,450.00 | X186: 0.00 | Y186: 0.00 | Z186: 0.00 | AA186: 7.67 | AB186: 13.31 | AC186: 17.35 | AD186: 161.49 | AE186: 264.49 | AF186: 95.94 | AG186: 0.00 | AH186: 12.78 | AI186: 173.97 | AJ186: 0.00 | AK186: 0.01 | AL186: 0.38 | AM186: =AJ186/AK186 -> 0.00 | AN186: =AK186/AK186 -> 1.00 | AO186: =AL186/AK186 -> 65.77 | AP186: 0.00 | AQ186: 0.00 | AR186: yes
A187: TRINITY_DN48140_c2_g3 | B187: 2,980 | C187: TRINITY_DN48140_c2_g3_i1;TRINITY_DN48140_c2_g3_i2;TRINITY_DN48140_c2_g3_i3;TRINITY_DN48140_c2_g3_i4 | D187: - | E187: - | F187: - | G187: - | H187: - | I187: - | J187: - | K187: - | L187: - | M187: - | N187: - | O187: 4.00 | P187: 0.00 | Q187: 4.00 | R187: 14.00 | S187: 21.00 | T187: 25.00 | U187: 3,214.93 | V187: 806.70 | W187: 2,309.51 | X187: 0.20 | Y187: 0.00 | Z187: 0.47 | AA187: 1.07 | AB187: 1.59 | AC187: 1.72 | AD187: 205.91 | AE187: 42.88 | AF187: 197.41 | AG187: 0.22 | AH187: 1.46 | AI187: 148.73 | AJ187: 0.00 | AK187: 0.00 | AL187: 0.33 | AM187: =AJ187/AJ187 -> 1.00 | AN187: =AK187/AJ187 -> 4.91 | AO187: =AL187/AJ187 -> 2,415.96 | AP187: 0.00 | AQ187: 0.00 | AR187: yes
A188: TRINITY_DN54917_c0_g2 | B188: 1,678 | C188: TRINITY_DN54917_c0_g2_i1;TRINITY_DN54917_c0_g2_i2;TRINITY_DN54917_c0_g2_i3;TRINITY_DN54917_c0_g2_i4;TRINITY_DN54917_c0_g2_i5 | D188: acetylcholinesterase, putative [Ixodes scapularis] | E188: - | F188: Acetylcholinesterase OS=Anopheles stephensi PE=3 SV=1 | G188: GO:0004104(cholinesterase activity);GO:0005615(extracellular space) | H188: COG2272(Carboxylesterase) | I188: K01049 | J188: acetylcholinesterase | K188: EC:3.1.1.7 | L188: isc00564(Glycerophospholipid metabolism) | M188: B7PXA2.1 PF00135.26;COesterase; | N188: - | O188: 0.00 | P188: 0.00 | Q188: 0.00 | R188: 43.68 | S188: 10.00 | T188: 15.00 | U188: 4,974.00 | V188: 1,320.00 | W188: 2,971.01 | X188: 0.00 | Y188: 0.00 | Z188: 0.00 | AA188: 0.93 | AB188: 0.21 | AC188: 0.28 | AD188: 102.67 | AE188: 26.96 | AF188: 84.07 | AG188: 0.00 | AH188: 0.47 | AI188: 71.23 | AJ188: 0.00 | AK188: 0.00 | AL188: 0.16 | AM188: =AJ188/AK188 -> 0.00 | AN188: =AK188/AK188 -> 1.00 | AO188: =AL188/AK188 -> 732.23 | AP188: 0.00 | AQ188: 0.00 | AR188: yes
A189: TRINITY_DN46158_c0_g4 | B189: 1,003 | C189: TRINITY_DN46158_c0_g4_i1;TRINITY_DN46158_c0_g4_i10;TRINITY_DN46158_c0_g4_i2;TRINITY_DN46158_c0_g4_i3;TRINITY_DN46158_c0_g4_i4;TRINITY_DN46158_c0_g4_i5;TRINITY_DN46158_c0_g4_i6;TRINITY_DN46158_c0_g4_i7;TRINITY_DN46158_c0_g4_i8;TRINITY_DN46158_c0_g4_i9 | D189: - | E189: - | F189: - | G189: - | H189: - | I189: - | J189: - | K189: - | L189: - | M189: - | N189: - | O189: 2,288.21 | P189: 2,163.86 | Q189: 350.95 | R189: 0.00 | S189: 0.00 | T189: 0.00 | U189: 0.00 | V189: 1.00 | W189: 0.00 | X189: 147.70 | Y189: 636.06 | Z189: 34.77 | AA189: 0.00 | AB189: 0.00 | AC189: 0.00 | AD189: 0.00 | AE189: 0.09 | AF189: 0.00 | AG189: 272.84 | AH189: 0.00 | AI189: 0.03 | AJ189: 0.17 | AK189: 0.00 | AL189: 0.00 | AM189: =AJ189/AL189 -> 2,544.91 | AN189: =AK189/AL189 -> 0.00 | AO189: =AL189/AL189 -> 1.00 | AP189: 0.00 | AQ189: 0.00 | AR189: yes
A190: TRINITY_DN56688_c0_g1 | B190: 1,198 | C190: TRINITY_DN56688_c0_g1_i1;TRINITY_DN56688_c0_g1_i2;TRINITY_DN56688_c0_g1_i3 | D190: - | E190: - | F190: - | G190: - | H190: - | I190: - | J190: - | K190: - | L190: - | M190: - | N190: - | O190: 2,254.48 | P190: 1,770.53 | Q190: 787.54 | R190: 0.00 | S190: 4.00 | T190: 12.00 | U190: 0.00 | V190: 1.00 | W190: 1.00 | X190: 786.90 | Y190: 723.47 | Z190: 403.71 | AA190: 0.00 | AB190: 1.16 | AC190: 3.16 | AD190: 0.00 | AE190: 0.40 | AF190: 0.03 | AG190: 638.03 | AH190: 1.44 | AI190: 0.14 | AJ190: 0.39 | AK190: 0.00 | AL190: 0.00 | AM190: =AJ190/AL190 -> 1,275.26 | AN190: =AK190/AL190 -> 2.13 | AO190: =AL190/AL190 -> 1.00 | AP190: 0.00 | AQ190: 0.00 | AR190: yes
A191: TRINITY_DN58100_c1_g1 | B191: 2,667 | C191: TRINITY_DN58100_c1_g1_i1;TRINITY_DN58100_c1_g1_i2;TRINITY_DN58100_c1_g1_i3;TRINITY_DN58100_c1_g1_i4;TRINITY_DN58100_c1_g1_i5;TRINITY_DN58100_c1_g1_i6;TRINITY_DN58100_c1_g1_i7 | D191: - | E191: - | F191: - | G191: - | H191: - | I191: - | J191: - | K191: - | L191: - | M191: - | N191: - | O191: 0.00 | P191: 0.00 | Q191: 3.00 | R191: 0.00 | S191: 1.00 | T191: 0.00 | U191: 3,073.59 | V191: 458.00 | W191: 2,671.90 | X191: 0.00 | Y191: 0.00 | Z191: 0.04 | AA191: 0.00 | AB191: 0.02 | AC191: 0.00 | AD191: 54.97 | AE191: 10.00 | AF191: 47.72 | AG191: 0.01 | AH191: 0.01 | AI191: 37.56 | AJ191: 0.00 | AK191: 0.00 | AL191: 0.08 | AM191: =AJ191/AK191 -> 1.35 | AN191: =AK191/AK191 -> 1.00 | AO191: =AL191/AK191 -> 18,147.22 | AP191: 0.00 | AQ191: 0.00 | AR191: yes
A192: TRINITY_DN50987_c0_g1 | B192: 310 | C192: TRINITY_DN50987_c0_g1_i1;TRINITY_DN50987_c0_g1_i2;TRINITY_DN50987_c0_g1_i3;TRINITY_DN50987_c0_g1_i4;TRINITY_DN50987_c0_g1_i5 | D192: - | E192: - | F192: - | G192: - | H192: - | I192: - | J192: - | K192: - | L192: - | M192: - | N192: - | O192: 3,540.52 | P192: 1,070.65 | Q192: 534.72 | R192: 0.00 | S192: 0.00 | T192: 0.00 | U192: 0.00 | V192: 2.00 | W192: 1.00 | X192: 1,601.56 | Y192: 555.13 | Z192: 329.30 | AA192: 0.00 | AB192: 0.00 | AC192: 0.00 | AD192: 0.00 | AE192: 0.73 | AF192: 0.39 | AG192: 828.66 | AH192: 0.00 | AI192: 0.37 | AJ192: 0.51 | AK192: 0.00 | AL192: 0.00 | AM192: =AJ192/AL192 -> 626.70 | AN192: =AK192/AL192 -> 0.00 | AO192: =AL192/AL192 -> 1.00 | AP192: 0.00 | AQ192: 0.00 | AR192: yes
A193: TRINITY_DN37767_c0_g2 | B193: 1,078 | C193: TRINITY_DN37767_c0_g2_i1;TRINITY_DN37767_c0_g2_i2;TRINITY_DN37767_c0_g2_i3;TRINITY_DN37767_c0_g2_i4;TRINITY_DN37767_c0_g2_i5;TRINITY_DN37767_c0_g2_i6;TRINITY_DN37767_c0_g2_i7 | D193: - | E193: - | F193: - | G193: - | H193: - | I193: - | J193: - | K193: - | L193: - | M193: - | N193: - | O193: 1.00 | P193: 0.00 | Q193: 0.00 | R193: 956.00 | S193: 730.40 | T193: 523.00 | U193: 2,824.00 | V193: 2,178.00 | W193: 4,831.99 | X193: 0.30 | Y193: 0.00 | Z193: 0.00 | AA193: 77.45 | AB193: 66.80 | AC193: 34.72 | AD193: 219.46 | AE193: 172.96 | AF193: 876.58 | AG193: 0.10 | AH193: 59.66 | AI193: 423.00 | AJ193: 0.00 | AK193: 0.03 | AL193: 0.94 | AM193: =AJ193/AJ193 -> 1.00 | AN193: =AK193/AJ193 -> 441.28 | AO193: =AL193/AJ193 -> 15,116.62 | AP193: 0.00 | AQ193: 0.00 | AR193: yes
A194: TRINITY_DN45884_c1_g2 | B194: 668 | C194: TRINITY_DN45884_c1_g2_i1;TRINITY_DN45884_c1_g2_i2;TRINITY_DN45884_c1_g2_i3;TRINITY_DN45884_c1_g2_i4;TRINITY_DN45884_c1_g2_i5 | D194: - | E194: - | F194: - | G194: - | H194: - | I194: - | J194: - | K194: - | L194: - | M194: - | N194: - | O194: 5.00 | P194: 7.00 | Q194: 5.00 | R194: 39.00 | S194: 48.00 | T194: 35.00 | U194: 3,195.00 | V194: 1,277.00 | W194: 7,626.00 | X194: 0.37 | Y194: 0.63 | Z194: 0.45 | AA194: 3.11 | AB194: 4.09 | AC194: 2.70 | AD194: 258.65 | AE194: 118.42 | AF194: 594.55 | AG194: 0.48 | AH194: 3.30 | AI194: 323.87 | AJ194: 0.00 | AK194: 0.00 | AL194: 0.72 | AM194: =AJ194/AJ194 -> 1.00 | AN194: =AK194/AJ194 -> 5.09 | AO194: =AL194/AJ194 -> 2,411.26 | AP194: 0.00 | AQ194: 0.00 | AR194: yes
A195: TRINITY_DN58038_c3_g1 | B195: 8,296 | C195: TRINITY_DN58038_c3_g1_i1;TRINITY_DN58038_c3_g1_i2;TRINITY_DN58038_c3_g1_i3;TRINITY_DN58038_c3_g1_i4;TRINITY_DN58038_c3_g1_i5;TRINITY_DN58038_c3_g1_i6;TRINITY_DN58038_c3_g1_i7 | D195: hypothetical protein IscW_ISCW004626 [Ixodes scapularis] | E195: - | F195: - | G195: - | H195: - | I195: - | J195: - | K195: - | L195: - | M195: - | N195: - | O195: 57,370.41 | P195: 17,633.99 | Q195: 17,974.97 | R195: 15.00 | S195: 14.00 | T195: 35.00 | U195: 11.00 | V195: 64.00 | W195: 9.00 | X195: 284.17 | Y195: 65.28 | Z195: 77.24 | AA195: 0.06 | AB195: 0.06 | AC195: 0.12 | AD195: 0.03 | AE195: 0.21 | AF195: 0.03 | AG195: 142.23 | AH195: 0.08 | AI195: 0.09 | AJ195: 0.09 | AK195: 0.00 | AL195: 0.00 | AM195: =AJ195/AK195 -> 2,403.65 | AN195: =AK195/AK195 -> 1.00 | AO195: =AL195/AK195 -> 5.44 | AP195: 0.00 | AQ195: 0.00 | AR195: yes
A196: TRINITY_DN34458_c0_g2 | B196: 2,100 | C196: TRINITY_DN34458_c0_g2_i1;TRINITY_DN34458_c0_g2_i2 | D196: deleted in malignant brain tumors 1 protein-like [Gallus gallus] | E196: Dmbt1 | F196: Deleted in malignant brain tumors 1 protein OS=Oryctolagus cuniculus GN=Dmbt1 PE=1 SV=2 | G196: GO:0019898(extrinsic component of membrane);GO:0035375(zymogen binding);GO:0042589(zymogen granule membrane) | H196: ENOG410XPN2(CUB and zona pellucida-like domains 1) | I196: K13912 | J196: deleted in malignant brain tumors 1 protein | K196: - | L196: epz04970(Salivary secretion) | M196: G1NGA2.2 PF00100.21;Zona_pellucida; | N196: - | O196: 582.00 | P196: 700.00 | Q196: 536.00 | R196: 0.00 | S196: 0.00 | T196: 0.00 | U196: 0.00 | V196: 0.00 | W196: 0.00 | X196: 23.27 | Y196: 31.64 | Z196: 27.44 | AA196: 0.00 | AB196: 0.00 | AC196: 0.00 | AD196: 0.00 | AE196: 0.00 | AF196: 0.00 | AG196: 27.45 | AH196: 0.00 | AI196: 0.00 | AJ196: =AG196/1616.37 -> 0.02 | AK196: =AH196/2185.3 -> 0.00 | AL196: =AI196/452.3 -> 0.00 | AM196: =AJ196/AJ196 -> 1.00 | AN196: =AK196/AJ196 -> 0.00 | AO196: =AL196/AJ196 -> 0.00 | AP196: 0.00 | AQ196: 0.00 | AR196: yes
A197: TRINITY_DN49236_c0_g1 | B197: 852 | C197: TRINITY_DN49236_c0_g1_i1;TRINITY_DN49236_c0_g1_i2 | D197: dathoxin-4 [Dermacentor andersoni] | E197: - | F197: - | G197: GO:0004867(serine-type endopeptidase inhibitor activity);GO:0005576(extracellular region);GO:0007596(blood coagulation);GO:0007599(hemostasis);GO:0010466(negative regulation of peptidase activity);GO:0030414(peptidase inhibitor activity) | H197: ENOG410XQNP(serine peptidase inhibitor, Kunitz type) | I197: NA | J197: NA | K197: NA | L197: NA(NA) | M197: - | N197: - | O197: 0.00 | P197: 0.00 | Q197: 0.00 | R197: 4,116.22 | S197: 5,010.61 | T197: 2,009.24 | U197: 573.14 | V197: 546.94 | W197: 335.50 | X197: 0.00 | Y197: 0.00 | Z197: 0.00 | AA197: 297.39 | AB197: 258.93 | AC197: 83.33 | AD197: 58.16 | AE197: 62.88 | AF197: 17.86 | AG197: 0.00 | AH197: 213.22 | AI197: 46.30 | AJ197: 0.00 | AK197: 0.10 | AL197: 0.10 | AM197: =AJ197/AK197 -> 0.00 | AN197: =AK197/AK197 -> 1.00 | AO197: =AL197/AK197 -> 1.05 | AP197: 0.00 | AQ197: 0.00 | AR197: yes
A198: TRINITY_DN50322_c0_g3 | B198: 1,176 | C198: TRINITY_DN50322_c0_g3_i1;TRINITY_DN50322_c0_g3_i2 | D198: hypothetical protein IscW_ISCW008703 [Ixodes scapularis] | E198: - | F198: - | G198: - | H198: - | I198: - | J198: - | K198: - | L198: - | M198: - | N198: - | O198: 5,919.00 | P198: 2,969.00 | Q198: 1,764.00 | R198: 39.00 | S198: 29.00 | T198: 28.00 | U198: 38.00 | V198: 56.00 | W198: 27.00 | X198: 541.87 | Y198: 291.19 | Z198: 71.88 | AA198: 1.94 | AB198: 2.45 | AC198: 1.07 | AD198: 2.70 | AE198: 4.79 | AF198: 2.16 | AG198: 301.65 | AH198: 1.82 | AI198: 3.22 | AJ198: 0.19 | AK198: 0.00 | AL198: 0.01 | AM198: =AJ198/AL198 -> 26.21 | AN198: =AK198/AL198 -> 0.12 | AO198: =AL198/AL198 -> 1.00 | AP198: 0.00 | AQ198: 0.00 | AR198: yes
A199: TRINITY_DN52347_c2_g1 | B199: 1,494 | C199: TRINITY_DN52347_c2_g1_i1;TRINITY_DN52347_c2_g1_i2;TRINITY_DN52347_c2_g1_i3;TRINITY_DN52347_c2_g1_i4;TRINITY_DN52347_c2_g1_i5;TRINITY_DN52347_c2_g1_i6;TRINITY_DN52347_c2_g1_i7;TRINITY_DN52347_c2_g1_i8;TRINITY_DN52347_c2_g1_i9 | D199: - | E199: - | F199: - | G199: - | H199: - | I199: - | J199: - | K199: - | L199: - | M199: - | N199: - | O199: 0.00 | P199: 2.00 | Q199: 3.00 | R199: 20.00 | S199: 20.00 | T199: 13.00 | U199: 1,360.72 | V199: 784.00 | W199: 1,123.96 | X199: 0.00 | Y199: 0.09 | Z199: 0.08 | AA199: 4.11 | AB199: 2.88 | AC199: 1.29 | AD199: 132.14 | AE199: 93.69 | AF199: 126.37 | AG199: 0.06 | AH199: 2.76 | AI199: 117.40 | AJ199: 0.00 | AK199: 0.00 | AL199: 0.26 | AM199: =AJ199/AJ199 -> 1.00 | AN199: =AK199/AJ199 -> 34.02 | AO199: =AL199/AJ199 -> 6,992.48 | AP199: 0.00 | AQ199: 0.00 | AR199: yes
A200: TRINITY_DN52736_c1_g1 | B200: 2,708 | C200: TRINITY_DN52736_c1_g1_i1;TRINITY_DN52736_c1_g1_i2;TRINITY_DN52736_c1_g1_i3 | D200: hypothetical protein IscW_ISCW004809 [Ixodes scapularis] | E200: - | F200: - | G200: - | H200: - | I200: NA | J200: NA | K200: NA | L200: NA(NA) | M200: - | N200: - | O200: 1,833.00 | P200: 2,570.00 | Q200: 663.00 | R200: 10.00 | S200: 2.00 | T200: 6.00 | U200: 7.00 | V200: 6.00 | W200: 4.00 | X200: 23.96 | Y200: 48.58 | Z200: 21.05 | AA200: 0.13 | AB200: 0.02 | AC200: 1.01 | AD200: 0.07 | AE200: 0.84 | AF200: 0.04 | AG200: 31.20 | AH200: 0.39 | AI200: 0.32 | AJ200: 0.02 | AK200: 0.00 | AL200: 0.00 | AM200: =AJ200/AK200 -> 108.16 | AN200: =AK200/AK200 -> 1.00 | AO200: =AL200/AK200 -> 3.96 | AP200: 0.00 | AQ200: 0.00 | AR200: yes
... 2050 more rows
